date,department/service,beneficiary,amount,summary of purpose,category,transaction number,SAP vendor number
01.11.2018,ADULT SOCIAL CARE,RADHA CONSULTING LTD,"3,076.90",SAFEGUARDING TEAM,OTHER CONTRACTORS,5902326474,1000061154
01.11.2018,CENTRAL FUNCTIONS,OCO LIMITED,"-5,795.95",AYLESBURY,OTHER R&M,5902327297,1006066
01.11.2018,CENTRAL FUNCTIONS,OCO LIMITED,"5,795.95",AYLESBURY,OTHER R&M,5902327087,1006066
01.11.2018,CHIEF EXECUTIVE,ADVANCED TRANSPORT RESEARCH LTD,540,CAPITAL PS (REGEN),CONSTRUCTION,5902326133,1000070527
01.11.2018,COMMISSIONING & CENTRAL,SYED & QUINN LTD,300,ASW - PROFESSIONAL DEVELOPMENT,TRAINING,5902326915,1000029554
01.11.2018,COMMUNITIES,LBS MAYOR CHARITY APPEAL,300,MAYORAL SUPPORT,MARKETING & PUBLICITY SERVICES,5902325860,1000060799
01.11.2018,COMMUNITIES,WILLOWBROOK TENANT MANAGEMENT CO,"5,113.68",WILLOWBROOK CO-OP,M&M ALLOWANCE CO-OPS,5902326075,11311402
01.11.2018,PLANNING AND TRANSPORT,BUTLER HEGARTY ARCHITECTS LTD,"1,050.00",PECKHAM TOWNSCAPE HERITAGE INITIATIVE,MISCELLANEOUS EXPENSES,5902326028,1000077437
01.11.2018,REGENERATION,CHRIST CHURCH CAMBERWELL PCC,320,OKR MASTER PLANNING,PROFESSIONAL FEES,5902326230,1000038409
01.11.2018,STRATEGIC FINANCING BUDGETS,TRADITION (UK) LTD,"3,972.60",EXTERNAL INTEREST,DEBT MANAGEMENT EXPENSES,5902326186,1000081340
02.11.2018,ADULT SOCIAL CARE,HUMBLE HEALTH CARE LTD,431.68,CARERS SERVICES,HOMECARE - SPOT,2102883589,1000079270
02.11.2018,ADULT SOCIAL CARE,LAMBETH & SOUTHWARK MENCAP,309,LD LTS 18-64,SUPPORTED LIVING,2102883603,1000005477
02.11.2018,ADULT SOCIAL CARE,CARE DIRECT UK LTD,404.6,LD LTS 18-64,HOMECARE - C&V,2102883586,1000066322
02.11.2018,ADULT SOCIAL CARE,LAMBETH & SOUTHWARK MENCAP,474.69,LD LTS 18-64,DAYCARE,2102883612,1000005477
02.11.2018,ADULT SOCIAL CARE,LAMBETH & SOUTHWARK MENCAP,618,LD LTS 18-64,SUPPORTED LIVING,2102883587,1000005477
02.11.2018,ADULT SOCIAL CARE,LAMBETH & SOUTHWARK MENCAP,943.04,LD LTS 18-64,SUPPORTED LIVING,2102883594,1000005477
02.11.2018,ADULT SOCIAL CARE,LAMBETH & SOUTHWARK MENCAP,"1,055.25",LD LTS 18-64,SUPPORTED LIVING,2102883592,1000005477
02.11.2018,ADULT SOCIAL CARE,LAMBETH & SOUTHWARK MENCAP,"2,801.60",LD LTS 18-64,SUPPORTED LIVING,2102883609,1000005477
02.11.2018,ADULT SOCIAL CARE,SOUTHWARK DISABLEMENT ASSOCIATION,"1,434.72",LD LTS 65+,SUPPORTED LIVING,2102883833,1000011698
02.11.2018,ADULT SOCIAL CARE,LONDON CARE LTD,"6,260.68",LD LTS 65+,HOMECARE - C&V,2102883581,1000003398
02.11.2018,ADULT SOCIAL CARE,LONDON CARE LTD,574.63,MEM LTS 65+,HOMECARE - C&V,2102883570,1000003398
02.11.2018,ADULT SOCIAL CARE,LONDON CARE LTD,732.61,MEM LTS 65+,HOMECARE - C&V,2102883498,1000003398
02.11.2018,ADULT SOCIAL CARE,ELEANOR NURSING AND SOCIAL CARE LTD,810.66,MEM LTS 65+,HOMECARE - SPOT,2102883641,1000081695
02.11.2018,ADULT SOCIAL CARE,LONDON CARE LTD,"1,082.48",MEM LTS 65+,HOMECARE - C&V,2102883437,1000003398
02.11.2018,ADULT SOCIAL CARE,LONDON CARE LTD,"1,132.28",MEM LTS 65+,HOMECARE - C&V,2102883508,1000003398
02.11.2018,ADULT SOCIAL CARE,SUPREME CARE SERVICES LTD,"2,283.73",MEM LTS 65+,HOMECARE - C&V,2102883761,1000059416
02.11.2018,ADULT SOCIAL CARE,LONDON CARE LTD,"2,988.93",MEM LTS 65+,HOMECARE - C&V,2102883576,1000003398
02.11.2018,ADULT SOCIAL CARE,LONDON CARE LTD,266.4,MH LTS 18-64,HOMECARE - C&V,2102883487,1000003398
02.11.2018,ADULT SOCIAL CARE,SOUTHWARK DISABLEMENT ASSOCIATION,304,MH LTS 18-64,HOMECARE - SPOT,2102883837,1000011698
02.11.2018,ADULT SOCIAL CARE,SOUTHWARK DISABLEMENT ASSOCIATION,319.2,MH LTS 18-64,SUPPORTED LIVING,2102883828,1000011698
02.11.2018,ADULT SOCIAL CARE,SOUTHWARK DISABLEMENT ASSOCIATION,418.46,MH LTS 18-64,HOMECARE - SPOT,2102883839,1000011698
02.11.2018,ADULT SOCIAL CARE,SOUTHWARK DISABLEMENT ASSOCIATION,547.2,MH LTS 18-64,HOMECARE - SPOT,2102883845,1000011698
02.11.2018,ADULT SOCIAL CARE,SOUTHWARK DISABLEMENT ASSOCIATION,717.36,MH LTS 18-64,SUPPORTED LIVING,2102883834,1000011698
02.11.2018,ADULT SOCIAL CARE,SOUTHWARK DISABLEMENT ASSOCIATION,881.6,MH LTS 18-64,HOMECARE - SPOT,2102883838,1000011698
02.11.2018,ADULT SOCIAL CARE,SAGECARE LTD,"1,299.48",MH LTS 18-64,HOMECARE - C&V,2102883811,1000080924
02.11.2018,ADULT SOCIAL CARE,LONDON CARE LTD,333,MH LTS 65+,HOMECARE - C&V,2102883557,1000003398
02.11.2018,ADULT SOCIAL CARE,SAGECARE LTD,822.64,MH LTS 65+,HOMECARE - C&V,2102883805,1000080924
02.11.2018,ADULT SOCIAL CARE,LONDON CARE LTD,882.8,MH LTS 65+,HOMECARE - C&V,2102883447,1000003398
02.11.2018,ADULT SOCIAL CARE,NPOWER LTD,828.77,ORIENT STREET,ELECTRICITY,5902327006,1000078994
02.11.2018,ADULT SOCIAL CARE,LONDON CARE LTD,258.19,PHY LTS 18-64,HOMECARE - C&V,2102883496,1000003398
02.11.2018,ADULT SOCIAL CARE,LONDON CARE LTD,283.08,PHY LTS 18-64,HOMECARE - C&V,2102883501,1000003398
02.11.2018,ADULT SOCIAL CARE,LONDON CARE LTD,299.76,PHY LTS 18-64,HOMECARE - C&V,2102883510,1000003398
02.11.2018,ADULT SOCIAL CARE,LONDON CARE LTD,333.16,PHY LTS 18-64,HOMECARE - C&V,2102883539,1000003398
02.11.2018,ADULT SOCIAL CARE,LONDON CARE LTD,349.72,PHY LTS 18-64,HOMECARE - C&V,2102883530,1000003398
02.11.2018,ADULT SOCIAL CARE,LONDON CARE LTD,349.72,PHY LTS 18-64,HOMECARE - C&V,2102883536,1000003398
02.11.2018,ADULT SOCIAL CARE,LONDON CARE LTD,366.34,PHY LTS 18-64,HOMECARE - C&V,2102883551,1000003398
02.11.2018,ADULT SOCIAL CARE,SAGECARE LTD,395.56,PHY LTS 18-64,HOMECARE - C&V,2102883798,1000080924
02.11.2018,ADULT SOCIAL CARE,LONDON CARE LTD,416.32,PHY LTS 18-64,HOMECARE - C&V,2102883440,1000003398
02.11.2018,ADULT SOCIAL CARE,SUPREME CARE SERVICES LTD,450.9,PHY LTS 18-64,HOMECARE - C&V,2102883750,1000059416
02.11.2018,ADULT SOCIAL CARE,LONDON CARE LTD,453.79,PHY LTS 18-64,HOMECARE - C&V,2102883566,1000003398
02.11.2018,ADULT SOCIAL CARE,LONDON CARE LTD,499.51,PHY LTS 18-64,HOMECARE - C&V,2102883580,1000003398
02.11.2018,ADULT SOCIAL CARE,LONDON CARE LTD,516.15,PHY LTS 18-64,HOMECARE - C&V,2102883577,1000003398
02.11.2018,ADULT SOCIAL CARE,SAGECARE LTD,519.73,PHY LTS 18-64,HOMECARE - C&V,2102883813,1000080924
02.11.2018,ADULT SOCIAL CARE,LONDON CARE LTD,524.58,PHY LTS 18-64,HOMECARE - C&V,2102883552,1000003398
02.11.2018,ADULT SOCIAL CARE,LONDON CARE LTD,582.8,PHY LTS 18-64,HOMECARE - C&V,2102883548,1000003398
02.11.2018,ADULT SOCIAL CARE,LONDON CARE LTD,603.76,PHY LTS 18-64,HOMECARE - C&V,2102883523,1000003398
02.11.2018,ADULT SOCIAL CARE,SAGECARE LTD,632.96,PHY LTS 18-64,HOMECARE - C&V,2102883802,1000080924
02.11.2018,ADULT SOCIAL CARE,SAGECARE LTD,632.96,PHY LTS 18-64,HOMECARE - C&V,2102883858,1000080924
02.11.2018,ADULT SOCIAL CARE,SUPREME CARE SERVICES LTD,663.83,PHY LTS 18-64,HOMECARE - C&V,2102883778,1000059416
02.11.2018,ADULT SOCIAL CARE,SAGECARE LTD,670.47,PHY LTS 18-64,HOMECARE - C&V,2102883865,1000080924
02.11.2018,ADULT SOCIAL CARE,SUPREME CARE SERVICES LTD,709.75,PHY LTS 18-64,HOMECARE - C&V,2102883774,1000059416
02.11.2018,ADULT SOCIAL CARE,LONDON CARE LTD,766,PHY LTS 18-64,HOMECARE - C&V,2102883527,1000003398
02.11.2018,ADULT SOCIAL CARE,SAGECARE LTD,816.2,PHY LTS 18-64,HOMECARE - C&V,2102883797,1000080924
02.11.2018,ADULT SOCIAL CARE,SAGECARE LTD,816.2,PHY LTS 18-64,HOMECARE - C&V,2102883820,1000080924
02.11.2018,ADULT SOCIAL CARE,SAGECARE LTD,820.33,PHY LTS 18-64,HOMECARE - C&V,2102883806,1000080924
02.11.2018,ADULT SOCIAL CARE,SAGECARE LTD,832.86,PHY LTS 18-64,HOMECARE - C&V,2102883863,1000080924
02.11.2018,ADULT SOCIAL CARE,LONDON CARE LTD,834,PHY LTS 18-64,HOMECARE - C&V,2102883526,1000003398
02.11.2018,ADULT SOCIAL CARE,SAGECARE LTD,849.48,PHY LTS 18-64,HOMECARE - C&V,2102883809,1000080924
02.11.2018,ADULT SOCIAL CARE,LONDON CARE LTD,891.04,PHY LTS 18-64,HOMECARE - C&V,2102883482,1000003398
02.11.2018,ADULT SOCIAL CARE,SOUTHWARK DISABLEMENT ASSOCIATION,894.82,PHY LTS 18-64,HOMECARE - SPOT,2102883857,1000011698
02.11.2018,ADULT SOCIAL CARE,LONDON CARE LTD,907.69,PHY LTS 18-64,HOMECARE - C&V,2102883478,1000003398
02.11.2018,ADULT SOCIAL CARE,LONDON CARE LTD,916.02,PHY LTS 18-64,HOMECARE - C&V,2102883520,1000003398
02.11.2018,ADULT SOCIAL CARE,LONDON CARE LTD,966.14,PHY LTS 18-64,HOMECARE - C&V,2102883479,1000003398
02.11.2018,ADULT SOCIAL CARE,LONDON CARE LTD,999.02,PHY LTS 18-64,HOMECARE - C&V,2102883457,1000003398
02.11.2018,ADULT SOCIAL CARE,LONDON CARE LTD,"1,116.04",PHY LTS 18-64,HOMECARE - C&V,2102883563,1000003398
02.11.2018,ADULT SOCIAL CARE,SAGECARE LTD,"1,161.17",PHY LTS 18-64,HOMECARE - C&V,2102883816,1000080924
02.11.2018,ADULT SOCIAL CARE,LONDON CARE LTD,"1,399.17",PHY LTS 18-64,HOMECARE - C&V,2102883509,1000003398
02.11.2018,ADULT SOCIAL CARE,LONDON CARE LTD,"1,815.52",PHY LTS 18-64,HOMECARE - C&V,2102883553,1000003398
02.11.2018,ADULT SOCIAL CARE,LONDON CARE LTD,"2,327.37",PHY LTS 18-64,HOMECARE - C&V,2102883528,1000003398
02.11.2018,ADULT SOCIAL CARE,SAGECARE LTD,"2,548.15",PHY LTS 18-64,HOMECARE - C&V,2102883860,1000080924
02.11.2018,ADULT SOCIAL CARE,LONDON CARE LTD,"3,247.59",PHY LTS 18-64,HOMECARE - C&V,2102883476,1000003398
02.11.2018,ADULT SOCIAL CARE,THE RIVERSIDE GROUP LTD,"3,617.25",PHY LTS 18-64,EXTERNAL AGENCIES AND BODIES,2102883870,1000069625
02.11.2018,ADULT SOCIAL CARE,THE RIVERSIDE GROUP LTD,"3,617.25",PHY LTS 18-64,EXTERNAL AGENCIES AND BODIES,2102883871,1000069625
02.11.2018,ADULT SOCIAL CARE,HAYDALE NURSING HOME,-850.24,PHY LTS 65+,"MAND STATUTORY CHARGES, RESIDENTIAL",2102871079,1000057063
02.11.2018,ADULT SOCIAL CARE,HAYDALE NURSING HOME,-850.24,PHY LTS 65+,"MAND STATUTORY CHARGES, RESIDENTIAL",2102881393,1000057063
02.11.2018,ADULT SOCIAL CARE,LONDON CARE LTD,254.03,PHY LTS 65+,HOMECARE - C&V,2102883532,1000003398
02.11.2018,ADULT SOCIAL CARE,ELEANOR NURSING AND SOCIAL CARE LTD,256.48,PHY LTS 65+,HOMECARE - SPOT,2102883643,1000081695
02.11.2018,ADULT SOCIAL CARE,LONDON CARE LTD,260.92,PHY LTS 65+,HOMECARE - C&V,2102883543,1000003398
02.11.2018,ADULT SOCIAL CARE,LONDON CARE LTD,262.38,PHY LTS 65+,HOMECARE - C&V,2102883531,1000003398
02.11.2018,ADULT SOCIAL CARE,CARE DIRECT UK LTD,279.92,PHY LTS 65+,HOMECARE - C&V,2102883595,1000066322
02.11.2018,ADULT SOCIAL CARE,CARE DIRECT UK LTD,279.92,PHY LTS 65+,HOMECARE - C&V,2102883596,1000066322
02.11.2018,ADULT SOCIAL CARE,ELEANOR NURSING AND SOCIAL CARE LTD,288.54,PHY LTS 65+,HOMECARE - SPOT,2102883649,1000081695
02.11.2018,ADULT SOCIAL CARE,LONDON CARE LTD,312.25,PHY LTS 65+,HOMECARE - C&V,2102883533,1000003398
02.11.2018,ADULT SOCIAL CARE,SUPREME CARE SERVICES LTD,313.13,PHY LTS 65+,HOMECARE - C&V,2102883758,1000059416
02.11.2018,ADULT SOCIAL CARE,LONDON CARE LTD,315.07,PHY LTS 65+,HOMECARE - C&V,2102883505,1000003398
02.11.2018,ADULT SOCIAL CARE,LONDON CARE LTD,333,PHY LTS 65+,HOMECARE - C&V,2102883538,1000003398
02.11.2018,ADULT SOCIAL CARE,LONDON CARE LTD,337.23,PHY LTS 65+,HOMECARE - C&V,2102883495,1000003398
02.11.2018,ADULT SOCIAL CARE,LONDON CARE LTD,349.72,PHY LTS 65+,HOMECARE - C&V,2102883529,1000003398
02.11.2018,ADULT SOCIAL CARE,LONDON CARE LTD,349.8,PHY LTS 65+,HOMECARE - C&V,2102883445,1000003398
02.11.2018,ADULT SOCIAL CARE,ELEANOR NURSING AND SOCIAL CARE LTD,361.82,PHY LTS 65+,HOMECARE - SPOT,2102883640,1000081695
02.11.2018,ADULT SOCIAL CARE,ELEANOR NURSING AND SOCIAL CARE LTD,366.4,PHY LTS 65+,HOMECARE - SPOT,2102883653,1000081695
02.11.2018,ADULT SOCIAL CARE,LONDON CARE LTD,383.1,PHY LTS 65+,HOMECARE - C&V,2102883511,1000003398
02.11.2018,ADULT SOCIAL CARE,LONDON CARE LTD,399.74,PHY LTS 65+,HOMECARE - C&V,2102883572,1000003398
02.11.2018,ADULT SOCIAL CARE,YOUTH GRACES (UK) LTD,399.91,PHY LTS 65+,HOMECARE - SPOT,2102883850,1000072524
02.11.2018,ADULT SOCIAL CARE,YOUTH GRACES (UK) LTD,399.91,PHY LTS 65+,HOMECARE - SPOT,2102883852,1000072524
02.11.2018,ADULT SOCIAL CARE,LONDON CARE LTD,407.98,PHY LTS 65+,HOMECARE - C&V,2102883499,1000003398
02.11.2018,ADULT SOCIAL CARE,LONDON CARE LTD,416.5,PHY LTS 65+,HOMECARE - C&V,2102883506,1000003398
02.11.2018,ADULT SOCIAL CARE,LONDON CARE LTD,424.73,PHY LTS 65+,HOMECARE - C&V,2102883485,1000003398
02.11.2018,ADULT SOCIAL CARE,ELEANOR NURSING AND SOCIAL CARE LTD,425.94,PHY LTS 65+,HOMECARE - SPOT,2102883644,1000081695
02.11.2018,ADULT SOCIAL CARE,LONDON CARE LTD,428.86,PHY LTS 65+,HOMECARE - C&V,2102883541,1000003398
02.11.2018,ADULT SOCIAL CARE,ELEANOR NURSING AND SOCIAL CARE LTD,444.26,PHY LTS 65+,HOMECARE - SPOT,2102883651,1000081695
02.11.2018,ADULT SOCIAL CARE,LONDON CARE LTD,449.64,PHY LTS 65+,HOMECARE - C&V,2102883439,1000003398
02.11.2018,ADULT SOCIAL CARE,LONDON CARE LTD,449.64,PHY LTS 65+,HOMECARE - C&V,2102883507,1000003398
02.11.2018,ADULT SOCIAL CARE,LONDON CARE LTD,466.48,PHY LTS 65+,HOMECARE - C&V,2102883491,1000003398
02.11.2018,ADULT SOCIAL CARE,SAGECARE LTD,466.48,PHY LTS 65+,HOMECARE - C&V,2102883803,1000080924
02.11.2018,ADULT SOCIAL CARE,SAGECARE LTD,466.48,PHY LTS 65+,HOMECARE - C&V,2102883804,1000080924
02.11.2018,ADULT SOCIAL CARE,SAGECARE LTD,466.48,PHY LTS 65+,HOMECARE - C&V,2102883808,1000080924
02.11.2018,ADULT SOCIAL CARE,SAGECARE LTD,466.48,PHY LTS 65+,HOMECARE - C&V,2102883821,1000080924
02.11.2018,ADULT SOCIAL CARE,LONDON CARE LTD,482.95,PHY LTS 65+,HOMECARE - C&V,2102883494,1000003398
02.11.2018,ADULT SOCIAL CARE,LONDON CARE LTD,482.98,PHY LTS 65+,HOMECARE - C&V,2102883575,1000003398
02.11.2018,ADULT SOCIAL CARE,SUPREME CARE SERVICES LTD,496.83,PHY LTS 65+,HOMECARE - C&V,2102883770,1000059416
02.11.2018,ADULT SOCIAL CARE,LONDON CARE LTD,499.76,PHY LTS 65+,HOMECARE - C&V,2102883465,1000003398
02.11.2018,ADULT SOCIAL CARE,LONDON CARE LTD,516.42,PHY LTS 65+,HOMECARE - C&V,2102883493,1000003398
02.11.2018,ADULT SOCIAL CARE,LONDON CARE LTD,524.75,PHY LTS 65+,HOMECARE - C&V,2102883521,1000003398
02.11.2018,ADULT SOCIAL CARE,LONDON CARE LTD,533,PHY LTS 65+,HOMECARE - SPOT,2102883466,1000003398
02.11.2018,ADULT SOCIAL CARE,SAGECARE LTD,536.87,PHY LTS 65+,HOMECARE - C&V,2102883867,1000080924
02.11.2018,ADULT SOCIAL CARE,LONDON CARE LTD,549.64,PHY LTS 65+,HOMECARE - C&V,2102883486,1000003398
02.11.2018,ADULT SOCIAL CARE,LONDON CARE LTD,566.12,PHY LTS 65+,HOMECARE - C&V,2102883450,1000003398
02.11.2018,ADULT SOCIAL CARE,LONDON CARE LTD,578.86,PHY LTS 65+,HOMECARE - C&V,2102883579,1000003398
02.11.2018,ADULT SOCIAL CARE,LONDON CARE LTD,582.96,PHY LTS 65+,HOMECARE - C&V,2102883472,1000003398
02.11.2018,ADULT SOCIAL CARE,LONDON CARE LTD,582.96,PHY LTS 65+,HOMECARE - C&V,2102883519,1000003398
02.11.2018,ADULT SOCIAL CARE,SUPREME CARE SERVICES LTD,584.5,PHY LTS 65+,HOMECARE - C&V,2102883746,1000059416
02.11.2018,ADULT SOCIAL CARE,SAGECARE LTD,591.95,PHY LTS 65+,HOMECARE - C&V,2102883800,1000080924
02.11.2018,ADULT SOCIAL CARE,LONDON CARE LTD,599.62,PHY LTS 65+,HOMECARE - C&V,2102883504,1000003398
02.11.2018,ADULT SOCIAL CARE,SUPREME CARE SERVICES LTD,601.2,PHY LTS 65+,HOMECARE - C&V,2102883772,1000059416
02.11.2018,ADULT SOCIAL CARE,ELEANOR NURSING AND SOCIAL CARE LTD,613.72,PHY LTS 65+,HOMECARE - SPOT,2102883646,1000081695
02.11.2018,ADULT SOCIAL CARE,LONDON CARE LTD,624.75,PHY LTS 65+,HOMECARE - C&V,2102883555,1000003398
02.11.2018,ADULT SOCIAL CARE,LONDON CARE LTD,649.48,PHY LTS 65+,HOMECARE - C&V,2102883518,1000003398
02.11.2018,ADULT SOCIAL CARE,LONDON CARE LTD,670.38,PHY LTS 65+,HOMECARE - C&V,2102883534,1000003398
02.11.2018,ADULT SOCIAL CARE,SOUTHWARK DISABLEMENT ASSOCIATION,675.62,PHY LTS 65+,HOMECARE - SPOT,2102883855,1000011698
02.11.2018,ADULT SOCIAL CARE,LONDON CARE LTD,682.83,PHY LTS 65+,HOMECARE - C&V,2102883515,1000003398
02.11.2018,ADULT SOCIAL CARE,SAGECARE LTD,682.84,PHY LTS 65+,HOMECARE - C&V,2102883864,1000080924
02.11.2018,ADULT SOCIAL CARE,LONDON CARE LTD,691.27,PHY LTS 65+,HOMECARE - C&V,2102883540,1000003398
02.11.2018,ADULT SOCIAL CARE,LONDON CARE LTD,699.44,PHY LTS 65+,HOMECARE - C&V,2102883470,1000003398
02.11.2018,ADULT SOCIAL CARE,LONDON CARE LTD,699.72,PHY LTS 65+,HOMECARE - C&V,2102883512,1000003398
02.11.2018,ADULT SOCIAL CARE,LONDON CARE LTD,716.16,PHY LTS 65+,HOMECARE - C&V,2102883460,1000003398
02.11.2018,ADULT SOCIAL CARE,LONDON CARE LTD,724.42,PHY LTS 65+,HOMECARE - C&V,2102883464,1000003398
02.11.2018,ADULT SOCIAL CARE,LONDON CARE LTD,749.39,PHY LTS 65+,HOMECARE - C&V,2102883547,1000003398
02.11.2018,ADULT SOCIAL CARE,LONDON CARE LTD,749.57,PHY LTS 65+,HOMECARE - C&V,2102883567,1000003398
02.11.2018,ADULT SOCIAL CARE,LONDON CARE LTD,749.64,PHY LTS 65+,HOMECARE - C&V,2102883473,1000003398
02.11.2018,ADULT SOCIAL CARE,LONDON CARE LTD,795.33,PHY LTS 65+,HOMECARE - C&V,2102883449,1000003398
02.11.2018,ADULT SOCIAL CARE,SAGECARE LTD,799.36,PHY LTS 65+,HOMECARE - C&V,2102883812,1000080924
02.11.2018,ADULT SOCIAL CARE,LONDON CARE LTD,803.71,PHY LTS 65+,HOMECARE - C&V,2102883442,1000003398
02.11.2018,ADULT SOCIAL CARE,LONDON CARE LTD,807.87,PHY LTS 65+,HOMECARE - C&V,2102883443,1000003398
02.11.2018,ADULT SOCIAL CARE,LONDON CARE LTD,812.08,PHY LTS 65+,HOMECARE - C&V,2102883452,1000003398
02.11.2018,ADULT SOCIAL CARE,LONDON CARE LTD,816.2,PHY LTS 65+,HOMECARE - C&V,2102883446,1000003398
02.11.2018,ADULT SOCIAL CARE,SAGECARE LTD,866.2,PHY LTS 65+,HOMECARE - C&V,2102883807,1000080924
02.11.2018,ADULT SOCIAL CARE,SAGECARE LTD,866.2,PHY LTS 65+,HOMECARE - C&V,2102883817,1000080924
02.11.2018,ADULT SOCIAL CARE,SAGECARE LTD,866.2,PHY LTS 65+,HOMECARE - C&V,2102883862,1000080924
02.11.2018,ADULT SOCIAL CARE,LONDON CARE LTD,882.8,PHY LTS 65+,HOMECARE - C&V,2102883560,1000003398
02.11.2018,ADULT SOCIAL CARE,LONDON CARE LTD,916.18,PHY LTS 65+,HOMECARE - C&V,2102883546,1000003398
02.11.2018,ADULT SOCIAL CARE,LONDON CARE LTD,924.32,PHY LTS 65+,HOMECARE - C&V,2102883562,1000003398
02.11.2018,ADULT SOCIAL CARE,LONDON CARE LTD,932.4,PHY LTS 65+,HOMECARE - C&V,2102883458,1000003398
02.11.2018,ADULT SOCIAL CARE,LONDON CARE LTD,949.4,PHY LTS 65+,HOMECARE - C&V,2102883451,1000003398
02.11.2018,ADULT SOCIAL CARE,LONDON CARE LTD,949.4,PHY LTS 65+,HOMECARE - C&V,2102883568,1000003398
02.11.2018,ADULT SOCIAL CARE,LONDON CARE LTD,974.19,PHY LTS 65+,HOMECARE - C&V,2102883474,1000003398
02.11.2018,ADULT SOCIAL CARE,LONDON CARE LTD,982.62,PHY LTS 65+,HOMECARE - C&V,2102883475,1000003398
02.11.2018,ADULT SOCIAL CARE,SUPREME CARE SERVICES LTD,"1,002.00",PHY LTS 65+,HOMECARE - C&V,2102883771,1000059416
02.11.2018,ADULT SOCIAL CARE,LONDON CARE LTD,"1,011.69",PHY LTS 65+,HOMECARE - C&V,2102883514,1000003398
02.11.2018,ADULT SOCIAL CARE,SUPREME CARE SERVICES LTD,"1,043.75",PHY LTS 65+,HOMECARE - C&V,2102883752,1000059416
02.11.2018,ADULT SOCIAL CARE,LONDON CARE LTD,"1,049.42",PHY LTS 65+,HOMECARE - C&V,2102883484,1000003398
02.11.2018,ADULT SOCIAL CARE,LONDON CARE LTD,"1,049.44",PHY LTS 65+,HOMECARE - C&V,2102883438,1000003398
02.11.2018,ADULT SOCIAL CARE,SUPREME CARE SERVICES LTD,"1,052.10",PHY LTS 65+,HOMECARE - C&V,2102883777,1000059416
02.11.2018,ADULT SOCIAL CARE,LONDON CARE LTD,"1,057.77",PHY LTS 65+,HOMECARE - C&V,2102883516,1000003398
02.11.2018,ADULT SOCIAL CARE,SAGECARE LTD,"1,082.48",PHY LTS 65+,HOMECARE - C&V,2102883819,1000080924
02.11.2018,ADULT SOCIAL CARE,LONDON CARE LTD,"1,120.15",PHY LTS 65+,HOMECARE - C&V,2102883556,1000003398
02.11.2018,ADULT SOCIAL CARE,LONDON CARE LTD,"1,165.88",PHY LTS 65+,HOMECARE - C&V,2102883569,1000003398
02.11.2018,ADULT SOCIAL CARE,LONDON CARE LTD,"1,165.99",PHY LTS 65+,HOMECARE - C&V,2102883573,1000003398
02.11.2018,ADULT SOCIAL CARE,LONDON CARE LTD,"1,182.64",PHY LTS 65+,HOMECARE - C&V,2102883500,1000003398
02.11.2018,ADULT SOCIAL CARE,SUPREME CARE SERVICES LTD,"1,285.90",PHY LTS 65+,HOMECARE - C&V,2102883776,1000059416
02.11.2018,ADULT SOCIAL CARE,LONDON CARE LTD,"1,415.60",PHY LTS 65+,HOMECARE - SPOT,2102883492,1000003398
02.11.2018,ADULT SOCIAL CARE,LONDON CARE LTD,"1,431.90",PHY LTS 65+,HOMECARE - C&V,2102883537,1000003398
02.11.2018,ADULT SOCIAL CARE,LONDON CARE LTD,"1,632.40",PHY LTS 65+,HOMECARE - C&V,2102883524,1000003398
02.11.2018,ADULT SOCIAL CARE,LONDON CARE LTD,"1,998.28",PHY LTS 65+,HOMECARE - C&V,2102883544,1000003398
02.11.2018,ADULT SOCIAL CARE,LONDON CARE LTD,"2,048.90",PHY LTS 65+,HOMECARE - C&V,2102883468,1000003398
02.11.2018,ADULT SOCIAL CARE,LONDON CARE LTD,"2,081.67",PHY LTS 65+,HOMECARE - C&V,2102883463,1000003398
02.11.2018,ADULT SOCIAL CARE,HAYDALE NURSING HOME,"2,147.80",PHY LTS 65+,RESIDENTIAL CARE,2102871080,1000057063
02.11.2018,ADULT SOCIAL CARE,HAYDALE NURSING HOME,"2,147.80",PHY LTS 65+,RESIDENTIAL CARE,2102881394,1000057063
02.11.2018,ADULT SOCIAL CARE,LONDON CARE LTD,"2,186.31",PHY LTS 65+,HOMECARE - C&V,2102883503,1000003398
02.11.2018,ADULT SOCIAL CARE,LONDON CARE LTD,"2,319.35",PHY LTS 65+,HOMECARE - C&V,2102883513,1000003398
02.11.2018,ADULT SOCIAL CARE,SAGECARE LTD,"2,331.84",PHY LTS 65+,HOMECARE - C&V,2102883869,1000080924
02.11.2018,ADULT SOCIAL CARE,LONDON CARE LTD,"2,415.11",PHY LTS 65+,HOMECARE - C&V,2102883535,1000003398
02.11.2018,ADULT SOCIAL CARE,LONDON CARE LTD,"2,531.50",PHY LTS 65+,HOMECARE - C&V,2102883554,1000003398
02.11.2018,ADULT SOCIAL CARE,LONDON CARE LTD,"2,635.63",PHY LTS 65+,HOMECARE - C&V,2102883459,1000003398
02.11.2018,ADULT SOCIAL CARE,LONDON CARE LTD,"2,648.16",PHY LTS 65+,HOMECARE - C&V,2102883542,1000003398
02.11.2018,ADULT SOCIAL CARE,LONDON CARE LTD,"3,014.39",PHY LTS 65+,HOMECARE - C&V,2102883549,1000003398
02.11.2018,ADULT SOCIAL CARE,LONDON CARE LTD,"4,179.45",PHY LTS 65+,HOMECARE - C&V,2102883489,1000003398
02.11.2018,ADULT SOCIAL CARE,ELEANOR NURSING AND SOCIAL CARE LTD,325.18,PHY STS 65+,HOMECARE - IC,2102883650,1000081695
02.11.2018,ADULT SOCIAL CARE,ELEANOR NURSING AND SOCIAL CARE LTD,328.76,PHY STS 65+,HOMECARE - IC,2102883647,1000081695
02.11.2018,ADULT SOCIAL CARE,ELEANOR NURSING AND SOCIAL CARE LTD,522.12,PSEN STS 65+,HOMECARE - IC,2102883639,1000081695
02.11.2018,ADULT SOCIAL CARE,SAGECARE LTD,399.6,SOCIAL ISOLATION,HOMECARE - C&V,2102883818,1000080924
02.11.2018,ADULT SOCIAL CARE,SAGECARE LTD,399.6,SOCIAL ISOLATION,HOMECARE - C&V,2102883822,1000080924
02.11.2018,ADULT SOCIAL CARE,SAGECARE LTD,399.6,SOCIAL ISOLATION,HOMECARE - C&V,2102883861,1000080924
02.11.2018,ADULT SOCIAL CARE,LONDON CARE LTD,399.8,SOCIAL ISOLATION,HOMECARE - C&V,2102883467,1000003398
02.11.2018,ADULT SOCIAL CARE,LONDON CARE LTD,432.92,SOCIAL ISOLATION,HOMECARE - C&V,2102883525,1000003398
02.11.2018,ADULT SOCIAL CARE,SOUTHWARK DISABLEMENT ASSOCIATION,831.6,SOCIAL ISOLATION,HOMECARE - SPOT,2102883856,1000011698
02.11.2018,ADULT SOCIAL CARE,LONDON CARE LTD,"1,016.00",SOCIAL ISOLATION,HOMECARE - C&V,2102883558,1000003398
02.11.2018,ADULT SOCIAL CARE,LONDON CARE LTD,"1,361.40",SOCIAL ISOLATION,HOMECARE - C&V,2102883441,1000003398
02.11.2018,ADULT SOCIAL CARE,GLS EDUCATIONAL SUPPLIES LTD,299.4,SOUTHWARK RESOURCE CENTRE,"CLOTHING, UNIFORMS & LAUNDRY",5902326454,1318282
02.11.2018,ADULT SOCIAL CARE,CONTACT PROFESSIONALS,266,SPECIALIST CARE,SECTION 17 PAYMENTS TO AGENCIES/CARERS,2102883711,1000057263
02.11.2018,ADULT SOCIAL CARE,CONTACT PROFESSIONALS,266,SPECIALIST CARE,SECTION 17 PAYMENTS TO AGENCIES/CARERS,2102883717,1000057263
02.11.2018,ADULT SOCIAL CARE,CONTACT PROFESSIONALS,285,SPECIALIST CARE,SECTION 17 PAYMENTS TO AGENCIES/CARERS,2102883737,1000057263
02.11.2018,ADULT SOCIAL CARE,CONTACT PROFESSIONALS,304,SPECIALIST CARE,SECTION 17 PAYMENTS TO AGENCIES/CARERS,2102883709,1000057263
02.11.2018,ADULT SOCIAL CARE,CONTACT PROFESSIONALS,304,SPECIALIST CARE,SECTION 17 PAYMENTS TO AGENCIES/CARERS,2102883719,1000057263
02.11.2018,ADULT SOCIAL CARE,CONTACT PROFESSIONALS,304,SPECIALIST CARE,SECTION 17 PAYMENTS TO AGENCIES/CARERS,2102883728,1000057263
02.11.2018,ADULT SOCIAL CARE,CONTACT PROFESSIONALS,380,SPECIALIST CARE,SECTION 17 PAYMENTS TO AGENCIES/CARERS,2102883718,1000057263
02.11.2018,ADULT SOCIAL CARE,CONTACT PROFESSIONALS,418,SPECIALIST CARE,SECTION 17 PAYMENTS TO AGENCIES/CARERS,5902327201,1000057263
02.11.2018,ADULT SOCIAL CARE,CONTACT PROFESSIONALS,532,SPECIALIST CARE,SECTION 17 PAYMENTS TO AGENCIES/CARERS,2102883716,1000057263
02.11.2018,ADULT SOCIAL CARE,NORBURY PROPERTY SERVICES (LONDON),328,TRANSITIONS 14-18YRS,SECTION 17 PAYMENTS TO AGENCIES/CARERS,5902327174,1000075566
02.11.2018,ADULT SOCIAL CARE,NORBURY PROPERTY SERVICES (LONDON),480,TRANSITIONS 14-18YRS,SECTION 17 PAYMENTS TO AGENCIES/CARERS,5902327173,1000075566
02.11.2018,ADULT SOCIAL CARE,CONTACT PROFESSIONALS,912,TRANSITIONS 14-18YRS,SECTION 17 PAYMENTS TO AGENCIES/CARERS,2102883739,1000057263
02.11.2018,ADULT SOCIAL CARE,NORBURY PROPERTY SERVICES (LONDON),"1,148.00",TRANSITIONS 14-18YRS,SECTION 17 PAYMENTS TO AGENCIES/CARERS,5902327178,1000075566
02.11.2018,ADULT SOCIAL CARE,NORBURY PROPERTY SERVICES (LONDON),"1,271.00",TRANSITIONS 14-18YRS,SECTION 17 PAYMENTS TO AGENCIES/CARERS,5902327175,1000075566
02.11.2018,ADULT SOCIAL CARE,NORBURY PROPERTY SERVICES (LONDON),"1,271.00",TRANSITIONS 14-18YRS,SECTION 17 PAYMENTS TO AGENCIES/CARERS,5902327177,1000075566
02.11.2018,ADULT SOCIAL CARE,NORBURY PROPERTY SERVICES (LONDON),"1,271.00",TRANSITIONS 14-18YRS,SECTION 17 PAYMENTS TO AGENCIES/CARERS,5902327179,1000075566
02.11.2018,ADULT SOCIAL CARE,CONTACT PROFESSIONALS,"1,489.00",TRANSITIONS 14-18YRS,SECTION 17 PAYMENTS TO AGENCIES/CARERS,2102883713,1000057263
02.11.2018,ASSET MANAGEMENT,STANNAH LIFT SERVICES LTD,"2,570.00",ADAPTATIONS,BUILDING R&M,5902327221,1063595
02.11.2018,ASSET MANAGEMENT,BELSHAW & CURTIN SOLICITORS,"2,500.00",DISREPAIR,BUILDING R&M,5902327098,1767379
02.11.2018,ASSET MANAGEMENT,BELSHAW & CURTIN SOLICITORS,"4,250.00",DISREPAIR,BUILDING R&M,5902327096,1767379
02.11.2018,CENTRAL FUNCTIONS,STANDAGE AND CO LTD,"50,773.00",AYLESBURY,SECURITY SERVICES,2102883292,4002817
02.11.2018,CENTRAL FUNCTIONS,NPOWER LTD,372.43,COMMERCIAL PROPERTIES,ELECTRICITY,5902327026,1000078994
02.11.2018,CENTRAL FUNCTIONS,STANBURY BUILDING SERVICES LTD,"1,295.00",COMMERCIAL PROPERTIES,BUILDING R&M,2102883293,3000001967
02.11.2018,CENTRAL FUNCTIONS,STANBURY BUILDING SERVICES LTD,"1,495.00",COMMERCIAL PROPERTIES,BUILDING R&M,2102883294,3000001967
02.11.2018,CENTRAL FUNCTIONS,NPOWER LTD,"3,285.51",HEATING ACCOUNT,ELECTRICITY,5902327028,1000078994
02.11.2018,CENTRAL FUNCTIONS,NPOWER LTD,"4,586.88",HEATING ACCOUNT,ELECTRICITY,5902327028,1000078994
02.11.2018,CENTRAL FUNCTIONS,NPOWER LTD,"6,136.46",HEATING ACCOUNT,ELECTRICITY,5902327028,1000078994
02.11.2018,CENTRAL FUNCTIONS,VEOLIA ES (UK)LTD,"141,680.73",HEATING ACCOUNT,GAS,5902327181,1824835
02.11.2018,CENTRAL FUNCTIONS,MISSION HOUSING ASSOCIATION LTD,275.63,HOME OWNERSHIP INCOME,HOUSING RESIDENTIAL RENTS,2102883337,1000081839
02.11.2018,CENTRAL FUNCTIONS,ENGIE REGENERATION (APOLLO) LTD,"34,682.66",LEDBURY ESTATE,OTHER R&M,2102883291,4000449
02.11.2018,CHIEF EXECUTIVE,MILTON KEYNES SURVEYS LTD,"3,837.00",CAPITAL PS (REGEN),CONSTRUCTION FEES  - EXTERNAL,5902327185,1000077138
02.11.2018,CHILDREN AND ADULT,WYNNE-WILLIAMS ASSOCIATES LTD,"1,580.00",CAPITAL PS (EDUCATION),CONSTRUCTION FEES - QUANTITY SURVEYOR,5902327081,1000081419
02.11.2018,CHILDREN'S SERVICES,IMAGO LTD,"27,819.00",ACTION FOR CHILDRENS,EXTERNAL AGENCIES AND BODIES,5902327124,1000076913
02.11.2018,CHILDREN'S SERVICES,FUSION FOSTERING LTD,-364.61,AGENCY FOSTERING,EXTERNAL AGENCIES AND BODIES,5902327203,1000081674
02.11.2018,CHILDREN'S SERVICES,FUSION FOSTERING LTD,"1,397.68",AGENCY FOSTERING,EXTERNAL AGENCIES AND BODIES,5902327202,1000081674
02.11.2018,CHILDREN'S SERVICES,SUPPORTED FOSTERING SERVICES,"3,095.66",AGENCY FOSTERING,EXTERNAL AGENCIES AND BODIES,2102883784,1927554
02.11.2018,CHILDREN'S SERVICES,CORE ASSETS FOSTERING LTD,"3,211.60",AGENCY FOSTERING,EXTERNAL AGENCIES AND BODIES,2102883790,11288002
02.11.2018,CHILDREN'S SERVICES,SELECT FOSTERCARE SERVICES LTD,"3,286.00",AGENCY FOSTERING,EXTERNAL AGENCIES AND BODIES,2102883789,1000079277
02.11.2018,CHILDREN'S SERVICES,SHINING STARS FOSTERING AGENCY LTD,"3,321.34",AGENCY FOSTERING,EXTERNAL AGENCIES AND BODIES,2102883697,1000079431
02.11.2018,CHILDREN'S SERVICES,CONNECT FOSTERING SERVICES LTD,"3,343.57",AGENCY FOSTERING,EXTERNAL AGENCIES AND BODIES,2102883781,1000079969
02.11.2018,CHILDREN'S SERVICES,FIVE RIVERS CHILD CARE LTD,"3,365.71",AGENCY FOSTERING,EXTERNAL AGENCIES AND BODIES,2102883794,1000018792
02.11.2018,CHILDREN'S SERVICES,CAPSTONE FOSTER CARE,"3,511.68",AGENCY FOSTERING,EXTERNAL AGENCIES AND BODIES,2102883787,1000050353
02.11.2018,CHILDREN'S SERVICES,CONNECT FOSTERING SERVICES LTD,"3,520.71",AGENCY FOSTERING,EXTERNAL AGENCIES AND BODIES,2102883782,1000079969
02.11.2018,CHILDREN'S SERVICES,SUPPORTED FOSTERING SERVICES,"3,527.18",AGENCY FOSTERING,EXTERNAL AGENCIES AND BODIES,2102883796,1927554
02.11.2018,CHILDREN'S SERVICES,SHINING STARS FOSTERING AGENCY LTD,"3,542.68",AGENCY FOSTERING,EXTERNAL AGENCIES AND BODIES,2102883696,1000079431
02.11.2018,CHILDREN'S SERVICES,FUTURES FOR CHILDREN LIMITED,"3,649.94",AGENCY FOSTERING,EXTERNAL AGENCIES AND BODIES,2102883793,1000041984
02.11.2018,CHILDREN'S SERVICES,SELECT FOSTERCARE SERVICES LTD,"3,653.35",AGENCY FOSTERING,EXTERNAL AGENCIES AND BODIES,2102883792,1000079277
02.11.2018,CHILDREN'S SERVICES,WELCOME FOSTER CARE LTD,"3,764.33",AGENCY FOSTERING,EXTERNAL AGENCIES AND BODIES,2102883785,1000074586
02.11.2018,CHILDREN'S SERVICES,WELCOME FOSTER CARE LTD,"3,764.33",AGENCY FOSTERING,EXTERNAL AGENCIES AND BODIES,2102883791,1000074586
02.11.2018,CHILDREN'S SERVICES,ANCHOR FOSTERCARE,"3,799.67",AGENCY FOSTERING,EXTERNAL AGENCIES AND BODIES,2102883788,1000065675
02.11.2018,CHILDREN'S SERVICES,ANCHOR FOSTERCARE,"3,856.71",AGENCY FOSTERING,EXTERNAL AGENCIES AND BODIES,2102883779,1000065675
02.11.2018,CHILDREN'S SERVICES,HEATH FARM FAMILY SOLUTION (FOSTERI,"5,322.08",AGENCY FOSTERING,EXTERNAL AGENCIES AND BODIES,2102883786,11271268
02.11.2018,CHILDREN'S SERVICES,MOSAIC FOSTER CARE LTD,"6,642.68",AGENCY FOSTERING,EXTERNAL AGENCIES AND BODIES,2102883795,1000076259
02.11.2018,CHILDREN'S SERVICES,MOSAIC FOSTER CARE LTD,"6,975.00",AGENCY FOSTERING,EXTERNAL AGENCIES AND BODIES,2102883780,1000076259
02.11.2018,CHILDREN'S SERVICES,MOSAIC FOSTER CARE LTD,"6,975.00",AGENCY FOSTERING,EXTERNAL AGENCIES AND BODIES,2102883783,1000076259
02.11.2018,CHILDREN'S SERVICES,RISE EDUCATION LTD,"1,440.00",ALTERNATIVE PROVISION,EXTERNAL AGENCIES AND BODIES,5902327168,1000077642
02.11.2018,CHILDREN'S SERVICES,SIBLINGS TOGETHER CHARITY,400,CARE GRPS  4 TO 6,OTHER PAYMENTS FOR CLIENTS,5902327134,1000071164
02.11.2018,CHILDREN'S SERVICES,CONTACT PROFESSIONALS,475,CARE GRPS  4 TO 6,OTHER PAYMENTS FOR CLIENTS,5902327196,1000057263
02.11.2018,CHILDREN'S SERVICES,CONTACT PROFESSIONALS,492.06,CARE PRACTICE GROUP SET C,OTHER PAYMENTS FOR CLIENTS,5902327182,1000057263
02.11.2018,CHILDREN'S SERVICES,INTERPRETING DIRECT CO (UK) LTD,"6,075.10",FINANCE,TRANSLATION SERVICES,5902327172,1000070133
02.11.2018,CHILDREN'S SERVICES,INTERPRETING DIRECT CO (UK) LTD,"6,573.00",FINANCE,TRANSLATION SERVICES,5902327158,1000070133
02.11.2018,CHILDREN'S SERVICES,REDACTED PERSONAL DATA,300,FURTHER EDUCATION SUPPORT,CLIENT TRANSPORT,REDACTED,REDACTED
02.11.2018,CHILDREN'S SERVICES,REDACTED PERSONAL DATA,300,FURTHER EDUCATION SUPPORT,CLIENT TRANSPORT,REDACTED,REDACTED
02.11.2018,CHILDREN'S SERVICES,REDACTED PERSONAL DATA,300,FURTHER EDUCATION SUPPORT,CLIENT TRANSPORT,REDACTED,REDACTED
02.11.2018,CHILDREN'S SERVICES,REDACTED PERSONAL DATA,300,FURTHER EDUCATION SUPPORT,CLIENT TRANSPORT,REDACTED,REDACTED
02.11.2018,CHILDREN'S SERVICES,REDACTED PERSONAL DATA,300,FURTHER EDUCATION SUPPORT,CLIENT TRANSPORT,REDACTED,REDACTED
02.11.2018,CHILDREN'S SERVICES,REDACTED PERSONAL DATA,500,FURTHER EDUCATION SUPPORT,OTHER PAYMENTS FOR CLIENTS,REDACTED,REDACTED
02.11.2018,CHILDREN'S SERVICES,REDACTED PERSONAL DATA,500,FURTHER EDUCATION SUPPORT,OTHER PAYMENTS FOR CLIENTS,REDACTED,REDACTED
02.11.2018,CHILDREN'S SERVICES,ISABELLE GRAVENSTEIN,330,MGMT & PARENTING PROG TEAM,GAS,5902327065,1000027424
02.11.2018,CHILDREN'S SERVICES,CITYGLEN LTD,624,S24 CLA,EXTERNAL AGENCIES AND BODIES,5902327150,1000026239
02.11.2018,CHILDREN'S SERVICES,CITYGLEN LTD,"1,170.00",S24 CLA,EXTERNAL AGENCIES AND BODIES,5902327155,1000026239
02.11.2018,CHILDREN'S SERVICES,CITYGLEN LTD,"1,209.00",S24 CLA,EXTERNAL AGENCIES AND BODIES,5902327152,1000026239
02.11.2018,CHILDREN'S SERVICES,CITYGLEN LTD,"1,209.00",S24 CLA,EXTERNAL AGENCIES AND BODIES,5902327154,1000026239
02.11.2018,CHILDREN'S SERVICES,CITYGLEN LTD,"1,350.00",S24 CLA,EXTERNAL AGENCIES AND BODIES,5902327148,1000026239
02.11.2018,CHILDREN'S SERVICES,CITYGLEN LTD,"1,395.00",S24 CLA,EXTERNAL AGENCIES AND BODIES,5902327146,1000026239
02.11.2018,CHILDREN'S SERVICES,HOLMDENE HOUSING LTD,"1,398.57",S24 CLA,EXTERNAL AGENCIES AND BODIES,5902327161,1000032598
02.11.2018,CHILDREN'S SERVICES,CREATING LIFESTYLES LTD,"1,592.00",S24 CLA,EXTERNAL AGENCIES AND BODIES,2102883686,1000075830
02.11.2018,CHILDREN'S SERVICES,CREATING LIFESTYLES LTD,"1,800.00",S24 CLA,EXTERNAL AGENCIES AND BODIES,2102883689,1000075830
02.11.2018,CHILDREN'S SERVICES,CREATING LIFESTYLES LTD,"1,800.00",S24 CLA,EXTERNAL AGENCIES AND BODIES,2102883692,1000075830
02.11.2018,CHILDREN'S SERVICES,CREATING LIFESTYLES LTD,"2,180.00",S24 CLA,EXTERNAL AGENCIES AND BODIES,2102883693,1000075830
02.11.2018,CHILDREN'S SERVICES,CREATING LIFESTYLES LTD,"2,300.00",S24 CLA,EXTERNAL AGENCIES AND BODIES,2102883690,1000075830
02.11.2018,CHILDREN'S SERVICES,CREATING LIFESTYLES LTD,"2,380.00",S24 CLA,EXTERNAL AGENCIES AND BODIES,2102883685,1000075830
02.11.2018,CHILDREN'S SERVICES,CREATING LIFESTYLES LTD,"2,667.40",S24 CLA,EXTERNAL AGENCIES AND BODIES,2102883691,1000075830
02.11.2018,CHILDREN'S SERVICES,CREATING LIFESTYLES LTD,"2,780.00",S24 CLA,EXTERNAL AGENCIES AND BODIES,2102883695,1000075830
02.11.2018,CHILDREN'S SERVICES,HEXAGON HOUSING ASSOCIATION LTD,"2,786.59",S24 CLA,EXTERNAL AGENCIES AND BODIES,5902327160,1000056905
02.11.2018,CHILDREN'S SERVICES,SILVER BIRCH CARE LTD,"3,000.00",S24 CLA,OTHER PAYMENTS FOR CLIENTS,5902327169,1000076525
02.11.2018,CHILDREN'S SERVICES,SILVER BIRCH CARE LTD,"3,100.00",S24 CLA,OTHER PAYMENTS FOR CLIENTS,5902327164,1000076525
02.11.2018,CHILDREN'S SERVICES,CREATING LIFESTYLES LTD,"4,168.00",S24 CLA,EXTERNAL AGENCIES AND BODIES,2102883694,1000075830
02.11.2018,CHILDREN'S SERVICES,REDACTED PERSONAL DATA,406,SCH TRANS - CONTRACT COST,OTHER PAYMENTS FOR CLIENTS,REDACTED,REDACTED
02.11.2018,CHILDREN'S SERVICES,REDACTED PERSONAL DATA,540,SCH TRANS - CONTRACT COST,OTHER PAYMENTS FOR CLIENTS,REDACTED,REDACTED
02.11.2018,CHILDREN'S SERVICES,REDACTED PERSONAL DATA,800,SCH TRANS - CONTRACT COST,OTHER PAYMENTS FOR CLIENTS,REDACTED,REDACTED
02.11.2018,CHILDREN'S SERVICES,REDACTED PERSONAL DATA,800,SCH TRANS - CONTRACT COST,OTHER PAYMENTS FOR CLIENTS,REDACTED,REDACTED
02.11.2018,CHILDREN'S SERVICES,REDACTED PERSONAL DATA,"1,100.00",SCH TRANS - CONTRACT COST,OTHER PAYMENTS FOR CLIENTS,REDACTED,REDACTED
02.11.2018,CHILDREN'S SERVICES,REDACTED PERSONAL DATA,"1,248.00",SCH TRANS - CONTRACT COST,OTHER PAYMENTS FOR CLIENTS,REDACTED,REDACTED
02.11.2018,CHILDREN'S SERVICES,REDACTED PERSONAL DATA,"1,760.00",SCH TRANS - CONTRACT COST,OTHER PAYMENTS FOR CLIENTS,REDACTED,REDACTED
02.11.2018,CHILDREN'S SERVICES,REDACTED PERSONAL DATA,"1,976.00",SCH TRANS - CONTRACT COST,OTHER PAYMENTS FOR CLIENTS,REDACTED,REDACTED
02.11.2018,CHILDREN'S SERVICES,REDACTED PERSONAL DATA,"2,616.00",SCH TRANS - CONTRACT COST,OTHER PAYMENTS FOR CLIENTS,REDACTED,REDACTED
02.11.2018,CHILDREN'S SERVICES,REDACTED PERSONAL DATA,"2,820.00",SCH TRANS - CONTRACT COST,OTHER PAYMENTS FOR CLIENTS,REDACTED,REDACTED
02.11.2018,CHILDREN'S SERVICES,REDACTED PERSONAL DATA,"9,126.00",SCH TRANS - CONTRACT COST,OTHER PAYMENTS FOR CLIENTS,REDACTED,REDACTED
02.11.2018,CHILDREN'S SERVICES,LOCAL GOVERNMENT ASSOCIATION,398,SCHOOLS-HR TRADED SERVICE,TRAINING,5902327080,1000017363
02.11.2018,CHILDREN'S SERVICES,SILVER BIRCH CARE LTD,257.14,SEMI INDEPENDENT,OTHER PAYMENTS FOR CLIENTS,5902327171,1000076525
02.11.2018,CHILDREN'S SERVICES,NETPEX LTD CORPORATE SERVICES,300,SEMI INDEPENDENT,OTHER PAYMENTS FOR CLIENTS,2102883673,1000076073
02.11.2018,CHILDREN'S SERVICES,REDACTED PERSONAL DATA,300,SEMI INDEPENDENT,OTHER PAYMENTS FOR CLIENTS,REDACTED,REDACTED
02.11.2018,CHILDREN'S SERVICES,REDACTED PERSONAL DATA,300,SEMI INDEPENDENT,OTHER PAYMENTS FOR CLIENTS,REDACTED,REDACTED
02.11.2018,CHILDREN'S SERVICES,HOLMDENE HOUSING LTD,"1,681.43",SEMI INDEPENDENT,EXTERNAL AGENCIES AND BODIES,5902327161,1000032598
02.11.2018,CHILDREN'S SERVICES,CREATING LIFESTYLES LTD,"2,168.00",SEMI INDEPENDENT,EXTERNAL AGENCIES AND BODIES,2102883677,1000075830
02.11.2018,CHILDREN'S SERVICES,CREATING LIFESTYLES LTD,"3,540.00",SEMI INDEPENDENT,EXTERNAL AGENCIES AND BODIES,2102883684,1000075830
02.11.2018,CHILDREN'S SERVICES,NETPEX LTD CORPORATE SERVICES,"3,596.51",SEMI INDEPENDENT,EXTERNAL AGENCIES AND BODIES,2102883678,1000076073
02.11.2018,CHILDREN'S SERVICES,CREATING LIFESTYLES LTD,"4,232.00",SEMI INDEPENDENT,EXTERNAL AGENCIES AND BODIES,2102883683,1000075830
02.11.2018,CHILDREN'S SERVICES,NETPEX LTD CORPORATE SERVICES,"5,678.70",SEMI INDEPENDENT,EXTERNAL AGENCIES AND BODIES,2102883679,1000076073
02.11.2018,CHILDREN'S SERVICES,NETPEX LTD CORPORATE SERVICES,"5,867.99",SEMI INDEPENDENT,EXTERNAL AGENCIES AND BODIES,2102883676,1000076073
02.11.2018,CHILDREN'S SERVICES,NETPEX LTD CORPORATE SERVICES,"5,867.99",SEMI INDEPENDENT,EXTERNAL AGENCIES AND BODIES,2102883682,1000076073
02.11.2018,CHILDREN'S SERVICES,CREATING LIFESTYLES LTD,"13,240.00",SEMI INDEPENDENT,EXTERNAL AGENCIES AND BODIES,2102883681,1000075830
02.11.2018,CHILDREN'S SERVICES,EAGLES FLIGHT MONTESSORI NURSERY,795,SPECIAL GUARDIANSHIP,EXTERNAL AGENCIES AND BODIES,5902327166,1000079087
02.11.2018,CHILDREN'S SERVICES,REDACTED PERSONAL DATA,"7,987.37",SPECIAL GUARDIANSHIP,EXTERNAL AGENCIES AND BODIES,REDACTED,REDACTED
02.11.2018,CHILDREN'S SERVICES,TUKE SCHOOL,"1,750.00",SPORTS FUNDING,SCHOOLS CAPITATION,2102883435,5001000097
02.11.2018,CHILDREN'S SERVICES,BETHLEM & MAUDSLEY HOSPITAL SCHOOL,"3,500.00",SPORTS FUNDING,SCHOOLS CAPITATION,2102883432,5001000010
02.11.2018,CHILDREN'S SERVICES,EVELINA HOSPITAL SCHOOL,"9,503.00",SPORTS FUNDING,SCHOOLS CAPITATION,2102883431,5001000031
02.11.2018,CHILDREN'S SERVICES,BEORMUND PRIMARY SCHOOL,"9,543.00",SPORTS FUNDING,SCHOOLS CAPITATION,2102883434,5001000008
02.11.2018,CHILDREN'S SERVICES,CHERRY GARDEN SCHOOL,"9,590.00",SPORTS FUNDING,SCHOOLS CAPITATION,2102883436,5001000020
02.11.2018,CHILDREN'S SERVICES,HAYMERLE SCHOOL,"9,736.00",SPORTS FUNDING,SCHOOLS CAPITATION,2102883433,5001000045
02.11.2018,CHILDREN'S SERVICES,ST JUDES CHURCH OF ENGLAND PRIMARY,"9,853.00",SPORTS FUNDING,SCHOOLS CAPITATION,2102883417,5001000019
02.11.2018,CHILDREN'S SERVICES,ST JOSEPHS CATHOLIC INFANTS SCHOOL,"9,917.00",SPORTS FUNDING,SCHOOLS CAPITATION,2102883428,5001000018
02.11.2018,CHILDREN'S SERVICES,ST GEORGES CE SCHOOL,"10,068.00",SPORTS FUNDING,SCHOOLS CAPITATION,2102883409,5001000069
02.11.2018,CHILDREN'S SERVICES,VICTORY SCHOOL,"10,133.00",SPORTS FUNDING,SCHOOLS CAPITATION,2102883397,5001000098
02.11.2018,CHILDREN'S SERVICES,TOWNSEND PRIMARY SCHOOL,"10,255.00",SPORTS FUNDING,SCHOOLS CAPITATION,2102883396,5001000096
02.11.2018,CHILDREN'S SERVICES,ST JOHNS WALWORTH CE SCHOOL,"10,278.00",SPORTS FUNDING,SCHOOLS CAPITATION,2102883413,5001000072
02.11.2018,CHILDREN'S SERVICES,TOWER BRIDGE PRIMARY SCHOOL,"10,278.00",SPORTS FUNDING,SCHOOLS CAPITATION,2102883395,5001000095
02.11.2018,CHILDREN'S SERVICES,CRAMPTON PRIMARY SCHOOL,"10,284.00",SPORTS FUNDING,SCHOOLS CAPITATION,2102883376,5001000023
02.11.2018,CHILDREN'S SERVICES,PETER HILLS CE SCHOOL,"10,284.00",SPORTS FUNDING,SCHOOLS CAPITATION,2102883419,5001000053
02.11.2018,CHILDREN'S SERVICES,ST JOSEPHS CATHOLIC PRIMARY SCHOOL,"10,302.00",SPORTS FUNDING,SCHOOLS CAPITATION,2102883415,5001000078
02.11.2018,CHILDREN'S SERVICES,SNOWSFIELDS PRIMARY SCHOOL,"10,319.00",SPORTS FUNDING,SCHOOLS CAPITATION,2102883393,5001000061
02.11.2018,CHILDREN'S SERVICES,ST JAMES THE GREAT RC SCHOOL,"10,319.00",SPORTS FUNDING,SCHOOLS CAPITATION,2102883407,5001000071
02.11.2018,CHILDREN'S SERVICES,ST PETERS CE SCHOOL,"10,319.00",SPORTS FUNDING,SCHOOLS CAPITATION,2102883421,5001000083
02.11.2018,CHILDREN'S SERVICES,CATHEDRAL SCHOOL OF,"10,325.00",SPORTS FUNDING,SCHOOLS CAPITATION,2102883422,5001000088
02.11.2018,CHILDREN'S SERVICES,DULWICH VILLAGE CE INFANTS SCHOOL,"10,337.00",SPORTS FUNDING,SCHOOLS CAPITATION,2102883405,5001000027
02.11.2018,CHILDREN'S SERVICES,FRIARS PRIMARY SCHOOL,"10,337.00",SPORTS FUNDING,SCHOOLS CAPITATION,2102883429,5001000033
02.11.2018,CHILDREN'S SERVICES,ST JOHNS RC PRIMARY SCHOOL,"10,348.00",SPORTS FUNDING,SCHOOLS CAPITATION,2102883423,5001000075
02.11.2018,CHILDREN'S SERVICES,PILGRIM'S WAY PRIMARY SCHOOL,"10,366.00",SPORTS FUNDING,SCHOOLS CAPITATION,2102883399,5001000054
02.11.2018,CHILDREN'S SERVICES,BOUCHER C OF E PRIMARY SCHOOL,"10,372.00",SPORTS FUNDING,SCHOOLS CAPITATION,2102883404,5001000011
02.11.2018,CHILDREN'S SERVICES,ST JOSEPHS CATHOLIC SCHOOL (0339),"10,383.00",SPORTS FUNDING,SCHOOLS CAPITATION,2102883416,5001000076
02.11.2018,CHILDREN'S SERVICES,ST MARY MAGDALENE CE SCHOOL,"10,436.00",SPORTS FUNDING,SCHOOLS CAPITATION,2102883418,5001000080
02.11.2018,CHILDREN'S SERVICES,HOLLYDALE PRIMARY SCHOOL,"10,448.00",SPORTS FUNDING,SCHOOLS CAPITATION,2102883382,5001000036
02.11.2018,CHILDREN'S SERVICES,BELLENDEN PRIMARY SCHOOL,"10,518.00",SPORTS FUNDING,SCHOOLS CAPITATION,2102883371,5001000007
02.11.2018,CHILDREN'S SERVICES,ST GEORGES RC SCHOOL,"10,623.00",SPORTS FUNDING,SCHOOLS CAPITATION,2102883410,5001000068
02.11.2018,CHILDREN'S SERVICES,ST JOSEPHS RC JUNIOR  SCHOOL (046),"10,716.00",SPORTS FUNDING,SCHOOLS CAPITATION,2102883427,5001000017
02.11.2018,CHILDREN'S SERVICES,DULWICH WOOD PRIMARY SCHOOL,"10,768.00",SPORTS FUNDING,SCHOOLS CAPITATION,2102883387,5001000042
02.11.2018,CHILDREN'S SERVICES,COMBER GROVE PRIMARY SCHOOL,"10,774.00",SPORTS FUNDING,SCHOOLS CAPITATION,2102883375,5001000022
02.11.2018,CHILDREN'S SERVICES,ST PAULS CE SCHOOL,"10,803.00",SPORTS FUNDING,SCHOOLS CAPITATION,2102883420,5001000082
02.11.2018,CHILDREN'S SERVICES,RIVERSIDE PRIMARY SCHOOL,"10,809.00",SPORTS FUNDING,SCHOOLS CAPITATION,2102883390,5001000056
02.11.2018,CHILDREN'S SERVICES,CHARLOTTE  SHARMAN PRIMARY SCHOOL,"10,885.00",SPORTS FUNDING,SCHOOLS CAPITATION,2102883430,5001000016
02.11.2018,CHILDREN'S SERVICES,ST JOSEPHS RC PRIMARY SCHOOL (014B),"10,891.00",SPORTS FUNDING,SCHOOLS CAPITATION,2102883414,5001000077
02.11.2018,CHILDREN'S SERVICES,ROBERT BROWNING PRIMARY SCHOOL,"10,903.00",SPORTS FUNDING,SCHOOLS CAPITATION,2102883391,5001000057
02.11.2018,CHILDREN'S SERVICES,RYE OAK PRIMARY SCHOOL,"11,031.00",SPORTS FUNDING,SCHOOLS CAPITATION,2102883424,5001000059
02.11.2018,CHILDREN'S SERVICES,ALBION PRIMARY SCHOOL,"11,037.00",SPORTS FUNDING,SCHOOLS CAPITATION,2102883370,5001000000
02.11.2018,CHILDREN'S SERVICES,ENGLISH MARTYRS RC PRIMARY SCHOOL,"11,060.00",SPORTS FUNDING,SCHOOLS CAPITATION,2102883406,5001000030
02.11.2018,CHILDREN'S SERVICES,ST FRANCESCA CABRINI PRIMARY SCHOOL,"11,083.00",SPORTS FUNDING,SCHOOLS CAPITATION,2102883425,5001000065
02.11.2018,CHILDREN'S SERVICES,GRANGE PRIMARY SCHOOL,"11,188.00",SPORTS FUNDING,SCHOOLS CAPITATION,2102883380,5001000029
02.11.2018,CHILDREN'S SERVICES,KEYWORTH PRIMARY SCHOOL,"11,194.00",SPORTS FUNDING,SCHOOLS CAPITATION,2102883386,5001000041
02.11.2018,CHILDREN'S SERVICES,MICHAEL FARADAY PRIMARY SCHOOL,"11,229.00",SPORTS FUNDING,SCHOOLS CAPITATION,2102883389,5001000048
02.11.2018,CHILDREN'S SERVICES,ST ANTHONYS RC SCHOOL,"11,241.00",SPORTS FUNDING,SCHOOLS CAPITATION,2102883426,5001000064
02.11.2018,CHILDREN'S SERVICES,ALFRED SALTER PRIMARY SCHOOL,"11,270.00",SPORTS FUNDING,SCHOOLS CAPITATION,2102883400,5001000005
02.11.2018,CHILDREN'S SERVICES,ILDERTON PRIMARY SCHOOL,"11,270.00",SPORTS FUNDING,SCHOOLS CAPITATION,2102883383,5001000037
02.11.2018,CHILDREN'S SERVICES,HEBER PRIMARY SCHOOL,"11,299.00",SPORTS FUNDING,SCHOOLS CAPITATION,2102883381,5001000035
02.11.2018,CHILDREN'S SERVICES,COBOURG PRIMARY SCHOOL,"11,317.00",SPORTS FUNDING,SCHOOLS CAPITATION,2102883374,5001000021
02.11.2018,CHILDREN'S SERVICES,CHARLES DICKENS PRIMARY SCHOOL,"11,328.00",SPORTS FUNDING,SCHOOLS CAPITATION,2102883373,5001000015
02.11.2018,CHILDREN'S SERVICES,ST FRANCIS'S RC PRIMARY SCHOOL,"11,334.00",SPORTS FUNDING,SCHOOLS CAPITATION,2102883408,5001000067
02.11.2018,CHILDREN'S SERVICES,LYNDHURST PRIMARY SCHOOL,"11,340.00",SPORTS FUNDING,SCHOOLS CAPITATION,2102883388,5001000043
02.11.2018,CHILDREN'S SERVICES,OLIVER GOLDSMITH PRIMARY SCHOOL,"11,358.00",SPORTS FUNDING,SCHOOLS CAPITATION,2102883401,5001000051
02.11.2018,CHILDREN'S SERVICES,SOUTHWARK PARK PRIMARY SCHOOL,"11,363.00",SPORTS FUNDING,SCHOOLS CAPITATION,2102883394,5001000062
02.11.2018,CHILDREN'S SERVICES,DOG KENNEL HILL PRIMARY SCHOOL,"11,387.00",SPORTS FUNDING,SCHOOLS CAPITATION,2102883378,5001000025
02.11.2018,CHILDREN'S SERVICES,JOHN RUSKIN PRIMARY SCHOOL,"11,439.00",SPORTS FUNDING,SCHOOLS CAPITATION,2102883385,5001000040
02.11.2018,CHILDREN'S SERVICES,BRUNSWICK PARK PRIMARY SCHOOL,"11,498.00",SPORTS FUNDING,SCHOOLS CAPITATION,2102883403,5001000013
02.11.2018,CHILDREN'S SERVICES,ST JOHNS & ST CLEMENTS CE SCHOOL,"11,521.00",SPORTS FUNDING,SCHOOLS CAPITATION,2102883412,5001000073
02.11.2018,CHILDREN'S SERVICES,ROTHERHITHE PRIMARY SCHOOL,"11,568.00",SPORTS FUNDING,SCHOOLS CAPITATION,2102883392,5001000058
02.11.2018,CHILDREN'S SERVICES,CAMELOT PRIMARY SCHOOL,"11,655.00",SPORTS FUNDING,SCHOOLS CAPITATION,2102883372,5001000014
02.11.2018,CHILDREN'S SERVICES,IVYDALE PRIMARY SCHOOL,"11,725.00",SPORTS FUNDING,SCHOOLS CAPITATION,2102883384,5001000038
02.11.2018,CHILDREN'S SERVICES,CRAWFORD PRIMARY SCHOOL,"11,836.00",SPORTS FUNDING,SCHOOLS CAPITATION,2102883377,5001000024
02.11.2018,CHILDREN'S SERVICES,ST JAMES CE SCHOOL,"11,853.00",SPORTS FUNDING,SCHOOLS CAPITATION,2102883411,5001000070
02.11.2018,CHILDREN'S SERVICES,PHOENIX PRIMARY SCHOOL,"11,999.00",SPORTS FUNDING,SCHOOLS CAPITATION,2102883398,5001000032
02.11.2018,CHILDREN'S SERVICES,BESSEMER GRANGE PRIMARY SCHOOL,"12,227.00",SPORTS FUNDING,SCHOOLS CAPITATION,2102883402,5001000009
02.11.2018,CHILDREN'S SERVICES,GOODRICH PRIMARY SCHOOL,"12,233.00",SPORTS FUNDING,SCHOOLS CAPITATION,2102883379,5001000028
02.11.2018,CHILDREN'S SERVICES,NATIONAL FOSTERING AGENCY,300,STAYING PUT,EXTERNAL AGENCIES AND BODIES,5902327144,1000038868
02.11.2018,CHILDREN'S SERVICES,TAYLOR CONWAY LTD,"2,250.00",TACKLING TROUBLED FAMILIES,EXTERNAL AGENCIES AND BODIES,5902327128,1000080955
02.11.2018,CHILDREN'S SERVICES,HOLMDENE HOUSING LTD,780,UASC SECTION 24,EXTERNAL AGENCIES AND BODIES,2102883687,1000032598
02.11.2018,CHILDREN'S SERVICES,REDACTED PERSONAL DATA,"1,100.00",UASC SECTION 24,OTHER PAYMENTS FOR CLIENTS,REDACTED,REDACTED
02.11.2018,CHILDREN'S SERVICES,CREATING LIFESTYLES LTD,"1,800.00",UASC SECTION 24,EXTERNAL AGENCIES AND BODIES,2102883688,1000075830
02.11.2018,CHILDREN'S SERVICES,REDACTED PERSONAL DATA,300,UNIVERSITY SUPPORT,CLIENT TRANSPORT,REDACTED,REDACTED
02.11.2018,CHILDREN'S SERVICES,REDACTED PERSONAL DATA,"2,450.00",UNIVERSITY SUPPORT,OTHER PAYMENTS FOR CLIENTS,REDACTED,REDACTED
02.11.2018,COMMISSIONING & CENTRAL,EDGE TRAINING LTD,"2,775.00",ASW - PROFESSIONAL DEVELOPMENT,TRAINING,5902326607,1000057249
02.11.2018,COMMUNITIES,CGL,"41,411.00",ADULT SM SERVICE,OTHER CONTRACTORS,5902327232,1000064197
02.11.2018,COMMUNITIES,CGL,"233,297.81",ADULT SM SERVICE,OTHER CONTRACTORS,5902327101,1000064197
02.11.2018,COMMUNITIES,ABOUT THIS VAN,"2,100.83",COMMUNITY COUNCILS TEAM,DELIVERY CHARGES,5902321628,1000039842
02.11.2018,ENVIRONMENT AND LEISURE,THOMAS FORD AND PARTNERS,500,CAPITAL PS (LEISURE),CONSTRUCTION FEES  - EXTERNAL,5902326293,1000037686
02.11.2018,ENVIRONMENT AND LEISURE,THOMAS FORD AND PARTNERS,"3,280.00",CAPITAL PS (LEISURE),CONSTRUCTION FEES  - EXTERNAL,5902326297,1000037686
02.11.2018,ENVIRONMENT AND LEISURE,CONWAY AECOM LTD,"28,509.76",CAPITAL PS (LEISURE),CONSTRUCTION,5902327102,1000071205
02.11.2018,ENVIRONMENT AND LEISURE,SURVEY SUPPLIES LTD,"42,397.50",CAPITAL PS (LEISURE),CONSTR'N SUB CONTRACT - NON CERTIFICATED,5902327040,1000081244
02.11.2018,ENVIRONMENT DIRECTORATE,PROJECT CENTRE LTD,"23,657.05",BUSINESS PERMITS,OP LEASE/HIRE CHARGES:PLANT/EQUIP/FURNIT,5902327228,1000072621
02.11.2018,ENVIRONMENT DIRECTORATE,LEX AUTOLEASE,-886,CAR LEASING CTRL A/C,VEHICLE LEASING CHARGES,5902327151,1000069462
02.11.2018,ENVIRONMENT DIRECTORATE,LEX AUTOLEASE,"21,240.92",CAR LEASING CTRL A/C,VEHICLE LEASING CHARGES,5902327188,1000069462
02.11.2018,ENVIRONMENT DIRECTORATE,LEX AUTOLEASE,"21,586.11",CAR LEASING CTRL A/C,VEHICLE LEASING CHARGES,5902327188,1000069462
02.11.2018,ENVIRONMENT DIRECTORATE,DAWSON RENTALS BUS & COACH LTD,335,COMMERCIAL VEH CTRL A/C,HIRED VEHICLES,5902327140,1000042174
02.11.2018,ENVIRONMENT DIRECTORATE,SCOT GROUP LTD,350.56,COMMERCIAL VEH CTRL A/C,HIRED VEHICLES,5902327074,1709512
02.11.2018,ENVIRONMENT DIRECTORATE,SCOT GROUP LTD,350.56,COMMERCIAL VEH CTRL A/C,HIRED VEHICLES,5902327076,1709512
02.11.2018,ENVIRONMENT DIRECTORATE,SCOT GROUP LTD,350.56,COMMERCIAL VEH CTRL A/C,HIRED VEHICLES,5902327077,1709512
02.11.2018,ENVIRONMENT DIRECTORATE,SCOT GROUP LTD,378.56,COMMERCIAL VEH CTRL A/C,HIRED VEHICLES,5902327078,1709512
02.11.2018,ENVIRONMENT DIRECTORATE,SCOT GROUP LTD,385.56,COMMERCIAL VEH CTRL A/C,HIRED VEHICLES,5902327075,1709512
02.11.2018,ENVIRONMENT DIRECTORATE,ACCESS HIRE NATIONWIDE LTD,727.14,COMMERCIAL VEH CTRL A/C,HIRED VEHICLES,5902327129,1000048527
02.11.2018,ENVIRONMENT DIRECTORATE,GULLIVERS TRUCK HIRE LTD,915,COMMERCIAL VEH CTRL A/C,HIRED VEHICLES,5902327207,1000052656
02.11.2018,ENVIRONMENT DIRECTORATE,GULLIVERS TRUCK HIRE LTD,915,COMMERCIAL VEH CTRL A/C,HIRED VEHICLES,5902327211,1000052656
02.11.2018,ENVIRONMENT DIRECTORATE,ACCESS HIRE NATIONWIDE LTD,"1,264.29",COMMERCIAL VEH CTRL A/C,HIRED VEHICLES,5902327136,1000048527
02.11.2018,ENVIRONMENT DIRECTORATE,ACCESS HIRE NATIONWIDE LTD,"1,306.43",COMMERCIAL VEH CTRL A/C,HIRED VEHICLES,5902327142,1000048527
02.11.2018,ENVIRONMENT DIRECTORATE,ACCESS HIRE NATIONWIDE LTD,"1,306.43",COMMERCIAL VEH CTRL A/C,HIRED VEHICLES,5902327145,1000048527
02.11.2018,ENVIRONMENT DIRECTORATE,LEX AUTOLEASE,285,FLEET INSURANCE WORKS,TRANSPORT INSURANCE COSTS,5902327195,1000069462
02.11.2018,ENVIRONMENT DIRECTORATE,LEX AUTOLEASE,296.6,FLEET INSURANCE WORKS,TRANSPORT INSURANCE COSTS,5902327200,1000069462
02.11.2018,ENVIRONMENT DIRECTORATE,M H COACHWORKS & SONS LTD,478.56,FLEET INSURANCE WORKS,TRANSPORT INSURANCE COSTS,5902327066,1000033495
02.11.2018,ENVIRONMENT DIRECTORATE,M H COACHWORKS & SONS LTD,590,FLEET INSURANCE WORKS,TRANSPORT INSURANCE COSTS,5902327060,1000033495
02.11.2018,ENVIRONMENT DIRECTORATE,M H COACHWORKS & SONS LTD,752.65,FLEET INSURANCE WORKS,TRANSPORT INSURANCE COSTS,5902327069,1000033495
02.11.2018,ENVIRONMENT DIRECTORATE,M H COACHWORKS & SONS LTD,756,FLEET INSURANCE WORKS,TRANSPORT INSURANCE COSTS,5902327059,1000033495
02.11.2018,ENVIRONMENT DIRECTORATE,M H COACHWORKS & SONS LTD,867.06,FLEET INSURANCE WORKS,TRANSPORT INSURANCE COSTS,5902327061,1000033495
02.11.2018,ENVIRONMENT DIRECTORATE,M H COACHWORKS & SONS LTD,894,FLEET INSURANCE WORKS,TRANSPORT INSURANCE COSTS,5902327050,1000033495
02.11.2018,ENVIRONMENT DIRECTORATE,M H COACHWORKS & SONS LTD,922.43,FLEET INSURANCE WORKS,TRANSPORT INSURANCE COSTS,5902327068,1000033495
02.11.2018,ENVIRONMENT DIRECTORATE,M H COACHWORKS & SONS LTD,"1,129.15",FLEET INSURANCE WORKS,TRANSPORT INSURANCE COSTS,5902327057,1000033495
02.11.2018,ENVIRONMENT DIRECTORATE,M H COACHWORKS & SONS LTD,"1,159.29",FLEET INSURANCE WORKS,TRANSPORT INSURANCE COSTS,5902327064,1000033495
02.11.2018,ENVIRONMENT DIRECTORATE,M H COACHWORKS & SONS LTD,"1,188.36",FLEET INSURANCE WORKS,TRANSPORT INSURANCE COSTS,5902327052,1000033495
02.11.2018,ENVIRONMENT DIRECTORATE,M H COACHWORKS & SONS LTD,"1,256.00",FLEET INSURANCE WORKS,TRANSPORT INSURANCE COSTS,5902327062,1000033495
02.11.2018,ENVIRONMENT DIRECTORATE,M H COACHWORKS & SONS LTD,"1,310.40",FLEET INSURANCE WORKS,TRANSPORT INSURANCE COSTS,5902327048,1000033495
02.11.2018,ENVIRONMENT DIRECTORATE,M H COACHWORKS & SONS LTD,"1,353.58",FLEET INSURANCE WORKS,TRANSPORT INSURANCE COSTS,5902327053,1000033495
02.11.2018,ENVIRONMENT DIRECTORATE,M H COACHWORKS & SONS LTD,"1,934.71",FLEET INSURANCE WORKS,TRANSPORT INSURANCE COSTS,5902327054,1000033495
02.11.2018,ENVIRONMENT DIRECTORATE,M H COACHWORKS & SONS LTD,"2,036.43",FLEET INSURANCE WORKS,TRANSPORT INSURANCE COSTS,5902327067,1000033495
02.11.2018,ENVIRONMENT DIRECTORATE,M H COACHWORKS & SONS LTD,"2,202.96",FLEET INSURANCE WORKS,TRANSPORT INSURANCE COSTS,5902327045,1000033495
02.11.2018,ENVIRONMENT DIRECTORATE,M H COACHWORKS & SONS LTD,"3,996.51",FLEET INSURANCE WORKS,TRANSPORT INSURANCE COSTS,5902327056,1000033495
02.11.2018,ENVIRONMENT DIRECTORATE,BELL BRUSH COMPANY,318,MANAGEMENT TEAM,MATERIALS,5902327167,1259776
02.11.2018,ENVIRONMENT DIRECTORATE,FUTURE GARMENTS LTD T/A EUROX,"3,643.59",MANAGEMENT TEAM,"CLOTHING, UNIFORMS & LAUNDRY",5902326279,1000080983
02.11.2018,ENVIRONMENT DIRECTORATE,TFL TELESALES / OYSTER FULFILMENT,400,PROJECT SUPPORT,PUBLIC TRANSPORT,5902327079,1000059727
02.11.2018,ENVIRONMENT DIRECTORATE,NPOWER LTD,268.14,STREET TRADING A/C,ELECTRICITY,5902327217,1000078994
02.11.2018,ENVIRONMENT DIRECTORATE,NPOWER LTD,"1,038.87",STREET TRADING A/C,ELECTRICITY,5902327091,1000078994
02.11.2018,ENVIRONMENT DIRECTORATE,TRACSIS TRAFFIC DATA LTD,"5,825.00",TEMPORARY TRAFFIC ORDERS,OTHER CONTRACTORS,5902326177,1000079382
02.11.2018,HOUSING GENERAL FUND,C & C BUILDERS LTD,410,CAPITAL PS (HOUSING GF),CAPITAL GRANTS,5902327115,1000079100
02.11.2018,HOUSING GENERAL FUND,FRANKHAM CONSULTANCY GROUP LTD,617.2,CAPITAL PS (HOUSING GF),CAPITAL GRANTS,5902327198,1000043952
02.11.2018,HOUSING GENERAL FUND,C & C BUILDERS LTD,"7,305.00",CAPITAL PS (HOUSING GF),CAPITAL GRANTS,5902327115,1000079100
02.11.2018,HOUSING HRA,A & E ELKINS LTD,"4,247.77",CAPITAL PS (HRA),CONSTRUCTION MAIN CONTRACT -CERTIFICATED,2102883289,4012501
02.11.2018,HOUSING HRA,A & E ELKINS LTD,"96,065.86",CAPITAL PS (HRA),CONSTRUCTION MAIN CONTRACT -CERTIFICATED,2102883290,4012501
02.11.2018,HOUSING STRATEGY AND OPTIONS,REDACTED PERSONAL DATA,829.25,HOMELESS PROJECTS,GRANTS,REDACTED,REDACTED
02.11.2018,HOUSING STRATEGY AND OPTIONS,CARIDON LANDLORD SOLUTIONS LTD,"1,261.16",HOMELESS PROJECTS,GRANTS,5902327044,1000080555
02.11.2018,HOUSING STRATEGY AND OPTIONS,CARIDON LANDLORD SOLUTIONS LTD,"1,261.16",HOMELESS PROJECTS,GRANTS,5902327051,1000080555
02.11.2018,HOUSING STRATEGY AND OPTIONS,CARIDON LANDLORD SOLUTIONS LTD,"1,265.22",HOMELESS PROJECTS,GRANTS,5902327036,1000080555
02.11.2018,HOUSING STRATEGY AND OPTIONS,CARIDON LANDLORD SOLUTIONS LTD,"1,265.22",HOMELESS PROJECTS,GRANTS,5902327047,1000080555
02.11.2018,LEISURE DIRECTORATE,ERENS,334.4,CANADA WATER LIBRARY,BOOKS & PUBLICATIONS,5902327021,11209254
02.11.2018,LEISURE DIRECTORATE,ERENS,356.5,CANADA WATER LIBRARY,BOOKS & PUBLICATIONS,5902327012,11209254
02.11.2018,LEISURE DIRECTORATE,NPOWER LTD,304.46,CEMETERIES,ELECTRICITY,5902327114,1000078994
02.11.2018,LEISURE DIRECTORATE,CASTLE WATER LTD,869.26,CEMETERIES,WATER,5902327109,1000078867
02.11.2018,LEISURE DIRECTORATE,EDF ENERGY PLC,915.23,CEMETERIES,ELECTRICITY,5902327085,1008746
02.11.2018,LEISURE DIRECTORATE,ANDREW WALLER,299.5,EVENTS HIRES,PROFESSIONAL FEES,5902327107,1000055527
02.11.2018,LEISURE DIRECTORATE,HANDS FREE COMPUTING LTD,"1,280.00",LIBARIES DEVELOPMENT,TRAINING,5902327082,1000022298
02.11.2018,LEISURE DIRECTORATE,CASTLE WATER LTD,940.05,SDM BUDGET,WATER,5902326908,1000078867
02.11.2018,MODERNISATION HGF,BUILDING MONITORING SERVICES LTD,"1,397.51",160 TOOLEY ST.,BUILDING R&M,5902327127,1000063798
02.11.2018,MODERNISATION HGF,SHEFFIELD HALLAM UNIVERSITY,"4,360.00",CFM OPERATIONAL BUDGET,TRAINING,5902327100,1000007214
02.11.2018,MODERNISATION HGF,VIRGIN MEDIA,256.89,IT MANAGEMENT,DATA COMMUNICATIONS,5902327015,1000026457
02.11.2018,MODERNISATION HGF,VIRGIN MEDIA,572.09,IT MANAGEMENT,DATA COMMUNICATIONS,5902327038,1000026457
02.11.2018,MODERNISATION HGF,VIRGIN MEDIA,757.29,IT MANAGEMENT,DATA COMMUNICATIONS,5902327041,1000026457
02.11.2018,MODERNISATION HGF,VIRGIN MEDIA,"10,912.08",IT MANAGEMENT,DATA COMMUNICATIONS,5902327011,1000026457
02.11.2018,MODERNISATION HGF,PULSE CORPORATION LTD,"5,495.00",REPAIR AND MAINTENANCE SERVICES,HARDWARE,5902327147,1000072911
02.11.2018,PLANNING AND TRANSPORT,SOUTHWARK NEWSPAPER LTD,336,DEVELOPMENT CONTROL ADMINSTRATION,MARKETING & PUBLICITY SERVICES,5902327105,1556957
02.11.2018,PROPERTY SERVICES,KENT COUNTY COUNCIL - LASER,256.7,CPHA SURPLUS,GAS,5902327002,1000012926
02.11.2018,PROPERTY SERVICES,CIPFA BUSINESS LTD,975,PROPERTY SERVICES,SUBSCRIPTIONS,5902327131,1000024688
02.11.2018,PROPERTY SERVICES,NPOWER LTD,362.58,VCS MANAGED MSC BUILDILNGS,ELECTRICITY,5902327209,1000078994
02.11.2018,PUBLIC HEALTH,CRYSTAL PALACE COMM DEV TRUST,600,PLACE & HEALTH IMPROVEMENT,EXTERNAL AGENCIES AND BODIES,5902327139,1000054200
02.11.2018,REGENERATION,WORKMAN LLP,"1,200.00",14-20 SHAND STREET,PROFESSIONAL FEES,2102883360,1000063692
02.11.2018,REGENERATION,WORKMAN LLP,350,22 SHAND STREET,PROFESSIONAL FEES,2102883358,1000063692
02.11.2018,REGENERATION,WORKMAN LLP,"-1,996.24",7 HOLYROOD STREET,SERVICE CHARGES,2102880757,1000063692
02.11.2018,REGENERATION,WORKMAN LLP,"-1,203.21",7 HOLYROOD STREET,SERVICE CHARGES,2102880756,1000063692
02.11.2018,REGENERATION,WORKMAN LLP,-443.51,7 HOLYROOD STREET,SERVICE CHARGES,2102880761,1000063692
02.11.2018,REGENERATION,WORKMAN LLP,-443.51,7 HOLYROOD STREET,SERVICE CHARGES,2102880762,1000063692
02.11.2018,REGENERATION,WORKMAN LLP,-443.51,7 HOLYROOD STREET,SERVICE CHARGES,2102880763,1000063692
02.11.2018,REGENERATION,WORKMAN LLP,-443.51,7 HOLYROOD STREET,SERVICE CHARGES,2102880764,1000063692
02.11.2018,REGENERATION,WORKMAN LLP,-357.21,7 HOLYROOD STREET,SERVICE CHARGES,2102880753,1000063692
02.11.2018,REGENERATION,WORKMAN LLP,-357.21,7 HOLYROOD STREET,SERVICE CHARGES,2102880758,1000063692
02.11.2018,REGENERATION,WORKMAN LLP,-356.97,7 HOLYROOD STREET,SERVICE CHARGES,2102880754,1000063692
02.11.2018,REGENERATION,WORKMAN LLP,-356.97,7 HOLYROOD STREET,SERVICE CHARGES,2102880755,1000063692
02.11.2018,REGENERATION,WORKMAN LLP,-356.97,7 HOLYROOD STREET,SERVICE CHARGES,2102880759,1000063692
02.11.2018,REGENERATION,WORKMAN LLP,-356.97,7 HOLYROOD STREET,SERVICE CHARGES,2102880760,1000063692
02.11.2018,REGENERATION,WORKMAN LLP,554.73,7 HOLYROOD STREET,SERVICE CHARGES,2102880748,1000063692
02.11.2018,REGENERATION,WORKMAN LLP,912.71,7 HOLYROOD STREET,SERVICE CHARGES,2102880741,1000063692
02.11.2018,REGENERATION,WORKMAN LLP,912.71,7 HOLYROOD STREET,SERVICE CHARGES,2102880743,1000063692
02.11.2018,REGENERATION,WORKMAN LLP,912.71,7 HOLYROOD STREET,SERVICE CHARGES,2102880745,1000063692
02.11.2018,REGENERATION,WORKMAN LLP,"2,345.69",7 HOLYROOD STREET,SERVICE CHARGES,2102880746,1000063692
02.11.2018,REGENERATION,WORKMAN LLP,"5,012.87",7 HOLYROOD STREET,SERVICE CHARGES,2102880749,1000063692
02.11.2018,REGENERATION,WORKMAN LLP,"-3,412.49",9 HOLYROOD STREET,SERVICE CHARGES,2102880750,1000063692
02.11.2018,REGENERATION,WORKMAN LLP,"-3,412.49",9 HOLYROOD STREET,SERVICE CHARGES,2102880752,1000063692
02.11.2018,REGENERATION,WORKMAN LLP,800,9 HOLYROOD STREET,PROFESSIONAL FEES,2102883362,1000063692
02.11.2018,RESIDENT SERVICES,NPOWER,445.13,SUPPORTED HOSTELS,ELECTRICITY,5902327034,1000032342
02.11.2018,RESIDENT SERVICES,CHARTWELLS,"4,931.00",SUPPORTED HOSTELS,CATERING MATERIALS & SUPPLIES,5902327106,1000010625
02.11.2018,RESIDENT SERVICES,K3 PROPERTY MANAGEMENT LTD,560,TA PLACEMENTS,EXTERNAL AGENCIES AND BODIES,5902327225,1000068219
02.11.2018,SCRUTINY,EAST DULWICH COMMUNITY CENTRE,280,MEMBERS EXPENSES,HIRE OF ROOMS/HALLS,5902327176,1968633
02.11.2018,SOUTHWARK BUILDING SERVICES,GREENCROFT CONSULTING,"11,356.30",FINANCE,OTHER CONTRACTORS,5902327186,1000078147
02.11.2018,SOUTHWARK BUILDING SERVICES,ONSITE SUPPORT LTD,279,STORES/LOGISTICS,CREDITORS -GR/IR CLEARING ACCOUNT,5902327037,1000043198
02.11.2018,SOUTHWARK BUILDING SERVICES,ONSITE SUPPORT LTD,359.4,STORES/LOGISTICS,CREDITORS -GR/IR CLEARING ACCOUNT,5902327039,1000043198
02.11.2018,SOUTHWARK BUILDING SERVICES,A T & T (GB LTD ),"1,056.00",STORES/LOGISTICS,CREDITORS -GR/IR CLEARING ACCOUNT,5902327017,1000078342
02.11.2018,SOUTHWARK BUILDING SERVICES,A T & T (GB LTD ),"1,056.00",STORES/LOGISTICS,CREDITORS -GR/IR CLEARING ACCOUNT,5902327019,1000078342
02.11.2018,SOUTHWARK BUILDING SERVICES,A T & T (GB LTD ),"1,059.84",STORES/LOGISTICS,CREDITORS -GR/IR CLEARING ACCOUNT,5902327016,1000078342
02.11.2018,SOUTHWARK BUILDING SERVICES,A T & T (GB LTD ),"1,059.84",STORES/LOGISTICS,CREDITORS -GR/IR CLEARING ACCOUNT,5902327020,1000078342
02.11.2018,SOUTHWARK BUILDING SERVICES,A T & T (GB LTD ),"2,053.92",STORES/LOGISTICS,CREDITORS -GR/IR CLEARING ACCOUNT,5902327016,1000078342
02.11.2018,SOUTHWARK BUILDING SERVICES,A T & T (GB LTD ),"2,197.92",STORES/LOGISTICS,CREDITORS -GR/IR CLEARING ACCOUNT,5902327016,1000078342
03.11.2018,ADULT SOCIAL CARE,NORBURY PROPERTY SERVICES (LONDON),"1,230.00",AAD TEAM,RENTS,5902327312,1000075566
03.11.2018,ADULT SOCIAL CARE,NORBURY PROPERTY SERVICES (LONDON),"1,230.00",AAD TEAM,RENTS,5902327313,1000075566
03.11.2018,ADULT SOCIAL CARE,NORBURY PROPERTY SERVICES (LONDON),"1,230.00",AAD TEAM,RENTS,5902327317,1000075566
03.11.2018,ADULT SOCIAL CARE,NORBURY PROPERTY SERVICES (LONDON),"1,271.00",AAD TEAM,RENTS,5902327310,1000075566
03.11.2018,ADULT SOCIAL CARE,NORBURY PROPERTY SERVICES (LONDON),"1,271.00",AAD TEAM,RENTS,5902327315,1000075566
03.11.2018,ADULT SOCIAL CARE,NORBURY PROPERTY SERVICES (LONDON),"1,271.00",AAD TEAM,RENTS,5902327316,1000075566
03.11.2018,ADULT SOCIAL CARE,NORBURY PROPERTY SERVICES (LONDON),"1,271.00",AAD TEAM,RENTS,5902327318,1000075566
03.11.2018,ADULT SOCIAL CARE,REDACTED PERSONAL DATA,266.65,APPOINTEESHIPS,OTHER PAYMENTS FOR CLIENTS,REDACTED,REDACTED
03.11.2018,ADULT SOCIAL CARE,ROMEDICAL LTD,393.45,SAFEGUARDING TEAM,OTHER CONTRACTORS,5902327296,1000076318
03.11.2018,ADULT SOCIAL CARE,LUCAS CONSULT LTD,533.75,SAFEGUARDING TEAM,EXTERNAL AGENCIES AND BODIES,5902327343,1000078082
03.11.2018,ADULT SOCIAL CARE,ROMEDICAL LTD,941.83,SAFEGUARDING TEAM,OTHER CONTRACTORS,5902327294,1000076318
03.11.2018,ADULT SOCIAL CARE,ROMEDICAL LTD,"1,116.61",SAFEGUARDING TEAM,OTHER CONTRACTORS,5902327293,1000076318
03.11.2018,ASSET MANAGEMENT,POSTURE PEOPLE LTD,335.25,REPAIRS OPERATIONS,BUILDING R&M,5902327266,1000078441
03.11.2018,CENTRAL FUNCTIONS,CAPITA BUSINESS SERVICES LTD,"25,346.76",EXCHEQUER RENTS,OTHER CONTRACTORS,5902327283,1000006291
03.11.2018,CENTRAL FUNCTIONS,SINCLAIR JOHNSTON & PARTNERS LTD,900,GARAGE REPAIRS,PROFESSIONAL FEES,5902327365,1000052146
03.11.2018,CENTRAL FUNCTIONS,STANBURY BUILDING SERVICES LTD,"3,495.00",GENERAL HOLDING AC,BUILDING R&M,5902327322,1000078207
03.11.2018,CHIEF EXECUTIVE,TRANSPORT FOR LONDON,"2,500.00",CAPITAL PS (REGEN),CONSTR'N SUB CONTRACT - NON CERTIFICATED,5902327262,1000023986
03.11.2018,CHIEF EXECUTIVE'S OFFICE,TREE SHEPHERD LTD,"7,325.00",BUSINESS SUPPORT,PROFESSIONAL FEES,5902327328,1000076895
03.11.2018,CHILDREN AND ADULT,PENNINGTON CHOICES LTD,475,CAPITAL PS (EDUCATION),CONSTRUCTION FEES  - EXTERNAL,5902327373,1000001687
03.11.2018,CHILDREN AND ADULT,PENNINGTON CHOICES LTD,850,CAPITAL PS (EDUCATION),CONSTRUCTION FEES,5902327373,1000001687
03.11.2018,CHILDREN AND ADULT,PENNINGTON CHOICES LTD,850,CAPITAL PS (EDUCATION),CONSTRUCTION FEES - INTERNAL,5902327373,1000001687
03.11.2018,CHILDREN AND ADULT,HOLLY BRYAN ASSOCIATES LTD,"6,400.00",CAPITAL PS (STRAT SERV),ICT ACQUISITION,5902327321,1000077962
03.11.2018,CHILDREN'S SERVICES,SHARED CARE SERVICES LTD,"5,838.54",AGENCY FOSTERING,EXTERNAL AGENCIES AND BODIES,2102883947,1000080308
03.11.2018,CHILDREN'S SERVICES,FIVE RIVERS CHILD CARE LTD,"6,527.71",AGENCY FOSTERING,EXTERNAL AGENCIES AND BODIES,2102883945,1000018792
03.11.2018,CHILDREN'S SERVICES,COLLABORATE & INNOVATE LTD,399.99,AYLESBURY EARLY YEARS CENTRE,EQUIPMENT PURCHASE & REPAIR,5902327300,1000080184
03.11.2018,CHILDREN'S SERVICES,POSTURITE (UK) LTD,703.71,CENTRAL SUPPORT,EQUIPMENT PURCHASE & REPAIR,5902327250,11015468
03.11.2018,CHILDREN'S SERVICES,LOOK AHEAD CARE AND SUPPORT LTD,"-6,601.50",S24 CLA,EXTERNAL AGENCIES AND BODIES,2102883957,1000047299
03.11.2018,CHILDREN'S SERVICES,LOOK AHEAD CARE AND SUPPORT LTD,"-3,901.44",S24 CLA,EXTERNAL AGENCIES AND BODIES,2102883975,1000047299
03.11.2018,CHILDREN'S SERVICES,YOUNG FUTURES,-903.34,S24 CLA,EXTERNAL AGENCIES AND BODIES,2102883953,1000059563
03.11.2018,CHILDREN'S SERVICES,YOUNG FUTURES,-903.34,S24 CLA,EXTERNAL AGENCIES AND BODIES,2102883959,1000059563
03.11.2018,CHILDREN'S SERVICES,YOUNG FUTURES,-450.43,S24 CLA,EXTERNAL AGENCIES AND BODIES,2102883961,1000059563
03.11.2018,CHILDREN'S SERVICES,HOLMDENE HOUSING LTD,"1,480.00",S24 CLA,EXTERNAL AGENCIES AND BODIES,2102883970,1000032598
03.11.2018,CHILDREN'S SERVICES,HOLMDENE HOUSING LTD,"1,600.00",S24 CLA,EXTERNAL AGENCIES AND BODIES,2102883965,1000032598
03.11.2018,CHILDREN'S SERVICES,LOOK AHEAD CARE AND SUPPORT LTD,"1,738.04",S24 CLA,EXTERNAL AGENCIES AND BODIES,2102883950,1000047299
03.11.2018,CHILDREN'S SERVICES,LOOK AHEAD CARE AND SUPPORT LTD,"1,816.64",S24 CLA,EXTERNAL AGENCIES AND BODIES,2102883949,1000047299
03.11.2018,CHILDREN'S SERVICES,LOOK AHEAD CARE AND SUPPORT LTD,"1,816.64",S24 CLA,EXTERNAL AGENCIES AND BODIES,2102883968,1000047299
03.11.2018,CHILDREN'S SERVICES,LOOK AHEAD CARE AND SUPPORT LTD,"1,816.64",S24 CLA,EXTERNAL AGENCIES AND BODIES,2102883974,1000047299
03.11.2018,CHILDREN'S SERVICES,HOLMDENE HOUSING LTD,"1,880.00",S24 CLA,EXTERNAL AGENCIES AND BODIES,2102883951,1000032598
03.11.2018,CHILDREN'S SERVICES,YOUNG FUTURES,"1,984.00",S24 CLA,EXTERNAL AGENCIES AND BODIES,2102883948,1000059563
03.11.2018,CHILDREN'S SERVICES,YOUNG FUTURES,"1,984.00",S24 CLA,EXTERNAL AGENCIES AND BODIES,2102883954,1000059563
03.11.2018,CHILDREN'S SERVICES,YOUNG FUTURES,"2,214.33",S24 CLA,EXTERNAL AGENCIES AND BODIES,2102883964,1000059563
03.11.2018,CHILDREN'S SERVICES,YOUNG FUTURES,"2,790.00",S24 CLA,EXTERNAL AGENCIES AND BODIES,2102883963,1000059563
03.11.2018,CHILDREN'S SERVICES,LOOK AHEAD CARE AND SUPPORT LTD,"2,890.44",S24 CLA,EXTERNAL AGENCIES AND BODIES,2102883958,1000047299
03.11.2018,CHILDREN'S SERVICES,LOOK AHEAD CARE AND SUPPORT LTD,"3,380.76",S24 CLA,EXTERNAL AGENCIES AND BODIES,2102883966,1000047299
03.11.2018,CHILDREN'S SERVICES,HEALTHCARE & TRANSPORT SERVICES,"2,056.74",SCH TRANS - CONTRACT COST,EXTERNAL AGENCIES AND BODIES,5902327435,1000042743
03.11.2018,CHILDREN'S SERVICES,LOOK AHEAD CARE AND SUPPORT LTD,"-2,043.75",SEMI INDEPENDENT,EXTERNAL AGENCIES AND BODIES,2102883973,1000047299
03.11.2018,CHILDREN'S SERVICES,SYDNEY CARE LTD,256.41,SEMI INDEPENDENT,OTHER PAYMENTS FOR CLIENTS,2102883936,1000081598
03.11.2018,CHILDREN'S SERVICES,LOOK AHEAD CARE AND SUPPORT LTD,"1,816.64",SEMI INDEPENDENT,EXTERNAL AGENCIES AND BODIES,2102883937,1000047299
03.11.2018,CHILDREN'S SERVICES,YOUNG FUTURES,"2,642.80",SEMI INDEPENDENT,EXTERNAL AGENCIES AND BODIES,2102883942,1000059563
03.11.2018,CHILDREN'S SERVICES,YOUNG FUTURES,"2,790.00",SEMI INDEPENDENT,EXTERNAL AGENCIES AND BODIES,2102883933,1000059563
03.11.2018,CHILDREN'S SERVICES,YOUNG FUTURES,"3,365.67",SEMI INDEPENDENT,EXTERNAL AGENCIES AND BODIES,2102883939,1000059563
03.11.2018,CHILDREN'S SERVICES,YOUNG FUTURES,"8,192.68",SEMI INDEPENDENT,EXTERNAL AGENCIES AND BODIES,2102883938,1000059563
03.11.2018,CHILDREN'S SERVICES,YOUNG FUTURES,"8,192.68",SEMI INDEPENDENT,EXTERNAL AGENCIES AND BODIES,2102883944,1000059563
03.11.2018,CHILDREN'S SERVICES,SPORTFIT SHORT BREAK CARE LTD,"10,230.00",SEMI INDEPENDENT,EXTERNAL AGENCIES AND BODIES,2102883940,1000078113
03.11.2018,CHILDREN'S SERVICES,SYDNEY CARE LTD,"13,263.57",SEMI INDEPENDENT,EXTERNAL AGENCIES AND BODIES,2102883943,1000081598
03.11.2018,CHILDREN'S SERVICES,SPA EDUCATION TRUST,"149,068.00",SPA SCHOOL,HIGH NEEDS - TOP UP FUNDING,2102883930,1000081600
03.11.2018,CHILDREN'S SERVICES,YOUNG FUTURES,-903.34,UASC SECTION 24,EXTERNAL AGENCIES AND BODIES,2102883972,1000059563
03.11.2018,CHILDREN'S SERVICES,HOLMDENE HOUSING LTD,"1,480.00",UASC SECTION 24,EXTERNAL AGENCIES AND BODIES,2102883952,1000032598
03.11.2018,CHILDREN'S SERVICES,HOLMDENE HOUSING LTD,"1,480.00",UASC SECTION 24,EXTERNAL AGENCIES AND BODIES,2102883955,1000032598
03.11.2018,CHILDREN'S SERVICES,HOLMDENE HOUSING LTD,"1,480.00",UASC SECTION 24,EXTERNAL AGENCIES AND BODIES,2102883960,1000032598
03.11.2018,CHILDREN'S SERVICES,HOLMDENE HOUSING LTD,"1,480.00",UASC SECTION 24,EXTERNAL AGENCIES AND BODIES,2102883967,1000032598
03.11.2018,CHILDREN'S SERVICES,HOLMDENE HOUSING LTD,"1,480.00",UASC SECTION 24,EXTERNAL AGENCIES AND BODIES,2102883969,1000032598
03.11.2018,CHILDREN'S SERVICES,YOUNG FUTURES,"2,214.33",UASC SECTION 24,EXTERNAL AGENCIES AND BODIES,2102883962,1000059563
03.11.2018,CHILDREN'S SERVICES,HOLMDENE HOUSING LTD,"2,240.00",UASC SECTION 24,EXTERNAL AGENCIES AND BODIES,2102883971,1000032598
03.11.2018,COMMISSIONING & CENTRAL,POSTURITE (UK) LTD,270.99,COMMISSIONING TEAM,EXTERNAL AGENCIES AND BODIES,5902327238,11015468
03.11.2018,COMMISSIONING & CENTRAL,CLEARNOTION LTD,"5,500.00",COMMISSIONING TEAM,EXTERNAL AGENCIES AND BODIES,5902327273,1000080769
03.11.2018,COMMISSIONING & CENTRAL,SOUTHSIDE PARTNERSHIP,"83,611.65",SUPPORTING PEOPLE,EXTERNAL AGENCIES AND BODIES,5902326440,1716624
03.11.2018,COMMUNITIES,CGL,"122,481.35",ADULT SM SERVICE,OTHER CONTRACTORS,5902327346,1000064197
03.11.2018,COMMUNITIES,CRANSTOUN,"1,280.00",TIER 4 SERVICES,OTHER CONTRACTORS,5902327298,11283784
03.11.2018,COMMUNITIES,CRANSTOUN,"5,000.00",TIER 4 SERVICES,OTHER CONTRACTORS,5902327298,11283784
03.11.2018,CUSTOMER EXPERIENCE,NATIONAL LEASEHOLD GROUP,298,MSHO,TRAINING,5902327353,1000079569
03.11.2018,CUSTOMER EXPERIENCE HGF,VENTURE HOUSING (LONDON) LTD,"1,110.00",NIGHTLY TA (NSC),EXTERNAL AGENCIES AND BODIES,5902327323,1000056686
03.11.2018,CUSTOMER EXPERIENCE HGF,VENTURE HOUSING (LONDON) LTD,"145,185.30",NIGHTLY TA (NSC),EXTERNAL AGENCIES AND BODIES,5902327326,1000056686
03.11.2018,CUSTOMER EXPERIENCE HGF,IDEAL QUARTERS LTD,"88,189.05",PSL PLACEMENTS,EXTERNAL AGENCIES AND BODIES,5902327280,1000079241
03.11.2018,ENVIRONMENT AND LEISURE,PALMSTEAD NURSERIES LTD,784,CAPITAL PS (LEISURE),CONST'N MAIN CONTRACT - NON CERTIFICATED,5902326902,1000067566
03.11.2018,ENVIRONMENT AND LEISURE,PALMSTEAD NURSERIES LTD,"1,444.90",CAPITAL PS (LEISURE),CONST'N MAIN CONTRACT - NON CERTIFICATED,5902326900,1000067566
03.11.2018,ENVIRONMENT AND LEISURE,PROPAGATING DAN,"2,150.00",CAPITAL PS (LEISURE),CONSTRUCTION FEES  - EXTERNAL,5902327302,1000076603
03.11.2018,ENVIRONMENT AND LEISURE,APPLEYARD & TREW,"5,232.56",CAPITAL PS (LEISURE),CONSTRUCTION FEES  - EXTERNAL,5902327347,1000029065
03.11.2018,ENVIRONMENT DIRECTORATE,RADNES SERVICES LTD,773.5,COMMERCIAL VEH CTRL A/C,HIRED VEHICLES,5902327264,1000080334
03.11.2018,ENVIRONMENT DIRECTORATE,SHB HIRE LTD,"2,902.50",COMMERCIAL VEH CTRL A/C,HIRED VEHICLES,5902327261,11319628
03.11.2018,ENVIRONMENT DIRECTORATE,CALLOW MASTER LOCKSMITHS,342.63,ENGINEERING CRAFTS,OTHER CONTRACTORS,5902327397,11179552
03.11.2018,ENVIRONMENT DIRECTORATE,THE T P PARTNERSHIP,445,ESTATE CLEANING-GENERAL,OTHER CONTRACTORS,5902327382,1000045906
03.11.2018,ENVIRONMENT DIRECTORATE,THE T P PARTNERSHIP,455,ESTATE CLEANING-GENERAL,OTHER CONTRACTORS,5902327381,1000045906
03.11.2018,ENVIRONMENT DIRECTORATE,BELL BRUSH COMPANY,"1,073.01",MANAGEMENT TEAM,MATERIALS,5902326251,1259776
03.11.2018,ENVIRONMENT DIRECTORATE,CROMWELL POLYTHENE LTD,"3,225.60",STREET CLEANING-GENERAL,MATERIALS,5902327356,1000021159
03.11.2018,F & C S EXCLUDING CORPORATE BUDGETS,DSI BILLING SERVICES LTD,"2,399.65",ADMINISTRATIVE SUPPORT,POSTAGES,5902327430,1000058640
03.11.2018,F & C S EXCLUDING CORPORATE BUDGETS,INTEC FOR BUSINESS LTD,"6,541.50",ANTI-FRAUD AND INVESTIGATIONS,SOFTWARE,5902323564,1000066522
03.11.2018,F & C S EXCLUDING CORPORATE BUDGETS,POSTURITE (UK) LTD,555,FC&P PROCESSING,EQUIPMENT PURCHASE & REPAIR,5902327244,11015468
03.11.2018,HOUSING & MODERNISATION,RESTORATIVE JUSTICE FOR ALL,500,VCS GRANTS,OTHER CONTRACTORS,5902327372,1000081455
03.11.2018,HOUSING & MODERNISATION,SPORTING RECOVERY CIC,998,VCS GRANTS,OTHER CONTRACTORS,5902327371,1000080008
03.11.2018,HOUSING HRA,CALFORDSEADEN LLP,"3,667.00",CAPITAL PS (HRA),CONSTRUCTION FEES  - EXTERNAL,5902327284,1061592
03.11.2018,HOUSING HRA,ICONIC ARCHITECTS LLP,"21,000.00",CAPITAL PS (HRA),CONSTRUCTION FEES  - EXTERNAL,5902327358,1000076339
03.11.2018,HOUSING HRA,LIFTEC LIFTS LTD,"48,822.60",PAYMENTS CONTROL ACCOUNT - LIFTEC,MANUAL CREDITORS,5902327243,1000057278
03.11.2018,HOUSING STRATEGY AND OPTIONS,REDACTED PERSONAL DATA,"1,261.20",HOMELESS PROJECTS,GRANTS,REDACTED,REDACTED
03.11.2018,LEISURE DIRECTORATE,WEB-LABS LTD,"3,550.00",ADMINISTRATION,PROFESSIONAL FEES,5902326465,1000039819
03.11.2018,LEISURE DIRECTORATE,P D CONSTRUCTION LTD,580,BURGESS AREA TEAM,GROUNDS MAINTENANCE,2102883979,4001883
03.11.2018,LEISURE DIRECTORATE,P D CONSTRUCTION LTD,680,BURGESS AREA TEAM,GROUNDS MAINTENANCE,2102883978,4001883
03.11.2018,LEISURE DIRECTORATE,P D CONSTRUCTION LTD,785,BURGESS AREA TEAM,GROUNDS MAINTENANCE,2102883980,4001883
03.11.2018,LEISURE DIRECTORATE,BRITISH GAS,257.1,DULWICH AREA TEAM,GAS,5902327247,1000054825
03.11.2018,LEISURE DIRECTORATE,BRITISH GAS,288.67,DULWICH AREA TEAM,GAS,5902327259,1000054825
03.11.2018,LEISURE DIRECTORATE,CONTINENTAL DRIFTS LTD,"53,677.29",FIREWORK DISPLAY,PROFESSIONAL FEES,5902327282,1000027315
03.11.2018,LEISURE DIRECTORATE,CRESPO DESIGN LTD,300,PLAY SERVICE MANAGEMENT & ADMIN,MARKETING & PUBLICITY SERVICES,5902327303,1000075973
03.11.2018,MODERNISATION HGF,T2 SOLUTIONS 2000 LTD,285,HR PAYROLL COSTS,CONSULTANTS SERVICES,5902327258,1000080952
03.11.2018,MODERNISATION HGF,SHL UK LTD,643.5,OCCUPATIONAL ASSESSMENT,CONSULTANTS SERVICES,5902326259,1050652
03.11.2018,MODERNISATION HGF,WORKING ON WELLBEING LTD,"37,746.25",OPTIMA HEALTH,MEDICAL / HEALTH & SAFETY SERVICES,5902327428,1000077251
03.11.2018,MODERNISATION HGF,POSTURITE (UK) LTD,812.87,REPAIR AND MAINTENANCE SERVICES,FURNITURE PURCHASE & REPAIR,5902327239,11015468
03.11.2018,PUBLIC HEALTH,DEBIGNO LTD,500,SEXUAL HEALTH - STI,EXTERNAL AGENCIES AND BODIES,5902326301,1000080116
03.11.2018,REGENERATION,CARL TURNER ARCHITECTS LTD,"4,168.00",MASTER PLAN-H/WAY & TRANS INTERCHANGE,PROFESSIONAL FEES,5902326367,1000060355
03.11.2018,REGENERATION,WHITE LABEL PUBLISHING LTD,"1,500.00",OKR MASTER PLANNING,MARKETING & PUBLICITY SERVICES,5902327299,1000081115
03.11.2018,REGENERATION,JAMES HULME,"5,000.00",OKR MASTER PLANNING,MARKETING & PUBLICITY SERVICES,5902327404,1000081267
03.11.2018,RESIDENT SERVICES,CASTLE WATER LTD,322.42,NORTHCOTT HOUSE,WATER,5902327324,1000078867
03.11.2018,RESIDENT SERVICES,BRITISH GAS TRADING LTD,412.02,OPERATIONS/OFFICES ACCOMMODATION,ELECTRICITY,5902327287,1000055977
03.11.2018,RESIDENT SERVICES,NORTHGATE PUBLIC SERVICES (UK) LTD,"61,966.59",OPERATIONS/OFFICES ACCOMMODATION,PROFESSIONAL FEES,5902327434,1000037405
03.11.2018,RESIDENT SERVICES,WORKING TRANSITIONS,450,SUPPORTED HOSTELS,TRAINING,5902327285,1000063689
03.11.2018,RESIDENT SERVICES,SHUTTLEWORTH (UK) LTD,432,TA PLACEMENTS,EXTERNAL AGENCIES AND BODIES,5902327339,1000056468
03.11.2018,RESIDENT SERVICES,NATIONWIDE ACCOMMODATION,540,TA PLACEMENTS,EXTERNAL AGENCIES AND BODIES,5902327423,1000076112
03.11.2018,RESIDENT SERVICES,NATIONWIDE ACCOMMODATION,"1,800.00",TA PLACEMENTS,EXTERNAL AGENCIES AND BODIES,5902327418,1000076112
03.11.2018,STRATEGIC FINANCING BUDGETS,HEATH LAMBERT LTD,"27,731.20",LIABILITY RELATED INSURANCE,PROPERTY INSURANCE COSTS,5902327271,1000023404
03.11.2018,STRATEGIC FINANCING BUDGETS,HEATH LAMBERT LTD,"552,656.16",LIABILITY RELATED INSURANCE,PROPERTY INSURANCE COSTS,5902327275,1000023404
03.11.2018,STRATEGIC FINANCING BUDGETS,HEATH LAMBERT LTD,"34,843.20",PROPERTY RELATED INSURANCE,PROPERTY INSURANCE COSTS,5902327274,1000023404
03.11.2018,STRATEGIC FINANCING BUDGETS,HEATH LAMBERT LTD,"26,203.70",SCHOOLS RELATED INSURANCE,PROPERTY INSURANCE COSTS,5902327272,1000023404
03.11.2018,STRATEGIC FINANCING BUDGETS,HEATH LAMBERT LTD,"28,000.00",SCHOOLS RELATED INSURANCE,PROPERTY INSURANCE COSTS,5902327269,1000023404
04.11.2018,ADULT SOCIAL CARE,LONDON CARE LTD,"60,300.00",EXTRA CARE CONTRACT,HOMECARE - C&V,5902326435,1000003398
04.11.2018,ASSET MANAGEMENT,REDFORD CHARLES LTD,416.67,ENG CONTRACTS,TRAINING,5902326569,1000060421
04.11.2018,COMMISSIONING & CENTRAL,RIVERSIDE,"62,259.24",SUPPORTING PEOPLE,EXTERNAL AGENCIES AND BODIES,5902326573,11134939
04.11.2018,ENVIRONMENT DIRECTORATE,DAWSONRENTALS SWEEPERS,875,COMMERCIAL VEH CTRL A/C,HIRED VEHICLES,5902327249,1000068168
04.11.2018,ENVIRONMENT DIRECTORATE,SOUTHWARK NEWSPAPER LTD,252,STREET WORKS OVERHEADS,MARKETING & PUBLICITY SERVICES,5902326406,1556957
04.11.2018,ENVIRONMENT DIRECTORATE,SOUTHWARK NEWSPAPER LTD,264,STREET WORKS OVERHEADS,MARKETING & PUBLICITY SERVICES,5902326400,1556957
04.11.2018,ENVIRONMENT DIRECTORATE,SOUTHWARK NEWSPAPER LTD,264,STREET WORKS OVERHEADS,MARKETING & PUBLICITY SERVICES,5902326403,1556957
04.11.2018,ENVIRONMENT DIRECTORATE,SOUTHWARK NEWSPAPER LTD,276,STREET WORKS OVERHEADS,MARKETING & PUBLICITY SERVICES,5902326398,1556957
04.11.2018,ENVIRONMENT DIRECTORATE,SOUTHWARK NEWSPAPER LTD,276,STREET WORKS OVERHEADS,MARKETING & PUBLICITY SERVICES,5902326408,1556957
04.11.2018,ENVIRONMENT DIRECTORATE,SOUTHWARK NEWSPAPER LTD,276,STREET WORKS OVERHEADS,MARKETING & PUBLICITY SERVICES,5902326414,1556957
04.11.2018,ENVIRONMENT DIRECTORATE,SOUTHWARK NEWSPAPER LTD,288,STREET WORKS OVERHEADS,MARKETING & PUBLICITY SERVICES,5902326411,1556957
04.11.2018,ENVIRONMENT DIRECTORATE,SOUTHWARK NEWSPAPER LTD,324,STREET WORKS OVERHEADS,MARKETING & PUBLICITY SERVICES,5902326396,1556957
04.11.2018,ENVIRONMENT DIRECTORATE,SOUTHWARK NEWSPAPER LTD,384,STREET WORKS OVERHEADS,MARKETING & PUBLICITY SERVICES,5902326394,1556957
04.11.2018,ENVIRONMENT DIRECTORATE,SOUTHWARK NEWSPAPER LTD,432,STREET WORKS OVERHEADS,MARKETING & PUBLICITY SERVICES,5902326391,1556957
04.11.2018,MODERNISATION HGF,VIRGIN MEDIA,"1,156.31",IT MANAGEMENT,DATA COMMUNICATIONS,5902327014,1000026457
05.11.2018,ASSET MANAGEMENT,FREEWAY LIFT SERVICES LTD,"3,980.00",ADAPTATIONS,BUILDING R&M,5902326787,1363482
05.11.2018,"BOROUGH, BANKSIDE AND WALWORTH COMMUNITY COUNCIL",WALWORTH AMATEUR SPORTS PROGRAMME,"3,470.00",SUPPORT FOR COMMUNITY SPORTS CLUBS,GRANT,CHEQUE PAYMENT,CHEQUE PAYMENT
05.11.2018,CHIEF EXECUTIVE,PROJECT CENTRE LTD,"2,475.00",CAPITAL PS (REGEN),CONSTR'N SUB CONTRACT - NON CERTIFICATED,5902327320,1000072621
05.11.2018,COMMISSIONING & CENTRAL,RIVERSIDE,"62,259.24",SUPPORTING PEOPLE,EXTERNAL AGENCIES AND BODIES,5902326572,11134939
05.11.2018,DULWICH COMMUNITY COUNCIL,THE DULWICH VILLAGE ASSOCIATION,"7,890.00",VIVA! DULWICH VILLAGE,GRANT,CHEQUE PAYMENT,CHEQUE PAYMENT
05.11.2018,ENVIRONMENT AND LEISURE,INTO SERVICES LONDON LTD,"-1,000.00",CAPITAL PS (LEISURE),CONST'N MAIN CONTRACT - NON CERTIFICATED,5902327648,1000059328
05.11.2018,ENVIRONMENT AND LEISURE,INTO SERVICES LONDON LTD,"1,000.00",CAPITAL PS (LEISURE),CONST'N MAIN CONTRACT - NON CERTIFICATED,5902327606,1000059328
05.11.2018,ENVIRONMENT DIRECTORATE,GREENHAM TRADING LTD,"1,415.62",ESTATE CLEANING-GENERAL,MATERIALS,5902327118,1000006610
05.11.2018,ENVIRONMENT DIRECTORATE,F R JONES & SON LTD,579.63,NON HOUSING GROUNDS,EQUIPMENT PURCHASE & REPAIR,5902327153,1000037178
05.11.2018,F & C S EXCLUDING CORPORATE BUDGETS,BDO LLP,"22,037.25",INTERNAL AUDIT CONTRACTS,PAYMENTS FOR FINANCIAL SERVICES,5902326721,1000057898
05.11.2018,F & C S EXCLUDING CORPORATE BUDGETS,BDO LLP,"2,083.33",RISK ADMIN,PROFESSIONAL FEES,5902326623,1000057898
06.11.2018,ADULT SOCIAL CARE,EDF ENERGY PLC,919.08,APPOINTEESHIPS,OTHER PAYMENTS FOR CLIENTS,2102883986,1008746
06.11.2018,ADULT SOCIAL CARE,KENT MOBILITY LTD,"1,125.00",APPOINTEESHIPS,OTHER PAYMENTS FOR CLIENTS,2102883985,1000081835
06.11.2018,ADULT SOCIAL CARE,CAPITAL HOMECARE (UK) LTD,257.4,PHY LTS 18-64,HOMECARE - SPOT,2102884022,1000042589
06.11.2018,ADULT SOCIAL CARE,CAPITAL HOMECARE (UK) LTD,655.2,PHY LTS 18-64,HOMECARE - SPOT,2102884007,1000042589
06.11.2018,ADULT SOCIAL CARE,CAPITAL HOMECARE (UK) LTD,655.2,PHY LTS 18-64,HOMECARE - SPOT,2102884010,1000042589
06.11.2018,ADULT SOCIAL CARE,CAPITAL HOMECARE (UK) LTD,655.2,PHY LTS 18-64,HOMECARE - SPOT,2102884019,1000042589
06.11.2018,ADULT SOCIAL CARE,CAPITAL HOMECARE (UK) LTD,655.2,PHY LTS 18-64,HOMECARE - SPOT,2102884028,1000042589
06.11.2018,ADULT SOCIAL CARE,CAPITAL HOMECARE (UK) LTD,655.2,PHY LTS 18-64,HOMECARE - SPOT,2102884029,1000042589
06.11.2018,ADULT SOCIAL CARE,CAPITAL HOMECARE (UK) LTD,836.38,PHY LTS 18-64,HOMECARE - SPOT,2102884014,1000042589
06.11.2018,ADULT SOCIAL CARE,CAPITAL HOMECARE (UK) LTD,836.38,PHY LTS 18-64,HOMECARE - SPOT,2102884023,1000042589
06.11.2018,ADULT SOCIAL CARE,CAPITAL HOMECARE (UK) LTD,374.4,PHY LTS 65+,HOMECARE - SPOT,2102884003,1000042589
06.11.2018,ADULT SOCIAL CARE,CAPITAL HOMECARE (UK) LTD,"1,087.52",PHY LTS 65+,HOMECARE - SPOT,2102884011,1000042589
06.11.2018,ADULT SOCIAL CARE,CAPITAL HOMECARE (UK) LTD,"1,133.16",PHY LTS 65+,HOMECARE - SPOT,2102883998,1000042589
06.11.2018,ADULT SOCIAL CARE,CAPITAL HOMECARE (UK) LTD,"1,133.16",PHY LTS 65+,HOMECARE - SPOT,2102883999,1000042589
06.11.2018,ADULT SOCIAL CARE,CAPITAL HOMECARE (UK) LTD,"1,133.16",PHY LTS 65+,HOMECARE - SPOT,2102884001,1000042589
06.11.2018,ADULT SOCIAL CARE,CAPITAL HOMECARE (UK) LTD,"1,133.16",PHY LTS 65+,HOMECARE - SPOT,2102884005,1000042589
06.11.2018,ADULT SOCIAL CARE,CAPITAL HOMECARE (UK) LTD,"1,133.16",PHY LTS 65+,HOMECARE - SPOT,2102884020,1000042589
06.11.2018,ADULT SOCIAL CARE,CAPITAL HOMECARE (UK) LTD,"1,133.16",PHY LTS 65+,HOMECARE - SPOT,2102884021,1000042589
06.11.2018,ADULT SOCIAL CARE,CAPITAL HOMECARE (UK) LTD,"1,133.16",PHY LTS 65+,HOMECARE - SPOT,2102884025,1000042589
06.11.2018,ADULT SOCIAL CARE,CAPITAL HOMECARE (UK) LTD,"1,133.16",PHY LTS 65+,HOMECARE - SPOT,2102884026,1000042589
06.11.2018,ADULT SOCIAL CARE,CAPITAL HOMECARE (UK) LTD,"1,133.16",PHY LTS 65+,HOMECARE - SPOT,2102884027,1000042589
06.11.2018,ADULT SOCIAL CARE,CAPITAL HOMECARE (UK) LTD,"1,361.76",PHY LTS 65+,HOMECARE - SPOT,2102884018,1000042589
06.11.2018,ADULT SOCIAL CARE,CAPITAL HOMECARE (UK) LTD,"1,503.11",PHY LTS 65+,HOMECARE - SPOT,2102884009,1000042589
06.11.2018,ADULT SOCIAL CARE,CAPITAL HOMECARE (UK) LTD,"1,737.54",PHY LTS 65+,HOMECARE - SPOT,2102884012,1000042589
06.11.2018,ADULT SOCIAL CARE,CAPITAL HOMECARE (UK) LTD,"1,737.54",PHY LTS 65+,HOMECARE - SPOT,2102884015,1000042589
06.11.2018,ADULT SOCIAL CARE,CAPITAL HOMECARE (UK) LTD,"2,509.14",PHY LTS 65+,HOMECARE - SPOT,2102884017,1000042589
06.11.2018,ADULT SOCIAL CARE,CAPITAL HOMECARE (UK) LTD,"3,345.52",PHY LTS 65+,HOMECARE - SPOT,2102884016,1000042589
06.11.2018,ADULT SOCIAL CARE,POTTERYCRAFTS LIMITED,261.54,SOUTHWARK RESOURCE CENTRE,MATERIALS,5902327566,11010625
06.11.2018,ADULT SOCIAL CARE,CONTACT PROFESSIONALS,266,SPECIALIST CARE,SECTION 17 PAYMENTS TO AGENCIES/CARERS,2102884040,1000057263
06.11.2018,ADULT SOCIAL CARE,CONTACT PROFESSIONALS,285,SPECIALIST CARE,SECTION 17 PAYMENTS TO AGENCIES/CARERS,2102884060,1000057263
06.11.2018,ADULT SOCIAL CARE,CONTACT PROFESSIONALS,285,SPECIALIST CARE,SECTION 17 PAYMENTS TO AGENCIES/CARERS,2102884071,1000057263
06.11.2018,ADULT SOCIAL CARE,CONTACT PROFESSIONALS,304,SPECIALIST CARE,SECTION 17 PAYMENTS TO AGENCIES/CARERS,2102884049,1000057263
06.11.2018,ADULT SOCIAL CARE,CONTACT PROFESSIONALS,380,SPECIALIST CARE,SECTION 17 PAYMENTS TO AGENCIES/CARERS,2102884081,1000057263
06.11.2018,ADULT SOCIAL CARE,CONTACT PROFESSIONALS,437,SPECIALIST CARE,SECTION 17 PAYMENTS TO AGENCIES/CARERS,2102884062,1000057263
06.11.2018,ADULT SOCIAL CARE,CONTACT PROFESSIONALS,912,TRANSITIONS 14-18YRS,SECTION 17 PAYMENTS TO AGENCIES/CARERS,2102884042,1000057263
06.11.2018,ASSET MANAGEMENT,A & E ELKINS LTD,"34,119.71",FRA WORKS,OTHER R&M,2102884126,4012501
06.11.2018,ASSET MANAGEMENT,POTTER RAPER AND PARTNERS,"9,184.47",HIP MAJOR WORKS,PLANNED MAINTENANCE,5902327477,1009369
06.11.2018,ASSET MANAGEMENT,POTTER RAPER AND PARTNERS,"19,737.18",HIP MAJOR WORKS,PLANNED MAINTENANCE,5902327475,1009369
06.11.2018,ASSET MANAGEMENT,BUILDTRUST LTD,"1,066.42",R&M CONTRACTS (SOUTH),BUILDING R&M,2102884134,3000002010
06.11.2018,ASSET MANAGEMENT,BUILDTRUST LTD,"1,639.09",R&M CONTRACTS (SOUTH),BUILDING R&M,2102884135,3000002010
06.11.2018,ASSET MANAGEMENT,BUILDTRUST LTD,"4,504.20",R&M CONTRACTS (SOUTH),BUILDING R&M,2102884136,3000002010
06.11.2018,ASSET MANAGEMENT,BUILDTRUST LTD,"6,183.14",R&M CONTRACTS (SOUTH),BUILDING R&M,2102884137,3000002010
06.11.2018,ASSET MANAGEMENT,BUILDTRUST LTD,"6,273.48",R&M CONTRACTS (SOUTH),BUILDING R&M,2102884138,3000002010
06.11.2018,ASSET MANAGEMENT,BUILDTRUST LTD,"7,218.24",R&M CONTRACTS (SOUTH),BUILDING R&M,2102884130,3000002010
06.11.2018,ASSET MANAGEMENT,BUILDTRUST LTD,"8,901.01",R&M CONTRACTS (SOUTH),BUILDING R&M,2102884139,3000002010
06.11.2018,ASSET MANAGEMENT,BUILDTRUST LTD,"10,254.32",R&M CONTRACTS (SOUTH),BUILDING R&M,2102884129,3000002010
06.11.2018,ASSET MANAGEMENT,PROPERTY FACILITIES GROUP PLC,"29,946.76",R&M CONTRACTS (SOUTH),BUILDING R&M,2102884124,3000001420
06.11.2018,CENTRAL FUNCTIONS,SHARPE PRITCHARD LLP,"1,197.00",BUSINESS APPLICATIONS,CONSULTANTS SERVICES,5902327623,1790085
06.11.2018,CENTRAL FUNCTIONS,LONDON ROPE ACCESS LTD,400,DIGITAL INFRASTRUCTURE PROGRAMME,CONSULTANTS SERVICES,5902327621,1000081766
06.11.2018,CENTRAL FUNCTIONS,BESPOKE RESIDENTIAL LTD,"4,351.57",HOME OWNERSHIP INCOME,HOUSING RESIDENTIAL RENTS,2102880713,1000081777
06.11.2018,CENTRAL FUNCTIONS,BCS (ELECTRICAL & BUILDING SERVICES,"1,389.84",LEDBURY ESTATE,MISCELLANEOUS EXPENSES,5902327637,1000062321
06.11.2018,CENTRAL FUNCTIONS,BCS (ELECTRICAL & BUILDING SERVICES,"5,276.04",LEDBURY ESTATE,MISCELLANEOUS EXPENSES,5902327637,1000062321
06.11.2018,CHIEF EXECUTIVE,UK POWER NETWORKS (OPERATIONS) LTD,"18,981.35",CAPITAL PS (REGEN),CONSTRUCTION FEES,2102884127,3000000340
06.11.2018,CHIEF EXECUTIVE,ECON CONSTRUCTION LTD,"30,876.22",CAPITAL PS (REGEN),CONSTRUCTION,2102884119,3000001350
06.11.2018,CHIEF EXECUTIVE,ECON CONSTRUCTION LTD,"41,968.38",CAPITAL PS (REGEN),CONSTRUCTION,2102884118,3000001350
06.11.2018,CHIEF EXECUTIVE'S OFFICE,POSTURITE (UK) LTD,969.05,CHIEF EXEC'S OFFICE,FURNITURE PURCHASE & REPAIR,5902327633,11015468
06.11.2018,CHILDREN AND ADULT,MEDIA CITIZENS LTD,375,CAPITAL PS (EDUCATION),CONSTRUCTION FEES,5902327624,1000052669
06.11.2018,CHILDREN AND ADULT,MEDIA CITIZENS LTD,"1,375.00",CAPITAL PS (EDUCATION),CONSTRUCTION FEES,5902327624,1000052669
06.11.2018,CHILDREN AND ADULT,MEDIA CITIZENS LTD,"1,375.00",CAPITAL PS (EDUCATION),CONSTRUCTION FEES,5902327624,1000052669
06.11.2018,CHILDREN'S SERVICES,RED R DESIGN,"3,000.00",ADMISSIONS,PRINTING,5902327447,1000035984
06.11.2018,CHILDREN'S SERVICES,SWIIS FOSTER CARE LTD,697.97,AGENCY FOSTERING,EXTERNAL AGENCIES AND BODIES,2102884104,1000069633
06.11.2018,CHILDREN'S SERVICES,COMPASS FOSTERING SOUTH LTD,"2,889.60",AGENCY FOSTERING,EXTERNAL AGENCIES AND BODIES,2102884111,1000073772
06.11.2018,CHILDREN'S SERVICES,COMPASS FOSTERING LONDON LTD,"3,077.99",AGENCY FOSTERING,EXTERNAL AGENCIES AND BODIES,2102884101,1000057908
06.11.2018,CHILDREN'S SERVICES,COMPASS FOSTERING SOUTH LTD,"3,308.10",AGENCY FOSTERING,EXTERNAL AGENCIES AND BODIES,2102884106,1000073772
06.11.2018,CHILDREN'S SERVICES,THE XCEL 2000 PARTNERSHIP LTD,"3,356.86",AGENCY FOSTERING,EXTERNAL AGENCIES AND BODIES,2102884109,1000024427
06.11.2018,CHILDREN'S SERVICES,CHILDREN OF COLOUR,"3,472.00",AGENCY FOSTERING,EXTERNAL AGENCIES AND BODIES,2102884105,1000044955
06.11.2018,CHILDREN'S SERVICES,CHILDREN OF COLOUR,"3,558.80",AGENCY FOSTERING,EXTERNAL AGENCIES AND BODIES,2102884090,1000044955
06.11.2018,CHILDREN'S SERVICES,CHILDREN OF COLOUR,"3,558.80",AGENCY FOSTERING,EXTERNAL AGENCIES AND BODIES,2102884091,1000044955
06.11.2018,CHILDREN'S SERVICES,CHILDREN OF COLOUR,"3,558.80",AGENCY FOSTERING,EXTERNAL AGENCIES AND BODIES,2102884102,1000044955
06.11.2018,CHILDREN'S SERVICES,COMPASS FOSTERING LONDON LTD,"3,675.67",AGENCY FOSTERING,EXTERNAL AGENCIES AND BODIES,2102884092,1000057908
06.11.2018,CHILDREN'S SERVICES,COMPASS FOSTERING LONDON LTD,"3,675.67",AGENCY FOSTERING,EXTERNAL AGENCIES AND BODIES,2102884095,1000057908
06.11.2018,CHILDREN'S SERVICES,ETHELBERT SPECIALIST HOMES,"3,678.11",AGENCY FOSTERING,EXTERNAL AGENCIES AND BODIES,2102884093,1796129
06.11.2018,CHILDREN'S SERVICES,ETHELBERT SPECIALIST HOMES,"3,678.11",AGENCY FOSTERING,EXTERNAL AGENCIES AND BODIES,2102884096,1796129
06.11.2018,CHILDREN'S SERVICES,ETHELBERT SPECIALIST HOMES,"3,678.11",AGENCY FOSTERING,EXTERNAL AGENCIES AND BODIES,2102884107,1796129
06.11.2018,CHILDREN'S SERVICES,ETHELBERT SPECIALIST HOMES,"3,882.40",AGENCY FOSTERING,EXTERNAL AGENCIES AND BODIES,2102884103,1796129
06.11.2018,CHILDREN'S SERVICES,ETHELBERT SPECIALIST HOMES,"3,882.40",AGENCY FOSTERING,EXTERNAL AGENCIES AND BODIES,2102884108,1796129
06.11.2018,CHILDREN'S SERVICES,HYTHE HOUSE SUPPORT LTD,"4,144.04",AGENCY FOSTERING,EXTERNAL AGENCIES AND BODIES,2102884098,1000081618
06.11.2018,CHILDREN'S SERVICES,COMPASS FOSTERING SOUTH EAST LTD,"4,495.00",AGENCY FOSTERING,EXTERNAL AGENCIES AND BODIES,2102884100,1000081155
06.11.2018,CHILDREN'S SERVICES,CHILDREN OF ALL NATIONS LTD,"4,565.19",AGENCY FOSTERING,EXTERNAL AGENCIES AND BODIES,2102884097,1000060151
06.11.2018,CHILDREN'S SERVICES,CHILDREN OF ALL NATIONS LTD,"4,565.19",AGENCY FOSTERING,EXTERNAL AGENCIES AND BODIES,2102884110,1000060151
06.11.2018,CHILDREN'S SERVICES,CHILDREN OF COLOUR,"4,871.43",AGENCY FOSTERING,EXTERNAL AGENCIES AND BODIES,2102884099,1000044955
06.11.2018,CHILDREN'S SERVICES,COMPASS FOSTERING SOUTH EAST LTD,"5,535.67",AGENCY FOSTERING,EXTERNAL AGENCIES AND BODIES,2102884094,1000081155
06.11.2018,CHILDREN'S SERVICES,BROMLEY TRUST ACADEMY,"3,600.00",ALTERNATIVE PROVISION,EXTERNAL AGENCIES AND BODIES,5902327572,1000077097
06.11.2018,CHILDREN'S SERVICES,BROMLEY TRUST ACADEMY,"4,200.00",ALTERNATIVE PROVISION,EXTERNAL AGENCIES AND BODIES,5902327570,1000077097
06.11.2018,CHILDREN'S SERVICES,POSTURITE (UK) LTD,804.51,CENTRAL SUPPORT,EQUIPMENT PURCHASE & REPAIR,5902327619,11015468
06.11.2018,CHILDREN'S SERVICES,ARIESTIA MARDJUKI,"1,279.20",NURSERY ED GRANT 3 YEAR OLD,GRANTS,2102883981,1000073679
06.11.2018,CHILDREN'S SERVICES,UMU AMINATAKABIA,"3,779.10",NURSERY ED GRANT 3 YEAR OLD,GRANTS,2102883982,1000066088
06.11.2018,CHILDREN'S SERVICES,KEYS SPECIALIST RESIDENTIAL,"21,921.34",RESIDENTIAL,RESIDENTIAL CARE,2102884085,1000081606
06.11.2018,CHILDREN'S SERVICES,THE CHILDRENS TRUST,"22,475.00",RESIDENTIAL,RESIDENTIAL CARE,2102884087,1758469
06.11.2018,CHILDREN'S SERVICES,STONELAKE LONDON LTD,"24,552.00",RESIDENTIAL,RESIDENTIAL CARE,2102884086,1000080075
06.11.2018,CHILDREN'S SERVICES,ESSEX COUNTY COUNCIL,514.56,SCH TRANS - CONTRACT COST,RECOUPMENT,5902327605,1057934
06.11.2018,CHILDREN'S SERVICES,HEALTHCARE & TRANSPORT SERVICES,"2,400.00",SCH TRANS - CONTRACT COST,HIRED VEHICLES,5902327577,1000042743
06.11.2018,CHILDREN'S SERVICES,ESSEX COUNTY COUNCIL,"3,987.84",SCH TRANS - CONTRACT COST,RECOUPMENT,5902327605,1057934
06.11.2018,CHILDREN'S SERVICES,ESSEX COUNTY COUNCIL,"6,303.36",SCH TRANS - CONTRACT COST,RECOUPMENT,5902327605,1057934
06.11.2018,CHILDREN'S SERVICES,HEALTHCARE & TRANSPORT SERVICES,"68,452.22",SCH TRANS - CONTRACT COST,EXTERNAL AGENCIES AND BODIES,5902327613,1000042743
06.11.2018,CHILDREN'S SERVICES,AFFINITY FOSTERING SERVICES LTD,"1,749.33",STAYING PUT,EXTERNAL AGENCIES AND BODIES,2102884088,1000073184
06.11.2018,CHILDREN'S SERVICES,AFFINITY FOSTERING SERVICES LTD,"1,749.33",STAYING PUT,EXTERNAL AGENCIES AND BODIES,2102884089,1000073184
06.11.2018,CHILDREN'S SERVICES,REDACTED PERSONAL DATA,300,UASC FURTHER EDUCATION SUPPORT,CLIENT TRANSPORT,REDACTED,REDACTED
06.11.2018,COMMUNITIES,SALTASH ENTERPRISES LTD,515.94,TRA HALLS (REPAIRS),BUILDING R&M,2102884123,4013605
06.11.2018,COMMUNITIES,SALTASH ENTERPRISES LTD,750,TRA HALLS (REPAIRS),BUILDING R&M,2102884123,4013605
06.11.2018,COMMUNITIES,SALTASH ENTERPRISES LTD,"3,559.28",TRA HALLS (REPAIRS),BUILDING R&M,2102884123,4013605
06.11.2018,COMMUNITIES,SALTASH ENTERPRISES LTD,"6,009.49",TRA HALLS (REPAIRS),BUILDING R&M,2102884123,4013605
06.11.2018,CORPORATE & DEMOCRATIC CORE,POTTERS FIELDS PARK MANAGEMENT TRUS,"14,993.75",POTTERS FIELD PROJECT COSTS,SERVICE CHARGES,2102884131,1000053530
06.11.2018,CUSTOMER EXPERIENCE HGF,VENTURE HOUSING (LONDON) LTD,504,NIGHTLY TA (NSC),EXTERNAL AGENCIES AND BODIES,5902327479,1000056686
06.11.2018,CUSTOMER EXPERIENCE HGF,VENTURE HOUSING (LONDON) LTD,"1,776.00",NIGHTLY TA (NSC),EXTERNAL AGENCIES AND BODIES,5902327445,1000056686
06.11.2018,CUSTOMER EXPERIENCE HGF,VENTURE HOUSING (LONDON) LTD,"1,786.00",NIGHTLY TA (NSC),EXTERNAL AGENCIES AND BODIES,5902327486,1000056686
06.11.2018,ENVIRONMENT AND LEISURE,INTO SERVICES LONDON LTD,300,CAPITAL PS (LEISURE),CONST'N MAIN CONTRACT - NON CERTIFICATED,5902327564,1000059328
06.11.2018,ENVIRONMENT AND LEISURE,ETC SPORTS SURFACES LTD,399.77,CAPITAL PS (LEISURE),CONSTRUCTION,2102884120,3000001845
06.11.2018,ENVIRONMENT AND LEISURE,INTO SERVICES LONDON LTD,400,CAPITAL PS (LEISURE),CONST'N MAIN CONTRACT - NON CERTIFICATED,5902327564,1000059328
06.11.2018,ENVIRONMENT AND LEISURE,INTO SERVICES LONDON LTD,400,CAPITAL PS (LEISURE),CONST'N MAIN CONTRACT - NON CERTIFICATED,5902327601,1000059328
06.11.2018,ENVIRONMENT AND LEISURE,VINCENTSTOKES LTD,461.35,CAPITAL PS (LEISURE),CONSTRUCTION MAIN CONTRACT,2102884121,3000001965
06.11.2018,ENVIRONMENT AND LEISURE,THE COLUMBARIA COMPANY,660,CAPITAL PS (LEISURE),CONSTRUCTION FEES  - EXTERNAL,5902327495,1632437
06.11.2018,ENVIRONMENT AND LEISURE,INTO SERVICES LONDON LTD,750,CAPITAL PS (LEISURE),CONST'N MAIN CONTRACT - NON CERTIFICATED,5902327564,1000059328
06.11.2018,ENVIRONMENT AND LEISURE,INTO SERVICES LONDON LTD,800,CAPITAL PS (LEISURE),CONST'N MAIN CONTRACT - NON CERTIFICATED,5902327515,1000059328
06.11.2018,ENVIRONMENT AND LEISURE,INTO SERVICES LONDON LTD,800,CAPITAL PS (LEISURE),CONST'N MAIN CONTRACT - NON CERTIFICATED,5902327549,1000059328
06.11.2018,ENVIRONMENT AND LEISURE,INTO SERVICES LONDON LTD,"1,000.00",CAPITAL PS (LEISURE),CONST'N MAIN CONTRACT - NON CERTIFICATED,5902327564,1000059328
06.11.2018,ENVIRONMENT AND LEISURE,INTO SERVICES LONDON LTD,"1,400.00",CAPITAL PS (LEISURE),CONST'N MAIN CONTRACT - NON CERTIFICATED,5902327564,1000059328
06.11.2018,ENVIRONMENT AND LEISURE,INTO SERVICES LONDON LTD,"1,570.00",CAPITAL PS (LEISURE),CONST'N MAIN CONTRACT - NON CERTIFICATED,5902327549,1000059328
06.11.2018,ENVIRONMENT AND LEISURE,INTO SERVICES LONDON LTD,"2,060.00",CAPITAL PS (LEISURE),CONST'N MAIN CONTRACT - NON CERTIFICATED,5902327521,1000059328
06.11.2018,ENVIRONMENT AND LEISURE,INTO SERVICES LONDON LTD,"4,000.00",CAPITAL PS (LEISURE),CONST'N MAIN CONTRACT - NON CERTIFICATED,5902327564,1000059328
06.11.2018,ENVIRONMENT AND LEISURE,REDLYNCH LEISURE INSTALLATIONS LTD,"7,511.00",CAPITAL PS (LEISURE),CONST'N MAIN CONTRACT - NON CERTIFICATED,2102884117,3000000670
06.11.2018,ENVIRONMENT AND LEISURE,VINCENTSTOKES LTD,"28,818.19",CAPITAL PS (LEISURE),CONSTRUCTION MAIN CONTRACT,2102884122,3000001965
06.11.2018,ENVIRONMENT DIRECTORATE,CLOSE BROTHERS VEHICLE HIRE LTD,280.6,COMMERCIAL VEH CTRL A/C,HIRED VEHICLES,5902327587,1000074394
06.11.2018,ENVIRONMENT DIRECTORATE,CLOSE BROTHERS VEHICLE HIRE LTD,280.6,COMMERCIAL VEH CTRL A/C,HIRED VEHICLES,5902327588,1000074394
06.11.2018,ENVIRONMENT DIRECTORATE,CLOSE BROTHERS VEHICLE HIRE LTD,282,COMMERCIAL VEH CTRL A/C,HIRED VEHICLES,5902327589,1000074394
06.11.2018,ENVIRONMENT DIRECTORATE,CLOSE BROTHERS VEHICLE HIRE LTD,317.4,COMMERCIAL VEH CTRL A/C,HIRED VEHICLES,5902327584,1000074394
06.11.2018,ENVIRONMENT DIRECTORATE,CLOSE BROTHERS VEHICLE HIRE LTD,331.2,COMMERCIAL VEH CTRL A/C,HIRED VEHICLES,5902327594,1000074394
06.11.2018,ENVIRONMENT DIRECTORATE,CLOSE BROTHERS VEHICLE HIRE LTD,391,COMMERCIAL VEH CTRL A/C,HIRED VEHICLES,5902327596,1000074394
06.11.2018,ENVIRONMENT DIRECTORATE,CLOSE BROTHERS VEHICLE HIRE LTD,451.26,COMMERCIAL VEH CTRL A/C,HIRED VEHICLES,5902327597,1000074394
06.11.2018,ENVIRONMENT DIRECTORATE,RYGOR COMMERCIALS LIMITED,"3,534.12",COMMERCIAL VEH CTRL A/C,HIRED VEHICLES,5902327245,1000063262
06.11.2018,ENVIRONMENT DIRECTORATE,ONSITE SUPPORT LTD,772.8,ESTATES  (NORTH WEST),EQUIPMENT PURCHASE & REPAIR,5902327611,1000043198
06.11.2018,ENVIRONMENT DIRECTORATE,AMETHYST HORTICULTURE LTD,291.5,GROUNDS MAINTENANCE - GENERAL,MATERIALS,5902327575,1000054623
06.11.2018,ENVIRONMENT DIRECTORATE,DRAIN SCAN,"5,940.00",GULLY MAINT NON PINC RD,OTHER CONTRACTORS,5902327453,1908746
06.11.2018,ENVIRONMENT DIRECTORATE,FLEET SOURCE LTD,865,MANAGEMENT TEAM,TRAINING,5902327590,1000074509
06.11.2018,ENVIRONMENT DIRECTORATE,METROPOLITAN POLICE AUTHORITY,"16,750.00",MPS/SOUTHWARK JETS,PROFESSIONAL FEES,5902327568,1000035048
06.11.2018,ENVIRONMENT DIRECTORATE,METROPOLITAN POLICE AUTHORITY,"16,750.00",MPS/SOUTHWARK JETS,PROFESSIONAL FEES,5902327571,1000035048
06.11.2018,ENVIRONMENT DIRECTORATE,METROPOLITAN POLICE AUTHORITY,"53,500.00",MPS/SOUTHWARK JETS,PROFESSIONAL FEES,5902327576,1000035048
06.11.2018,ENVIRONMENT DIRECTORATE,KENT COUNTY COUNCIL - LASER,"2,083.71",MULTI STOREY CAR PARK,ELECTRICITY,5902327483,1000012926
06.11.2018,ENVIRONMENT DIRECTORATE,KENT COUNTY COUNCIL - LASER,"2,774.78",MULTI STOREY CAR PARK,ELECTRICITY,5902327482,1000012926
06.11.2018,ENVIRONMENT DIRECTORATE,KENT COUNTY COUNCIL - LASER,"2,932.00",MULTI STOREY CAR PARK,ELECTRICITY,5902327480,1000012926
06.11.2018,ENVIRONMENT DIRECTORATE,KENT COUNTY COUNCIL - LASER,"3,177.62",MULTI STOREY CAR PARK,ELECTRICITY,5902327481,1000012926
06.11.2018,ENVIRONMENT DIRECTORATE,KENT COUNTY COUNCIL - LASER,"3,372.31",MULTI STOREY CAR PARK,ELECTRICITY,5902327484,1000012926
06.11.2018,ENVIRONMENT DIRECTORATE,KENT COUNTY COUNCIL - LASER,"3,444.08",MULTI STOREY CAR PARK,ELECTRICITY,5902327485,1000012926
06.11.2018,ENVIRONMENT DIRECTORATE,INTO SERVICES LONDON LTD,"1,000.00",SUS. TRAVEL OVERHEADS,TRAINING,5902327500,1000059328
06.11.2018,F & C S EXCLUDING CORPORATE BUDGETS,THE LAW SOCIETY,"18,032.00",LEGAL SVCES MANAGEMENT,SUBSCRIPTIONS,5902327469,1000021328
06.11.2018,F & C S EXCLUDING CORPORATE BUDGETS,COMMUNITY SOUTHWARK,"9,862.50",SESS,EXTERNAL AGENCIES AND BODIES,5902327439,1000018147
06.11.2018,HOUSING & MODERNISATION,SOUTH LONDON GALLERY,720,VCS GRANTS,OTHER CONTRACTORS,5902327470,11011694
06.11.2018,HOUSING HRA,BCS (ELECTRICAL & BUILDING SERVICES,"7,749.00",BCS,MANUAL CREDITORS,5902327546,1000062321
06.11.2018,HOUSING HRA,PJC CONSULTANCY LTD,450,CAPITAL PS (HRA),CONSTRUCTION FEES  - EXTERNAL,5902327502,1000077403
06.11.2018,HOUSING HRA,PJC CONSULTANCY LTD,450,CAPITAL PS (HRA),CONSTRUCTION FEES  - EXTERNAL,5902327504,1000077403
06.11.2018,HOUSING HRA,MOTION CONSULTANTS LTD,"2,134.80",CAPITAL PS (HRA),CONSTRUCTION FEES  - EXTERNAL,5902327474,1000058425
06.11.2018,HOUSING HRA,HIGHER ELEVATION LTD,"9,558.45",CAPITAL PS (HRA),CONST'N MAIN CONTRACT - NON CERTIFICATED,2102884116,3000001900
06.11.2018,HOUSING HRA,ALFRED LEDGER & SONS,"30,000.00",CAPITAL PS (HRA),CAPITAL GRANTS,2102884114,1000081760
06.11.2018,HOUSING HRA,DUCTCLEAN (UK) LTD,"62,007.22",DUCTCLEAN,MANUAL CREDITORS,2102884128,3000001635
06.11.2018,HOUSING HRA,MEARS LTD,"520,806.96",MEARS,MANUAL CREDITORS,2102884125,3000001096
06.11.2018,HOUSING HRA,SPOKEMEAD MAINTENANCE LTD,"250,967.64",PAYMENTS CONTROL ACCOUNT - SPOKEMEAD,MANUAL CREDITORS,5902327539,1000059211
06.11.2018,HOUSING HRA,KENT COUNTY COUNCIL - LASER,"30,085.06",RESIDENT SERVICES BUSINESS SUPPORT,ELECTRICITY,6101858691,DIRECT DEBIT PAYMENT
06.11.2018,LEISURE DIRECTORATE,ANOA LONDON LTD,"4,008.22",GROVE VALE LIBRARY,RENTS,2102884132,1000081764
06.11.2018,LEISURE DIRECTORATE,THE STOCKROOM ARCHIVE MANAGEMENT LT,"1,000.00",HERITAGE,OTHER CONTRACTORS,5902327592,1000079579
06.11.2018,LEISURE DIRECTORATE,THE STOCKROOM ARCHIVE MANAGEMENT LT,"2,000.00",HERITAGE,OTHER CONTRACTORS,5902327592,1000079579
06.11.2018,LEISURE DIRECTORATE,THE STOCKROOM ARCHIVE MANAGEMENT LT,"3,500.00",HERITAGE,OTHER CONTRACTORS,5902327592,1000079579
06.11.2018,LEISURE DIRECTORATE,TRISH COOKE,450,LIBARIES DEVELOPMENT,FREELANCE SPECIALISTS,5902327609,1000070249
06.11.2018,LEISURE DIRECTORATE,COMPLETE TREE CARE LTD,731.25,TREES O'HEADS,CONSULTANTS SERVICES,5902327579,1000041410
06.11.2018,LEISURE DIRECTORATE,COMPLETE TREE CARE LTD,731.25,TREES O'HEADS,CONSULTANTS SERVICES,5902327582,1000041410
06.11.2018,MODERNISATION HGF,TMP (UK) LTD,455,ADVERTISING,RECRUITMENT ADVERTISING,5902327499,1000041810
06.11.2018,MODERNISATION HGF,TMP (UK) LTD,703.13,ADVERTISING,RECRUITMENT ADVERTISING,5902327494,1000041810
06.11.2018,MODERNISATION HGF,SODEXHO PASS LTD,757.91,CHILDCARE VOUCHERS,OTHER EMPLOYEE EXPENSES,5902327616,1000048650
06.11.2018,MODERNISATION HGF,SODEXHO PASS LTD,"25,263.87",CHILDCARE VOUCHERS,OTHER EMPLOYEE EXPENSES,5902327616,1000048650
06.11.2018,MODERNISATION HGF,EGGPLANT LIVE LTD,"1,126.00",DIGITAL DELIVERY,SOFTWARE,5902327527,1000075062
06.11.2018,MODERNISATION HGF,RCA BUSINESS PSYCHOLOGISTS LTD,"1,750.00",HR PAYROLL COSTS,CONSULTANTS SERVICES,5902327476,1000080957
06.11.2018,MODERNISATION HGF,ARCH 5 DESIGN LTD,455,OCCUPATIONAL ASSESSMENT,CONSULTANTS SERVICES,5902327451,1000081627
06.11.2018,MODERNISATION HGF,ROSEMARY POTTS,"3,100.00",OCCUPATIONAL ASSESSMENT,CONSULTANTS SERVICES,5902327463,1738708
06.11.2018,MODERNISATION HGF,MACH 1 COURIERS LTD,"1,012.10",REPAIR AND MAINTENANCE SERVICES,CAB FARES,5902327598,1000038113
06.11.2018,MODERNISATION HGF,DAISY COMMUNICATIONS LTD,"10,942.64",TECHNOLOGY,DATA COMMUNICATIONS,5902327641,1000075666
06.11.2018,PLANNING AND TRANSPORT,ADVANCED TRANSPORT RESEARCH LTD,"5,900.00",BOROUGH WIDE SURVEYS,PROFESSIONAL FEES,5902327473,1000070527
06.11.2018,PLANNING AND TRANSPORT,FUTUREGOV. LTD,"35,600.00",S106 & CIL ADMINISTRATION,INFORMATION MANAGEMENT,5902327449,1000081819
06.11.2018,REGENERATION,PROMISSION LTD,"5,500.00",OKR MASTER PLANNING,PROFESSIONAL FEES,5902326276,1000081774
06.11.2018,REGENERATION,PROMISSION LTD,"6,500.00",OKR MASTER PLANNING,PROFESSIONAL FEES,5902326271,1000081774
06.11.2018,RESIDENT SERVICES,BRITISH GAS,"2,502.25",EXTRA CARE,ELECTRICITY,5902327620,1000054825
06.11.2018,RESIDENT SERVICES,EDF ENERGY PLC,"1,553.70",OPERATIONS/OFFICES ACCOMMODATION,ELECTRICITY,5902327508,1008746
06.11.2018,RESIDENT SERVICES,RELIANCE HIGH-TECH LTD,"1,597.20",OPERATIONS/OFFICES ACCOMMODATION,MEDICAL / HEALTH & SAFETY SERVICES,5902327625,1000079374
06.11.2018,RESIDENT SERVICES,EDF ENERGY PLC,"2,269.35",OPERATIONS/OFFICES ACCOMMODATION,ELECTRICITY,5902327512,1008746
06.11.2018,RESIDENT SERVICES HGF,CASTLE WATER LTD,575.2,BRIDEALE,WATER,5902327448,1000078867
06.11.2018,RESIDENT SERVICES HGF,THAMES WATER UTILITIES LTD,"3,105.99",SPRINGTIDE CLOSE,WATER,5902327573,11003005
07.11.2018,ADULT SOCIAL CARE,CHOICE SUPPORT,600,APPOINTEESHIPS,OTHER PAYMENTS FOR CLIENTS,2102883991,1104183
07.11.2018,ADULT SOCIAL CARE,OUT AND ABOUT COMMUNITY SERVICES,255,LD LTS 18-64,DAYCARE,2102884435,1000078603
07.11.2018,ADULT SOCIAL CARE,CHOICE SUPPORT,293.92,LD LTS 18-64,SUPPORTED LIVING,2102883633,1104183
07.11.2018,ADULT SOCIAL CARE,THE NEW SHOOTS,300,LD LTS 18-64,DAYCARE,2102884438,1000073970
07.11.2018,ADULT SOCIAL CARE,CHOICE SUPPORT,330.66,LD LTS 18-64,SUPPORTED LIVING,2102883632,1104183
07.11.2018,ADULT SOCIAL CARE,OUT AND ABOUT COMMUNITY SERVICES,340,LD LTS 18-64,DAYCARE,2102884447,1000078603
07.11.2018,ADULT SOCIAL CARE,CHOICE SUPPORT,367.4,LD LTS 18-64,SUPPORTED LIVING,2102883629,1104183
07.11.2018,ADULT SOCIAL CARE,CHOICE SUPPORT,367.4,LD LTS 18-64,SUPPORTED LIVING,2102883635,1104183
07.11.2018,ADULT SOCIAL CARE,THE NEW SHOOTS,375,LD LTS 18-64,DAYCARE,2102884429,1000073970
07.11.2018,ADULT SOCIAL CARE,CHOICE SUPPORT,440.88,LD LTS 18-64,SUPPORTED LIVING,2102883634,1104183
07.11.2018,ADULT SOCIAL CARE,CHOICE SUPPORT,440.88,LD LTS 18-64,SUPPORTED LIVING,2102883637,1104183
07.11.2018,ADULT SOCIAL CARE,CHOICE SUPPORT,514.36,LD LTS 18-64,SUPPORTED LIVING,2102883616,1104183
07.11.2018,ADULT SOCIAL CARE,CHOICE SUPPORT,514.36,LD LTS 18-64,SUPPORTED LIVING,2102883636,1104183
07.11.2018,ADULT SOCIAL CARE,DARETHEALTHCARE UK LTD,537.81,LD LTS 18-64,SUPPORTED LIVING,2102884450,1000059149
07.11.2018,ADULT SOCIAL CARE,CHOICE SUPPORT,587.84,LD LTS 18-64,SUPPORTED LIVING,2102883628,1104183
07.11.2018,ADULT SOCIAL CARE,CHOICE SUPPORT,606.18,LD LTS 18-64,SUPPORTED LIVING,2102883618,1104183
07.11.2018,ADULT SOCIAL CARE,INSPIRE SUPPORT WORKERS LTD,656,LD LTS 18-64,SUPPORTED LIVING,2102884433,1000080725
07.11.2018,ADULT SOCIAL CARE,INSPIRE SUPPORT WORKERS LTD,800,LD LTS 18-64,SUPPORTED LIVING,2102884451,1000080725
07.11.2018,ADULT SOCIAL CARE,CHOICE SUPPORT,808.28,LD LTS 18-64,SUPPORTED LIVING,2102883621,1104183
07.11.2018,ADULT SOCIAL CARE,MEDACS HOMECARE,830.4,LD LTS 18-64,HOMECARE - C&V,2102884497,11287415
07.11.2018,ADULT SOCIAL CARE,CHOICE SUPPORT,955.24,LD LTS 18-64,SUPPORTED LIVING,2102883620,1104183
07.11.2018,ADULT SOCIAL CARE,CHOICE SUPPORT,"1,102.20",LD LTS 18-64,SUPPORTED LIVING,2102883626,1104183
07.11.2018,ADULT SOCIAL CARE,ACCESS MOBILITY TRANSPORT LTD,"2,176.00",LD LTS 18-64,CLIENT TRANSPORT,2102884442,1000074637
07.11.2018,ADULT SOCIAL CARE,ACCESS MOBILITY TRANSPORT LTD,"2,502.40",LD LTS 18-64,CLIENT TRANSPORT,2102884437,1000074637
07.11.2018,ADULT SOCIAL CARE,CHOICE SUPPORT,440.88,LD LTS 65+,SUPPORTED LIVING,2102883623,1104183
07.11.2018,ADULT SOCIAL CARE,CHOICE SUPPORT,"6,935.52",LD LTS 65+,SUPPORTED LIVING,2102883627,1104183
07.11.2018,ADULT SOCIAL CARE,MEDACS HOMECARE,603.75,MEM LTS 18-64,HOMECARE - C&V,2102884483,11287415
07.11.2018,ADULT SOCIAL CARE,MEDACS HOMECARE,271.69,MEM LTS 65+,HOMECARE - C&V,2102884470,11287415
07.11.2018,ADULT SOCIAL CARE,MEDACS HOMECARE,664.13,MEM LTS 65+,HOMECARE - C&V,2102884569,11287415
07.11.2018,ADULT SOCIAL CARE,MEDACS HOMECARE,915.52,MEM LTS 65+,HOMECARE - C&V,2102884561,11287415
07.11.2018,ADULT SOCIAL CARE,MEDACS HOMECARE,966,MEM LTS 65+,HOMECARE - C&V,2102884464,11287415
07.11.2018,ADULT SOCIAL CARE,MEDACS HOMECARE,250.13,MH LTS 18-64,HOMECARE - C&V,2102884571,11287415
07.11.2018,ADULT SOCIAL CARE,CARE MANAGEMENT GROUP,292.29,MH LTS 18-64,SUPPORTED LIVING,2102884443,1000040475
07.11.2018,ADULT SOCIAL CARE,MEDACS HOMECARE,483,MH LTS 18-64,HOMECARE - C&V,2102884575,11287415
07.11.2018,ADULT SOCIAL CARE,MEDACS HOMECARE,603.75,MH LTS 18-64,HOMECARE - C&V,2102884465,11287415
07.11.2018,ADULT SOCIAL CARE,MEDACS HOMECARE,621,MH LTS 18-64,HOMECARE - C&V,2102884546,11287415
07.11.2018,ADULT SOCIAL CARE,MEDACS HOMECARE,646.88,MH LTS 18-64,HOMECARE - C&V,2102884531,11287415
07.11.2018,ADULT SOCIAL CARE,MEDACS HOMECARE,264.44,MH LTS 65+,HOMECARE - C&V,2102884549,11287415
07.11.2018,ADULT SOCIAL CARE,MEDACS HOMECARE,276,MH LTS 65+,HOMECARE - C&V,2102884492,11287415
07.11.2018,ADULT SOCIAL CARE,MEDACS HOMECARE,690,MH LTS 65+,HOMECARE - SPOT,2102884506,11287415
07.11.2018,ADULT SOCIAL CARE,MEDACS HOMECARE,271.69,PHY LTS 18-64,HOMECARE - C&V,2102884573,11287415
07.11.2018,ADULT SOCIAL CARE,MEDACS HOMECARE,314.81,PHY LTS 18-64,HOMECARE - C&V,2102884541,11287415
07.11.2018,ADULT SOCIAL CARE,MEDACS HOMECARE,329.13,PHY LTS 18-64,HOMECARE - C&V,2102884570,11287415
07.11.2018,ADULT SOCIAL CARE,MEDACS HOMECARE,349.31,PHY LTS 18-64,HOMECARE - C&V,2102884463,11287415
07.11.2018,ADULT SOCIAL CARE,MEDACS HOMECARE,362.25,PHY LTS 18-64,HOMECARE - C&V,2102884539,11287415
07.11.2018,ADULT SOCIAL CARE,PHOENIX HEALTHCARE & RECRUITMENT,387.26,PHY LTS 18-64,DAYCARE,2102884428,1000065636
07.11.2018,ADULT SOCIAL CARE,PHOENIX HEALTHCARE & RECRUITMENT,391.36,PHY LTS 18-64,DAYCARE,2102884448,1000065636
07.11.2018,ADULT SOCIAL CARE,MEDACS HOMECARE,405.38,PHY LTS 18-64,HOMECARE - C&V,2102884543,11287415
07.11.2018,ADULT SOCIAL CARE,MEDACS HOMECARE,457.13,PHY LTS 18-64,HOMECARE - C&V,2102884537,11287415
07.11.2018,ADULT SOCIAL CARE,MEDACS HOMECARE,461.44,PHY LTS 18-64,HOMECARE - C&V,2102884503,11287415
07.11.2018,ADULT SOCIAL CARE,MEDACS HOMECARE,526.13,PHY LTS 18-64,HOMECARE - C&V,2102884485,11287415
07.11.2018,ADULT SOCIAL CARE,MEDACS HOMECARE,552,PHY LTS 18-64,HOMECARE - C&V,2102884560,11287415
07.11.2018,ADULT SOCIAL CARE,MEDACS HOMECARE,595.13,PHY LTS 18-64,HOMECARE - C&V,2102884454,11287415
07.11.2018,ADULT SOCIAL CARE,MEDACS HOMECARE,605.5,PHY LTS 18-64,HOMECARE - C&V,2102884563,11287415
07.11.2018,ADULT SOCIAL CARE,MEDACS HOMECARE,612.38,PHY LTS 18-64,HOMECARE - C&V,2102884572,11287415
07.11.2018,ADULT SOCIAL CARE,MEDACS HOMECARE,633.94,PHY LTS 18-64,HOMECARE - C&V,2102884473,11287415
07.11.2018,ADULT SOCIAL CARE,MEDACS HOMECARE,707.25,PHY LTS 18-64,HOMECARE - C&V,2102884524,11287415
07.11.2018,ADULT SOCIAL CARE,MEDACS HOMECARE,948.75,PHY LTS 18-64,HOMECARE - C&V,2102884508,11287415
07.11.2018,ADULT SOCIAL CARE,MEDACS HOMECARE,988.94,PHY LTS 18-64,HOMECARE - C&V,2102884580,11287415
07.11.2018,ADULT SOCIAL CARE,MEDACS HOMECARE,"1,859.75",PHY LTS 18-64,HOMECARE - C&V,2102884534,11287415
07.11.2018,ADULT SOCIAL CARE,CHOICE SUPPORT,293.92,PHY LTS 65+,SUPPORTED LIVING,2102883630,1104183
07.11.2018,ADULT SOCIAL CARE,MEDACS HOMECARE,310.5,PHY LTS 65+,HOMECARE - C&V,2102884554,11287415
07.11.2018,ADULT SOCIAL CARE,MEDACS HOMECARE,328.7,PHY LTS 65+,HOMECARE - C&V,2102884577,11287415
07.11.2018,ADULT SOCIAL CARE,MEDACS HOMECARE,332.06,PHY LTS 65+,HOMECARE - C&V,2102884475,11287415
07.11.2018,ADULT SOCIAL CARE,MEDACS HOMECARE,347.93,PHY LTS 65+,HOMECARE - C&V,2102884553,11287415
07.11.2018,ADULT SOCIAL CARE,MEDACS HOMECARE,363.3,PHY LTS 65+,HOMECARE - C&V,2102884469,11287415
07.11.2018,ADULT SOCIAL CARE,MEDACS HOMECARE,370.88,PHY LTS 65+,HOMECARE - C&V,2102884488,11287415
07.11.2018,ADULT SOCIAL CARE,MEDACS HOMECARE,379.5,PHY LTS 65+,HOMECARE - C&V,2102884481,11287415
07.11.2018,ADULT SOCIAL CARE,MEDACS HOMECARE,401.06,PHY LTS 65+,HOMECARE - C&V,2102884552,11287415
07.11.2018,ADULT SOCIAL CARE,MEDACS HOMECARE,435.56,PHY LTS 65+,HOMECARE - C&V,2102884490,11287415
07.11.2018,ADULT SOCIAL CARE,MEDACS HOMECARE,465.75,PHY LTS 65+,HOMECARE - C&V,2102884460,11287415
07.11.2018,ADULT SOCIAL CARE,MEDACS HOMECARE,470.04,PHY LTS 65+,HOMECARE - C&V,2102884533,11287415
07.11.2018,ADULT SOCIAL CARE,MEDACS HOMECARE,500.25,PHY LTS 65+,HOMECARE - C&V,2102884489,11287415
07.11.2018,ADULT SOCIAL CARE,MEDACS HOMECARE,536.3,PHY LTS 65+,HOMECARE - C&V,2102884562,11287415
07.11.2018,ADULT SOCIAL CARE,MEDACS HOMECARE,539.06,PHY LTS 65+,HOMECARE - C&V,2102884513,11287415
07.11.2018,ADULT SOCIAL CARE,MEDACS HOMECARE,552,PHY LTS 65+,HOMECARE - C&V,2102884527,11287415
07.11.2018,ADULT SOCIAL CARE,MEDACS HOMECARE,590.81,PHY LTS 65+,HOMECARE - C&V,2102884574,11287415
07.11.2018,ADULT SOCIAL CARE,MEDACS HOMECARE,603.75,PHY LTS 65+,HOMECARE - C&V,2102884551,11287415
07.11.2018,ADULT SOCIAL CARE,MEDACS HOMECARE,603.75,PHY LTS 65+,HOMECARE - C&V,2102884568,11287415
07.11.2018,ADULT SOCIAL CARE,MEDACS HOMECARE,605.5,PHY LTS 65+,HOMECARE - C&V,2102884516,11287415
07.11.2018,ADULT SOCIAL CARE,MEDACS HOMECARE,621,PHY LTS 65+,HOMECARE - C&V,2102884495,11287415
07.11.2018,ADULT SOCIAL CARE,MEDACS HOMECARE,631.45,PHY LTS 65+,HOMECARE - C&V,2102884578,11287415
07.11.2018,ADULT SOCIAL CARE,MEDACS HOMECARE,635.78,PHY LTS 65+,HOMECARE - C&V,2102884519,11287415
07.11.2018,ADULT SOCIAL CARE,MEDACS HOMECARE,642.56,PHY LTS 65+,HOMECARE - C&V,2102884458,11287415
07.11.2018,ADULT SOCIAL CARE,MEDACS HOMECARE,668.44,PHY LTS 65+,HOMECARE - C&V,2102884545,11287415
07.11.2018,ADULT SOCIAL CARE,MEDACS HOMECARE,677.06,PHY LTS 65+,HOMECARE - C&V,2102884484,11287415
07.11.2018,ADULT SOCIAL CARE,MEDACS HOMECARE,724.5,PHY LTS 65+,HOMECARE - C&V,2102884567,11287415
07.11.2018,ADULT SOCIAL CARE,MEDACS HOMECARE,728.81,PHY LTS 65+,HOMECARE - C&V,2102884496,11287415
07.11.2018,ADULT SOCIAL CARE,MEDACS HOMECARE,759,PHY LTS 65+,HOMECARE - C&V,2102884540,11287415
07.11.2018,ADULT SOCIAL CARE,LAMBETH CHINESE COMMUNITY ASS,805.95,PHY LTS 65+,HOMECARE - SPOT,2102884430,11117038
07.11.2018,ADULT SOCIAL CARE,MEDACS HOMECARE,832.31,PHY LTS 65+,HOMECARE - C&V,2102884459,11287415
07.11.2018,ADULT SOCIAL CARE,MEDACS HOMECARE,843.38,PHY LTS 65+,HOMECARE - C&V,2102884461,11287415
07.11.2018,ADULT SOCIAL CARE,MEDACS HOMECARE,845.25,PHY LTS 65+,HOMECARE - C&V,2102884493,11287415
07.11.2018,ADULT SOCIAL CARE,MEDACS HOMECARE,847.7,PHY LTS 65+,HOMECARE - C&V,2102884576,11287415
07.11.2018,ADULT SOCIAL CARE,MEDACS HOMECARE,849.56,PHY LTS 65+,HOMECARE - C&V,2102884505,11287415
07.11.2018,ADULT SOCIAL CARE,MEDACS HOMECARE,853.88,PHY LTS 65+,HOMECARE - C&V,2102884472,11287415
07.11.2018,ADULT SOCIAL CARE,MEDACS HOMECARE,853.88,PHY LTS 65+,HOMECARE - C&V,2102884474,11287415
07.11.2018,ADULT SOCIAL CARE,MEDACS HOMECARE,853.88,PHY LTS 65+,HOMECARE - C&V,2102884477,11287415
07.11.2018,ADULT SOCIAL CARE,MEDACS HOMECARE,862.5,PHY LTS 65+,HOMECARE - C&V,2102884471,11287415
07.11.2018,ADULT SOCIAL CARE,MEDACS HOMECARE,866.81,PHY LTS 65+,HOMECARE - C&V,2102884482,11287415
07.11.2018,ADULT SOCIAL CARE,MEDACS HOMECARE,916.9,PHY LTS 65+,HOMECARE - C&V,2102884525,11287415
07.11.2018,ADULT SOCIAL CARE,MEDACS HOMECARE,950.13,PHY LTS 65+,HOMECARE - C&V,2102884522,11287415
07.11.2018,ADULT SOCIAL CARE,MEDACS HOMECARE,951.5,PHY LTS 65+,HOMECARE - C&V,2102884511,11287415
07.11.2018,ADULT SOCIAL CARE,MEDACS HOMECARE,983.25,PHY LTS 65+,HOMECARE - C&V,2102884507,11287415
07.11.2018,ADULT SOCIAL CARE,MEDACS HOMECARE,"1,000.50",PHY LTS 65+,HOMECARE - C&V,2102884556,11287415
07.11.2018,ADULT SOCIAL CARE,MEDACS HOMECARE,"1,052.25",PHY LTS 65+,HOMECARE - C&V,2102884509,11287415
07.11.2018,ADULT SOCIAL CARE,MEDACS HOMECARE,"1,086.75",PHY LTS 65+,HOMECARE - C&V,2102884583,11287415
07.11.2018,ADULT SOCIAL CARE,MEDACS HOMECARE,"1,104.00",PHY LTS 65+,HOMECARE - C&V,2102884530,11287415
07.11.2018,ADULT SOCIAL CARE,MEDACS HOMECARE,"1,112.63",PHY LTS 65+,HOMECARE - C&V,2102884487,11287415
07.11.2018,ADULT SOCIAL CARE,MEDACS HOMECARE,"1,136.78",PHY LTS 65+,HOMECARE - C&V,2102884499,11287415
07.11.2018,ADULT SOCIAL CARE,LAMBETH CHINESE COMMUNITY ASS,"1,154.25",PHY LTS 65+,HOMECARE - SPOT,2102884431,11117038
07.11.2018,ADULT SOCIAL CARE,MEDACS HOMECARE,"1,168.69",PHY LTS 65+,HOMECARE - C&V,2102884559,11287415
07.11.2018,ADULT SOCIAL CARE,MEDACS HOMECARE,"1,190.25",PHY LTS 65+,HOMECARE - C&V,2102884501,11287415
07.11.2018,ADULT SOCIAL CARE,MEDACS HOMECARE,"1,219.65",PHY LTS 65+,HOMECARE - C&V,2102884558,11287415
07.11.2018,ADULT SOCIAL CARE,MEDACS HOMECARE,"1,311.00",PHY LTS 65+,HOMECARE - C&V,2102884455,11287415
07.11.2018,ADULT SOCIAL CARE,MEDACS HOMECARE,"1,979.44",PHY LTS 65+,HOMECARE - C&V,2102884532,11287415
07.11.2018,ADULT SOCIAL CARE,MEDACS HOMECARE,"2,001.00",PHY LTS 65+,HOMECARE - C&V,2102884512,11287415
07.11.2018,ADULT SOCIAL CARE,MEDACS HOMECARE,"2,179.80",PHY LTS 65+,HOMECARE - C&V,2102884453,11287415
07.11.2018,ADULT SOCIAL CARE,MEDACS HOMECARE,"2,188.45",PHY LTS 65+,HOMECARE - C&V,2102884528,11287415
07.11.2018,ADULT SOCIAL CARE,MEDACS HOMECARE,"2,380.50",PHY LTS 65+,HOMECARE - C&V,2102884538,11287415
07.11.2018,ADULT SOCIAL CARE,MEDACS HOMECARE,"2,410.69",PHY LTS 65+,HOMECARE - C&V,2102884480,11287415
07.11.2018,ADULT SOCIAL CARE,MEDACS HOMECARE,"2,423.63",PHY LTS 65+,HOMECARE - C&V,2102884521,11287415
07.11.2018,ADULT SOCIAL CARE,MEDACS HOMECARE,"2,466.75",PHY LTS 65+,HOMECARE - C&V,2102884566,11287415
07.11.2018,ADULT SOCIAL CARE,LAMBETH CHINESE COMMUNITY ASS,"2,608.20",PHY LTS 65+,HOMECARE - SPOT,2102884449,11117038
07.11.2018,ADULT SOCIAL CARE,MEDACS HOMECARE,"2,656.50",PHY LTS 65+,HOMECARE - C&V,2102884502,11287415
07.11.2018,ADULT SOCIAL CARE,MEDACS HOMECARE,"3,102.24",PHY LTS 65+,HOMECARE - C&V,2102884548,11287415
07.11.2018,ADULT SOCIAL CARE,LAMBETH CHINESE COMMUNITY ASS,"3,114.45",PHY LTS 65+,HOMECARE - SPOT,2102884446,11117038
07.11.2018,ADULT SOCIAL CARE,MEDACS HOMECARE,"3,381.00",PHY LTS 65+,HOMECARE - C&V,2102884494,11287415
07.11.2018,ADULT SOCIAL CARE,REDACTED PERSONAL DATA,320,RESPITE FOSTERCARERS,PAYMENTS TO CARERS,REDACTED,REDACTED
07.11.2018,ADULT SOCIAL CARE,REDACTED PERSONAL DATA,648.99,RESPITE FOSTERCARERS,PAYMENTS TO CARERS,REDACTED,REDACTED
07.11.2018,ADULT SOCIAL CARE,REDACTED PERSONAL DATA,814,RESPITE FOSTERCARERS,PAYMENTS TO CARERS,REDACTED,REDACTED
07.11.2018,ADULT SOCIAL CARE,MEDACS HOMECARE,531.98,SEN LTS 65+,HOMECARE - C&V,2102884517,11287415
07.11.2018,ADULT SOCIAL CARE,MEDACS HOMECARE,396.75,SOCIAL ISOLATION,HOMECARE - C&V,2102884520,11287415
07.11.2018,ADULT SOCIAL CARE,MEDACS HOMECARE,916.9,SOCIAL ISOLATION,HOMECARE - C&V,2102884468,11287415
07.11.2018,ADULT SOCIAL CARE,CONTACT PROFESSIONALS,266,SPECIALIST CARE,SECTION 17 PAYMENTS TO AGENCIES/CARERS,2102884604,1000057263
07.11.2018,ADULT SOCIAL CARE,CONTACT PROFESSIONALS,285,SPECIALIST CARE,SECTION 17 PAYMENTS TO AGENCIES/CARERS,2102884605,1000057263
07.11.2018,ADULT SOCIAL CARE,CONTACT PROFESSIONALS,285,SPECIALIST CARE,SECTION 17 PAYMENTS TO AGENCIES/CARERS,2102884618,1000057263
07.11.2018,ADULT SOCIAL CARE,CONTACT PROFESSIONALS,304,SPECIALIST CARE,SECTION 17 PAYMENTS TO AGENCIES/CARERS,2102884594,1000057263
07.11.2018,ADULT SOCIAL CARE,CONTACT PROFESSIONALS,304,SPECIALIST CARE,SECTION 17 PAYMENTS TO AGENCIES/CARERS,2102884603,1000057263
07.11.2018,ADULT SOCIAL CARE,CONTACT PROFESSIONALS,304,SPECIALIST CARE,SECTION 17 PAYMENTS TO AGENCIES/CARERS,2102884606,1000057263
07.11.2018,ADULT SOCIAL CARE,CONTACT PROFESSIONALS,304,SPECIALIST CARE,SECTION 17 PAYMENTS TO AGENCIES/CARERS,2102884613,1000057263
07.11.2018,ADULT SOCIAL CARE,CONTACT PROFESSIONALS,380,SPECIALIST CARE,SECTION 17 PAYMENTS TO AGENCIES/CARERS,2102884621,1000057263
07.11.2018,ADULT SOCIAL CARE,CONTACT PROFESSIONALS,380,SPECIALIST CARE,SECTION 17 PAYMENTS TO AGENCIES/CARERS,2102884633,1000057263
07.11.2018,ADULT SOCIAL CARE,MEDACS HOMECARE,974.63,SUB LTS 18-64,HOMECARE - SPOT,2102884565,11287415
07.11.2018,ADULT SOCIAL CARE,MEDACS HOMECARE,977.45,SUB LTS 18-64,HOMECARE - C&V,2102884518,11287415
07.11.2018,ADULT SOCIAL CARE,CONTACT PROFESSIONALS,912,TRANSITIONS 14-18YRS,SECTION 17 PAYMENTS TO AGENCIES/CARERS,2102884590,1000057263
07.11.2018,ADULT SOCIAL CARE,CONTACT PROFESSIONALS,"1,489.00",TRANSITIONS 14-18YRS,SECTION 17 PAYMENTS TO AGENCIES/CARERS,2102884626,1000057263
07.11.2018,ASSET MANAGEMENT,FREEWAY LIFT SERVICES LTD,"4,455.00",ADAPTATIONS,BUILDING R&M,5902327687,1363482
07.11.2018,ASSET MANAGEMENT,DWF LLP,"1,080.00",DISREPAIR,BUILDING R&M,5902327688,1000072086
07.11.2018,ASSET MANAGEMENT,DWF LLP,"1,965.00",DISREPAIR,BUILDING R&M,5902327682,1000072086
07.11.2018,CENTRAL FUNCTIONS,CLEANOVATION,559.89,COMMERCIAL PROPERTIES,PREMISES CLEANING,5902327773,1000000539
07.11.2018,CENTRAL FUNCTIONS,STANBURY BUILDING SERVICES LTD,795,COMMERCIAL PROPERTIES,BUILDING R&M,5902327789,1000078207
07.11.2018,CENTRAL FUNCTIONS,WILLIAM MARTIN PROPERTY,"1,350.00",COMMERCIAL PROPERTIES,PROFESSIONAL FEES,5902327796,1000062171
07.11.2018,CENTRAL FUNCTIONS,MJE PROPERTIES LTD,312.12,HOME OWNERSHIP INCOME,HOUSING RESIDENTIAL RENTS,2102884162,1000069991
07.11.2018,CENTRAL FUNCTIONS,HADDON HALL BAPTIST CHURCH,647.87,HOME OWNERSHIP INCOME,HOUSING RESIDENTIAL RENTS,2102885145,1000000937
07.11.2018,CENTRAL FUNCTIONS,PRIDEVIEW ESTATES LTD,"1,563.64",HOME OWNERSHIP INCOME,HOUSING RESIDENTIAL RENTS,2102884148,1000066416
07.11.2018,CHIEF EXECUTIVE'S OFFICE,STEP AHEAD SOCIAL ENTERPRISE CIC,"6,000.00",BUSINESS SUPPORT,GRANTS,5902327799,1000076420
07.11.2018,CHIEF EXECUTIVE'S OFFICE,THOMAS LEGAL COSTS LTD,"2,320.50",YOUTH FUND EMPLOYMENT,GRANTS,2102885235,1000076172
07.11.2018,CHILDREN AND ADULT,MISCO UK LTD,"3,543.14",CAPITAL PS (EDUCATION),CONST'N MAIN CONTRACT - NON CERTIFICATED,5902327729,1000034469
07.11.2018,CHILDREN'S SERVICES,REDACTED PERSONAL DATA,251.12,ADOPTION PLACEMENTS & INTER AGENCY,PAYMENTS TO CARERS,REDACTED,REDACTED
07.11.2018,CHILDREN'S SERVICES,REDACTED PERSONAL DATA,251.94,ADOPTION PLACEMENTS & INTER AGENCY,PAYMENTS TO CARERS,REDACTED,REDACTED
07.11.2018,CHILDREN'S SERVICES,REDACTED PERSONAL DATA,252.9,ADOPTION PLACEMENTS & INTER AGENCY,PAYMENTS TO CARERS,REDACTED,REDACTED
07.11.2018,CHILDREN'S SERVICES,REDACTED PERSONAL DATA,253.56,ADOPTION PLACEMENTS & INTER AGENCY,PAYMENTS TO CARERS,REDACTED,REDACTED
07.11.2018,CHILDREN'S SERVICES,REDACTED PERSONAL DATA,255.22,ADOPTION PLACEMENTS & INTER AGENCY,PAYMENTS TO CARERS,REDACTED,REDACTED
07.11.2018,CHILDREN'S SERVICES,REDACTED PERSONAL DATA,261,ADOPTION PLACEMENTS & INTER AGENCY,PAYMENTS TO CARERS,REDACTED,REDACTED
07.11.2018,CHILDREN'S SERVICES,REDACTED PERSONAL DATA,269.22,ADOPTION PLACEMENTS & INTER AGENCY,PAYMENTS TO CARERS,REDACTED,REDACTED
07.11.2018,CHILDREN'S SERVICES,REDACTED PERSONAL DATA,275.1,ADOPTION PLACEMENTS & INTER AGENCY,PAYMENTS TO CARERS,REDACTED,REDACTED
07.11.2018,CHILDREN'S SERVICES,REDACTED PERSONAL DATA,279.26,ADOPTION PLACEMENTS & INTER AGENCY,PAYMENTS TO CARERS,REDACTED,REDACTED
07.11.2018,CHILDREN'S SERVICES,REDACTED PERSONAL DATA,282.76,ADOPTION PLACEMENTS & INTER AGENCY,PAYMENTS TO CARERS,REDACTED,REDACTED
07.11.2018,CHILDREN'S SERVICES,REDACTED PERSONAL DATA,293.98,ADOPTION PLACEMENTS & INTER AGENCY,PAYMENTS TO CARERS,REDACTED,REDACTED
07.11.2018,CHILDREN'S SERVICES,REDACTED PERSONAL DATA,304.64,ADOPTION PLACEMENTS & INTER AGENCY,PAYMENTS TO CARERS,REDACTED,REDACTED
07.11.2018,CHILDREN'S SERVICES,REDACTED PERSONAL DATA,316.5,ADOPTION PLACEMENTS & INTER AGENCY,PAYMENTS TO CARERS,REDACTED,REDACTED
07.11.2018,CHILDREN'S SERVICES,REDACTED PERSONAL DATA,359.44,ADOPTION PLACEMENTS & INTER AGENCY,PAYMENTS TO CARERS,REDACTED,REDACTED
07.11.2018,CHILDREN'S SERVICES,REDACTED PERSONAL DATA,368.52,ADOPTION PLACEMENTS & INTER AGENCY,PAYMENTS TO CARERS,REDACTED,REDACTED
07.11.2018,CHILDREN'S SERVICES,REDACTED PERSONAL DATA,375.54,ADOPTION PLACEMENTS & INTER AGENCY,PAYMENTS TO CARERS,REDACTED,REDACTED
07.11.2018,CHILDREN'S SERVICES,REDACTED PERSONAL DATA,375.54,ADOPTION PLACEMENTS & INTER AGENCY,PAYMENTS TO CARERS,REDACTED,REDACTED
07.11.2018,CHILDREN'S SERVICES,REDACTED PERSONAL DATA,375.54,ADOPTION PLACEMENTS & INTER AGENCY,PAYMENTS TO CARERS,REDACTED,REDACTED
07.11.2018,CHILDREN'S SERVICES,REDACTED PERSONAL DATA,375.54,ADOPTION PLACEMENTS & INTER AGENCY,PAYMENTS TO CARERS,REDACTED,REDACTED
07.11.2018,CHILDREN'S SERVICES,REDACTED PERSONAL DATA,375.54,ADOPTION PLACEMENTS & INTER AGENCY,PAYMENTS TO CARERS,REDACTED,REDACTED
07.11.2018,CHILDREN'S SERVICES,REDACTED PERSONAL DATA,375.54,ADOPTION PLACEMENTS & INTER AGENCY,PAYMENTS TO CARERS,REDACTED,REDACTED
07.11.2018,CHILDREN'S SERVICES,REDACTED PERSONAL DATA,375.54,ADOPTION PLACEMENTS & INTER AGENCY,PAYMENTS TO CARERS,REDACTED,REDACTED
07.11.2018,CHILDREN'S SERVICES,REDACTED PERSONAL DATA,375.54,ADOPTION PLACEMENTS & INTER AGENCY,PAYMENTS TO CARERS,REDACTED,REDACTED
07.11.2018,CHILDREN'S SERVICES,REDACTED PERSONAL DATA,375.54,ADOPTION PLACEMENTS & INTER AGENCY,PAYMENTS TO CARERS,REDACTED,REDACTED
07.11.2018,CHILDREN'S SERVICES,REDACTED PERSONAL DATA,382.3,ADOPTION PLACEMENTS & INTER AGENCY,PAYMENTS TO CARERS,REDACTED,REDACTED
07.11.2018,CHILDREN'S SERVICES,REDACTED PERSONAL DATA,382.3,ADOPTION PLACEMENTS & INTER AGENCY,PAYMENTS TO CARERS,REDACTED,REDACTED
07.11.2018,CHILDREN'S SERVICES,REDACTED PERSONAL DATA,382.3,ADOPTION PLACEMENTS & INTER AGENCY,PAYMENTS TO CARERS,REDACTED,REDACTED
07.11.2018,CHILDREN'S SERVICES,REDACTED PERSONAL DATA,382.3,ADOPTION PLACEMENTS & INTER AGENCY,PAYMENTS TO CARERS,REDACTED,REDACTED
07.11.2018,CHILDREN'S SERVICES,REDACTED PERSONAL DATA,390.26,ADOPTION PLACEMENTS & INTER AGENCY,PAYMENTS TO CARERS,REDACTED,REDACTED
07.11.2018,CHILDREN'S SERVICES,REDACTED PERSONAL DATA,400.84,ADOPTION PLACEMENTS & INTER AGENCY,PAYMENTS TO CARERS,REDACTED,REDACTED
07.11.2018,CHILDREN'S SERVICES,REDACTED PERSONAL DATA,400.84,ADOPTION PLACEMENTS & INTER AGENCY,PAYMENTS TO CARERS,REDACTED,REDACTED
07.11.2018,CHILDREN'S SERVICES,REDACTED PERSONAL DATA,404.46,ADOPTION PLACEMENTS & INTER AGENCY,PAYMENTS TO CARERS,REDACTED,REDACTED
07.11.2018,CHILDREN'S SERVICES,REDACTED PERSONAL DATA,408.78,ADOPTION PLACEMENTS & INTER AGENCY,PAYMENTS TO CARERS,REDACTED,REDACTED
07.11.2018,CHILDREN'S SERVICES,REDACTED PERSONAL DATA,451.8,ADOPTION PLACEMENTS & INTER AGENCY,PAYMENTS TO CARERS,REDACTED,REDACTED
07.11.2018,CHILDREN'S SERVICES,REDACTED PERSONAL DATA,453.24,ADOPTION PLACEMENTS & INTER AGENCY,PAYMENTS TO CARERS,REDACTED,REDACTED
07.11.2018,CHILDREN'S SERVICES,REDACTED PERSONAL DATA,457.14,ADOPTION PLACEMENTS & INTER AGENCY,PAYMENTS TO CARERS,REDACTED,REDACTED
07.11.2018,CHILDREN'S SERVICES,REDACTED PERSONAL DATA,465.48,ADOPTION PLACEMENTS & INTER AGENCY,PAYMENTS TO CARERS,REDACTED,REDACTED
07.11.2018,CHILDREN'S SERVICES,REDACTED PERSONAL DATA,465.52,ADOPTION PLACEMENTS & INTER AGENCY,PAYMENTS TO CARERS,REDACTED,REDACTED
07.11.2018,CHILDREN'S SERVICES,REDACTED PERSONAL DATA,465.52,ADOPTION PLACEMENTS & INTER AGENCY,PAYMENTS TO CARERS,REDACTED,REDACTED
07.11.2018,CHILDREN'S SERVICES,REDACTED PERSONAL DATA,465.54,ADOPTION PLACEMENTS & INTER AGENCY,PAYMENTS TO CARERS,REDACTED,REDACTED
07.11.2018,CHILDREN'S SERVICES,REDACTED PERSONAL DATA,465.54,ADOPTION PLACEMENTS & INTER AGENCY,PAYMENTS TO CARERS,REDACTED,REDACTED
07.11.2018,CHILDREN'S SERVICES,REDACTED PERSONAL DATA,465.54,ADOPTION PLACEMENTS & INTER AGENCY,PAYMENTS TO CARERS,REDACTED,REDACTED
07.11.2018,CHILDREN'S SERVICES,REDACTED PERSONAL DATA,465.54,ADOPTION PLACEMENTS & INTER AGENCY,PAYMENTS TO CARERS,REDACTED,REDACTED
07.11.2018,CHILDREN'S SERVICES,REDACTED PERSONAL DATA,484.92,ADOPTION PLACEMENTS & INTER AGENCY,PAYMENTS TO CARERS,REDACTED,REDACTED
07.11.2018,CHILDREN'S SERVICES,REDACTED PERSONAL DATA,485.22,ADOPTION PLACEMENTS & INTER AGENCY,PAYMENTS TO CARERS,REDACTED,REDACTED
07.11.2018,CHILDREN'S SERVICES,REDACTED PERSONAL DATA,502,ADOPTION PLACEMENTS & INTER AGENCY,PAYMENTS TO CARERS,REDACTED,REDACTED
07.11.2018,CHILDREN'S SERVICES,REDACTED PERSONAL DATA,510.96,ADOPTION PLACEMENTS & INTER AGENCY,PAYMENTS TO CARERS,REDACTED,REDACTED
07.11.2018,CHILDREN'S SERVICES,REDACTED PERSONAL DATA,512.02,ADOPTION PLACEMENTS & INTER AGENCY,PAYMENTS TO CARERS,REDACTED,REDACTED
07.11.2018,CHILDREN'S SERVICES,REDACTED PERSONAL DATA,530,ADOPTION PLACEMENTS & INTER AGENCY,PAYMENTS TO CARERS,REDACTED,REDACTED
07.11.2018,CHILDREN'S SERVICES,REDACTED PERSONAL DATA,552.16,ADOPTION PLACEMENTS & INTER AGENCY,PAYMENTS TO CARERS,REDACTED,REDACTED
07.11.2018,CHILDREN'S SERVICES,REDACTED PERSONAL DATA,559.06,ADOPTION PLACEMENTS & INTER AGENCY,PAYMENTS TO CARERS,REDACTED,REDACTED
07.11.2018,CHILDREN'S SERVICES,REDACTED PERSONAL DATA,588.42,ADOPTION PLACEMENTS & INTER AGENCY,PAYMENTS TO CARERS,REDACTED,REDACTED
07.11.2018,CHILDREN'S SERVICES,REDACTED PERSONAL DATA,623.94,ADOPTION PLACEMENTS & INTER AGENCY,PAYMENTS TO CARERS,REDACTED,REDACTED
07.11.2018,CHILDREN'S SERVICES,REDACTED PERSONAL DATA,635.34,ADOPTION PLACEMENTS & INTER AGENCY,PAYMENTS TO CARERS,REDACTED,REDACTED
07.11.2018,CHILDREN'S SERVICES,REDACTED PERSONAL DATA,640.9,ADOPTION PLACEMENTS & INTER AGENCY,PAYMENTS TO CARERS,REDACTED,REDACTED
07.11.2018,CHILDREN'S SERVICES,REDACTED PERSONAL DATA,652.9,ADOPTION PLACEMENTS & INTER AGENCY,PAYMENTS TO CARERS,REDACTED,REDACTED
07.11.2018,CHILDREN'S SERVICES,REDACTED PERSONAL DATA,652.9,ADOPTION PLACEMENTS & INTER AGENCY,PAYMENTS TO CARERS,REDACTED,REDACTED
07.11.2018,CHILDREN'S SERVICES,REDACTED PERSONAL DATA,653.06,ADOPTION PLACEMENTS & INTER AGENCY,PAYMENTS TO CARERS,REDACTED,REDACTED
07.11.2018,CHILDREN'S SERVICES,REDACTED PERSONAL DATA,682.3,ADOPTION PLACEMENTS & INTER AGENCY,PAYMENTS TO CARERS,REDACTED,REDACTED
07.11.2018,CHILDREN'S SERVICES,REDACTED PERSONAL DATA,682.3,ADOPTION PLACEMENTS & INTER AGENCY,PAYMENTS TO CARERS,REDACTED,REDACTED
07.11.2018,CHILDREN'S SERVICES,REDACTED PERSONAL DATA,695.04,ADOPTION PLACEMENTS & INTER AGENCY,PAYMENTS TO CARERS,REDACTED,REDACTED
07.11.2018,CHILDREN'S SERVICES,REDACTED PERSONAL DATA,695.12,ADOPTION PLACEMENTS & INTER AGENCY,PAYMENTS TO CARERS,REDACTED,REDACTED
07.11.2018,CHILDREN'S SERVICES,REDACTED PERSONAL DATA,705.24,ADOPTION PLACEMENTS & INTER AGENCY,PAYMENTS TO CARERS,REDACTED,REDACTED
07.11.2018,CHILDREN'S SERVICES,REDACTED PERSONAL DATA,712.3,ADOPTION PLACEMENTS & INTER AGENCY,PAYMENTS TO CARERS,REDACTED,REDACTED
07.11.2018,CHILDREN'S SERVICES,REDACTED PERSONAL DATA,717.14,ADOPTION PLACEMENTS & INTER AGENCY,PAYMENTS TO CARERS,REDACTED,REDACTED
07.11.2018,CHILDREN'S SERVICES,REDACTED PERSONAL DATA,738.32,ADOPTION PLACEMENTS & INTER AGENCY,PAYMENTS TO CARERS,REDACTED,REDACTED
07.11.2018,CHILDREN'S SERVICES,REDACTED PERSONAL DATA,767.68,ADOPTION PLACEMENTS & INTER AGENCY,PAYMENTS TO CARERS,REDACTED,REDACTED
07.11.2018,CHILDREN'S SERVICES,REDACTED PERSONAL DATA,777.36,ADOPTION PLACEMENTS & INTER AGENCY,PAYMENTS TO CARERS,REDACTED,REDACTED
07.11.2018,CHILDREN'S SERVICES,REDACTED PERSONAL DATA,854.28,ADOPTION PLACEMENTS & INTER AGENCY,PAYMENTS TO CARERS,REDACTED,REDACTED
07.11.2018,CHILDREN'S SERVICES,REDACTED PERSONAL DATA,908,ADOPTION PLACEMENTS & INTER AGENCY,PAYMENTS TO CARERS,REDACTED,REDACTED
07.11.2018,CHILDREN'S SERVICES,REDACTED PERSONAL DATA,"1,053.20",ADOPTION PLACEMENTS & INTER AGENCY,PAYMENTS TO CARERS,REDACTED,REDACTED
07.11.2018,CHILDREN'S SERVICES,REDACTED PERSONAL DATA,"1,682.33",ADOPTION PLACEMENTS & INTER AGENCY,PAYMENTS TO CARERS,REDACTED,REDACTED
07.11.2018,CHILDREN'S SERVICES,MONKEY PUZZLE DAY NURSERY STREATHAM,"1,593.75",AGENCY FOSTERING,EXTERNAL AGENCIES AND BODIES,5902327690,1000080140
07.11.2018,CHILDREN'S SERVICES,TREASURE HOUSE (LONDON) CIC,577.5,ALTERNATIVE PROVISION,EXTERNAL AGENCIES AND BODIES,5902327680,1000061163
07.11.2018,CHILDREN'S SERVICES,TREASURE HOUSE (LONDON) CIC,"1,890.00",ALTERNATIVE PROVISION,EXTERNAL AGENCIES AND BODIES,5902327675,1000061163
07.11.2018,CHILDREN'S SERVICES,TREASURE HOUSE (LONDON) CIC,"1,890.00",ALTERNATIVE PROVISION,EXTERNAL AGENCIES AND BODIES,5902327676,1000061163
07.11.2018,CHILDREN'S SERVICES,REDACTED PERSONAL DATA,-980.71,DISABILITY & HIV,PAYMENTS TO CARERS,REDACTED,REDACTED
07.11.2018,CHILDREN'S SERVICES,REDACTED PERSONAL DATA,-731.03,DISABILITY & HIV,PAYMENTS TO CARERS,REDACTED,REDACTED
07.11.2018,CHILDREN'S SERVICES,REDACTED PERSONAL DATA,-684.1,DISABILITY & HIV,PAYMENTS TO CARERS,REDACTED,REDACTED
07.11.2018,CHILDREN'S SERVICES,REDACTED PERSONAL DATA,-399.06,DISABILITY & HIV,PAYMENTS TO CARERS,REDACTED,REDACTED
07.11.2018,CHILDREN'S SERVICES,REDACTED PERSONAL DATA,-399.06,DISABILITY & HIV,PAYMENTS TO CARERS,REDACTED,REDACTED
07.11.2018,CHILDREN'S SERVICES,REDACTED PERSONAL DATA,-356.15,DISABILITY & HIV,PAYMENTS TO CARERS,REDACTED,REDACTED
07.11.2018,CHILDREN'S SERVICES,REDACTED PERSONAL DATA,-321.43,DISABILITY & HIV,PAYMENTS TO CARERS,REDACTED,REDACTED
07.11.2018,CHILDREN'S SERVICES,REDACTED PERSONAL DATA,-292.41,DISABILITY & HIV,PAYMENTS TO CARERS,REDACTED,REDACTED
07.11.2018,CHILDREN'S SERVICES,REDACTED PERSONAL DATA,300,DISABILITY & HIV,ADDITIONAL PAYMENTS TO AGENCIES/CARERS,REDACTED,REDACTED
07.11.2018,CHILDREN'S SERVICES,REDACTED PERSONAL DATA,300,DISABILITY & HIV,ADDITIONAL PAYMENTS TO AGENCIES/CARERS,REDACTED,REDACTED
07.11.2018,CHILDREN'S SERVICES,REDACTED PERSONAL DATA,300,DISABILITY & HIV,ADDITIONAL PAYMENTS TO AGENCIES/CARERS,REDACTED,REDACTED
07.11.2018,CHILDREN'S SERVICES,REDACTED PERSONAL DATA,300,DISABILITY & HIV,ADDITIONAL PAYMENTS TO AGENCIES/CARERS,REDACTED,REDACTED
07.11.2018,CHILDREN'S SERVICES,REDACTED PERSONAL DATA,300,DISABILITY & HIV,OTHER PAYMENTS FOR CLIENTS,REDACTED,REDACTED
07.11.2018,CHILDREN'S SERVICES,REDACTED PERSONAL DATA,300,DISABILITY & HIV,PAYMENTS TO CARERS,REDACTED,REDACTED
07.11.2018,CHILDREN'S SERVICES,REDACTED PERSONAL DATA,300,DISABILITY & HIV,PAYMENTS TO CARERS,REDACTED,REDACTED
07.11.2018,CHILDREN'S SERVICES,REDACTED PERSONAL DATA,300,DISABILITY & HIV,PAYMENTS TO CARERS,REDACTED,REDACTED
07.11.2018,CHILDREN'S SERVICES,REDACTED PERSONAL DATA,330,DISABILITY & HIV,PAYMENTS TO CARERS,REDACTED,REDACTED
07.11.2018,CHILDREN'S SERVICES,REDACTED PERSONAL DATA,335.34,DISABILITY & HIV,PAYMENTS TO CARERS,REDACTED,REDACTED
07.11.2018,CHILDREN'S SERVICES,REDACTED PERSONAL DATA,382.3,DISABILITY & HIV,PAYMENTS TO CARERS,REDACTED,REDACTED
07.11.2018,CHILDREN'S SERVICES,REDACTED PERSONAL DATA,403.04,DISABILITY & HIV,PAYMENTS TO CARERS,REDACTED,REDACTED
07.11.2018,CHILDREN'S SERVICES,REDACTED PERSONAL DATA,476.08,DISABILITY & HIV,PAYMENTS TO CARERS,REDACTED,REDACTED
07.11.2018,CHILDREN'S SERVICES,REDACTED PERSONAL DATA,487.36,DISABILITY & HIV,PAYMENTS TO CARERS,REDACTED,REDACTED
07.11.2018,CHILDREN'S SERVICES,REDACTED PERSONAL DATA,635.34,DISABILITY & HIV,PAYMENTS TO CARERS,REDACTED,REDACTED
07.11.2018,CHILDREN'S SERVICES,REDACTED PERSONAL DATA,635.34,DISABILITY & HIV,PAYMENTS TO CARERS,REDACTED,REDACTED
07.11.2018,CHILDREN'S SERVICES,REDACTED PERSONAL DATA,665.34,DISABILITY & HIV,PAYMENTS TO CARERS,REDACTED,REDACTED
07.11.2018,CHILDREN'S SERVICES,REDACTED PERSONAL DATA,665.34,DISABILITY & HIV,PAYMENTS TO CARERS,REDACTED,REDACTED
07.11.2018,CHILDREN'S SERVICES,REDACTED PERSONAL DATA,665.34,DISABILITY & HIV,PAYMENTS TO CARERS,REDACTED,REDACTED
07.11.2018,CHILDREN'S SERVICES,REDACTED PERSONAL DATA,665.34,DISABILITY & HIV,PAYMENTS TO CARERS,REDACTED,REDACTED
07.11.2018,CHILDREN'S SERVICES,REDACTED PERSONAL DATA,665.34,DISABILITY & HIV,PAYMENTS TO CARERS,REDACTED,REDACTED
07.11.2018,CHILDREN'S SERVICES,REDACTED PERSONAL DATA,665.34,DISABILITY & HIV,PAYMENTS TO CARERS,REDACTED,REDACTED
07.11.2018,CHILDREN'S SERVICES,REDACTED PERSONAL DATA,665.34,DISABILITY & HIV,PAYMENTS TO CARERS,REDACTED,REDACTED
07.11.2018,CHILDREN'S SERVICES,REDACTED PERSONAL DATA,665.34,DISABILITY & HIV,PAYMENTS TO CARERS,REDACTED,REDACTED
07.11.2018,CHILDREN'S SERVICES,REDACTED PERSONAL DATA,682.3,DISABILITY & HIV,PAYMENTS TO CARERS,REDACTED,REDACTED
07.11.2018,CHILDREN'S SERVICES,REDACTED PERSONAL DATA,682.3,DISABILITY & HIV,PAYMENTS TO CARERS,REDACTED,REDACTED
07.11.2018,CHILDREN'S SERVICES,REDACTED PERSONAL DATA,682.3,DISABILITY & HIV,PAYMENTS TO CARERS,REDACTED,REDACTED
07.11.2018,CHILDREN'S SERVICES,REDACTED PERSONAL DATA,682.3,DISABILITY & HIV,PAYMENTS TO CARERS,REDACTED,REDACTED
07.11.2018,CHILDREN'S SERVICES,REDACTED PERSONAL DATA,682.3,DISABILITY & HIV,PAYMENTS TO CARERS,REDACTED,REDACTED
07.11.2018,CHILDREN'S SERVICES,REDACTED PERSONAL DATA,682.3,DISABILITY & HIV,PAYMENTS TO CARERS,REDACTED,REDACTED
07.11.2018,CHILDREN'S SERVICES,REDACTED PERSONAL DATA,695.34,DISABILITY & HIV,PAYMENTS TO CARERS,REDACTED,REDACTED
07.11.2018,CHILDREN'S SERVICES,REDACTED PERSONAL DATA,712.3,DISABILITY & HIV,PAYMENTS TO CARERS,REDACTED,REDACTED
07.11.2018,CHILDREN'S SERVICES,REDACTED PERSONAL DATA,712.3,DISABILITY & HIV,PAYMENTS TO CARERS,REDACTED,REDACTED
07.11.2018,CHILDREN'S SERVICES,REDACTED PERSONAL DATA,712.3,DISABILITY & HIV,PAYMENTS TO CARERS,REDACTED,REDACTED
07.11.2018,CHILDREN'S SERVICES,REDACTED PERSONAL DATA,712.3,DISABILITY & HIV,PAYMENTS TO CARERS,REDACTED,REDACTED
07.11.2018,CHILDREN'S SERVICES,REDACTED PERSONAL DATA,712.3,DISABILITY & HIV,PAYMENTS TO CARERS,REDACTED,REDACTED
07.11.2018,CHILDREN'S SERVICES,REDACTED PERSONAL DATA,712.3,DISABILITY & HIV,PAYMENTS TO CARERS,REDACTED,REDACTED
07.11.2018,CHILDREN'S SERVICES,REDACTED PERSONAL DATA,712.3,DISABILITY & HIV,PAYMENTS TO CARERS,REDACTED,REDACTED
07.11.2018,CHILDREN'S SERVICES,REDACTED PERSONAL DATA,712.3,DISABILITY & HIV,PAYMENTS TO CARERS,REDACTED,REDACTED
07.11.2018,CHILDREN'S SERVICES,REDACTED PERSONAL DATA,712.3,DISABILITY & HIV,PAYMENTS TO CARERS,REDACTED,REDACTED
07.11.2018,CHILDREN'S SERVICES,REDACTED PERSONAL DATA,712.3,DISABILITY & HIV,PAYMENTS TO CARERS,REDACTED,REDACTED
07.11.2018,CHILDREN'S SERVICES,REDACTED PERSONAL DATA,742.3,DISABILITY & HIV,PAYMENTS TO CARERS,REDACTED,REDACTED
07.11.2018,CHILDREN'S SERVICES,REDACTED PERSONAL DATA,768.12,DISABILITY & HIV,PAYMENTS TO CARERS,REDACTED,REDACTED
07.11.2018,CHILDREN'S SERVICES,REDACTED PERSONAL DATA,768.12,DISABILITY & HIV,PAYMENTS TO CARERS,REDACTED,REDACTED
07.11.2018,CHILDREN'S SERVICES,REDACTED PERSONAL DATA,768.12,DISABILITY & HIV,PAYMENTS TO CARERS,REDACTED,REDACTED
07.11.2018,CHILDREN'S SERVICES,REDACTED PERSONAL DATA,768.12,DISABILITY & HIV,PAYMENTS TO CARERS,REDACTED,REDACTED
07.11.2018,CHILDREN'S SERVICES,REDACTED PERSONAL DATA,776.08,DISABILITY & HIV,PAYMENTS TO CARERS,REDACTED,REDACTED
07.11.2018,CHILDREN'S SERVICES,REDACTED PERSONAL DATA,776.08,DISABILITY & HIV,PAYMENTS TO CARERS,REDACTED,REDACTED
07.11.2018,CHILDREN'S SERVICES,REDACTED PERSONAL DATA,776.08,DISABILITY & HIV,PAYMENTS TO CARERS,REDACTED,REDACTED
07.11.2018,CHILDREN'S SERVICES,REDACTED PERSONAL DATA,776.08,DISABILITY & HIV,PAYMENTS TO CARERS,REDACTED,REDACTED
07.11.2018,CHILDREN'S SERVICES,REDACTED PERSONAL DATA,776.08,DISABILITY & HIV,PAYMENTS TO CARERS,REDACTED,REDACTED
07.11.2018,CHILDREN'S SERVICES,REDACTED PERSONAL DATA,776.08,DISABILITY & HIV,PAYMENTS TO CARERS,REDACTED,REDACTED
07.11.2018,CHILDREN'S SERVICES,REDACTED PERSONAL DATA,776.08,DISABILITY & HIV,PAYMENTS TO CARERS,REDACTED,REDACTED
07.11.2018,CHILDREN'S SERVICES,REDACTED PERSONAL DATA,776.08,DISABILITY & HIV,PAYMENTS TO CARERS,REDACTED,REDACTED
07.11.2018,CHILDREN'S SERVICES,REDACTED PERSONAL DATA,776.08,DISABILITY & HIV,PAYMENTS TO CARERS,REDACTED,REDACTED
07.11.2018,CHILDREN'S SERVICES,REDACTED PERSONAL DATA,798.12,DISABILITY & HIV,PAYMENTS TO CARERS,REDACTED,REDACTED
07.11.2018,CHILDREN'S SERVICES,REDACTED PERSONAL DATA,798.12,DISABILITY & HIV,PAYMENTS TO CARERS,REDACTED,REDACTED
07.11.2018,CHILDREN'S SERVICES,REDACTED PERSONAL DATA,798.12,DISABILITY & HIV,PAYMENTS TO CARERS,REDACTED,REDACTED
07.11.2018,CHILDREN'S SERVICES,REDACTED PERSONAL DATA,798.12,DISABILITY & HIV,PAYMENTS TO CARERS,REDACTED,REDACTED
07.11.2018,CHILDREN'S SERVICES,REDACTED PERSONAL DATA,798.12,DISABILITY & HIV,PAYMENTS TO CARERS,REDACTED,REDACTED
07.11.2018,CHILDREN'S SERVICES,REDACTED PERSONAL DATA,798.12,DISABILITY & HIV,PAYMENTS TO CARERS,REDACTED,REDACTED
07.11.2018,CHILDREN'S SERVICES,REDACTED PERSONAL DATA,798.12,DISABILITY & HIV,PAYMENTS TO CARERS,REDACTED,REDACTED
07.11.2018,CHILDREN'S SERVICES,REDACTED PERSONAL DATA,798.12,DISABILITY & HIV,PAYMENTS TO CARERS,REDACTED,REDACTED
07.11.2018,CHILDREN'S SERVICES,REDACTED PERSONAL DATA,798.12,DISABILITY & HIV,PAYMENTS TO CARERS,REDACTED,REDACTED
07.11.2018,CHILDREN'S SERVICES,REDACTED PERSONAL DATA,798.12,DISABILITY & HIV,PAYMENTS TO CARERS,REDACTED,REDACTED
07.11.2018,CHILDREN'S SERVICES,REDACTED PERSONAL DATA,798.12,DISABILITY & HIV,PAYMENTS TO CARERS,REDACTED,REDACTED
07.11.2018,CHILDREN'S SERVICES,REDACTED PERSONAL DATA,798.12,DISABILITY & HIV,PAYMENTS TO CARERS,REDACTED,REDACTED
07.11.2018,CHILDREN'S SERVICES,REDACTED PERSONAL DATA,798.12,DISABILITY & HIV,PAYMENTS TO CARERS,REDACTED,REDACTED
07.11.2018,CHILDREN'S SERVICES,REDACTED PERSONAL DATA,798.12,DISABILITY & HIV,PAYMENTS TO CARERS,REDACTED,REDACTED
07.11.2018,CHILDREN'S SERVICES,REDACTED PERSONAL DATA,798.12,DISABILITY & HIV,PAYMENTS TO CARERS,REDACTED,REDACTED
07.11.2018,CHILDREN'S SERVICES,REDACTED PERSONAL DATA,798.12,DISABILITY & HIV,PAYMENTS TO CARERS,REDACTED,REDACTED
07.11.2018,CHILDREN'S SERVICES,REDACTED PERSONAL DATA,798.12,DISABILITY & HIV,PAYMENTS TO CARERS,REDACTED,REDACTED
07.11.2018,CHILDREN'S SERVICES,REDACTED PERSONAL DATA,798.12,DISABILITY & HIV,PAYMENTS TO CARERS,REDACTED,REDACTED
07.11.2018,CHILDREN'S SERVICES,REDACTED PERSONAL DATA,798.12,DISABILITY & HIV,PAYMENTS TO CARERS,REDACTED,REDACTED
07.11.2018,CHILDREN'S SERVICES,REDACTED PERSONAL DATA,804.55,DISABILITY & HIV,PAYMENTS TO CARERS,REDACTED,REDACTED
07.11.2018,CHILDREN'S SERVICES,REDACTED PERSONAL DATA,806.08,DISABILITY & HIV,PAYMENTS TO CARERS,REDACTED,REDACTED
07.11.2018,CHILDREN'S SERVICES,REDACTED PERSONAL DATA,806.08,DISABILITY & HIV,PAYMENTS TO CARERS,REDACTED,REDACTED
07.11.2018,CHILDREN'S SERVICES,REDACTED PERSONAL DATA,806.08,DISABILITY & HIV,PAYMENTS TO CARERS,REDACTED,REDACTED
07.11.2018,CHILDREN'S SERVICES,REDACTED PERSONAL DATA,806.08,DISABILITY & HIV,PAYMENTS TO CARERS,REDACTED,REDACTED
07.11.2018,CHILDREN'S SERVICES,REDACTED PERSONAL DATA,806.08,DISABILITY & HIV,PAYMENTS TO CARERS,REDACTED,REDACTED
07.11.2018,CHILDREN'S SERVICES,REDACTED PERSONAL DATA,806.08,DISABILITY & HIV,PAYMENTS TO CARERS,REDACTED,REDACTED
07.11.2018,CHILDREN'S SERVICES,REDACTED PERSONAL DATA,806.08,DISABILITY & HIV,PAYMENTS TO CARERS,REDACTED,REDACTED
07.11.2018,CHILDREN'S SERVICES,REDACTED PERSONAL DATA,806.08,DISABILITY & HIV,PAYMENTS TO CARERS,REDACTED,REDACTED
07.11.2018,CHILDREN'S SERVICES,REDACTED PERSONAL DATA,806.08,DISABILITY & HIV,PAYMENTS TO CARERS,REDACTED,REDACTED
07.11.2018,CHILDREN'S SERVICES,REDACTED PERSONAL DATA,806.08,DISABILITY & HIV,PAYMENTS TO CARERS,REDACTED,REDACTED
07.11.2018,CHILDREN'S SERVICES,REDACTED PERSONAL DATA,806.08,DISABILITY & HIV,PAYMENTS TO CARERS,REDACTED,REDACTED
07.11.2018,CHILDREN'S SERVICES,REDACTED PERSONAL DATA,806.08,DISABILITY & HIV,PAYMENTS TO CARERS,REDACTED,REDACTED
07.11.2018,CHILDREN'S SERVICES,REDACTED PERSONAL DATA,806.08,DISABILITY & HIV,PAYMENTS TO CARERS,REDACTED,REDACTED
07.11.2018,CHILDREN'S SERVICES,REDACTED PERSONAL DATA,806.08,DISABILITY & HIV,PAYMENTS TO CARERS,REDACTED,REDACTED
07.11.2018,CHILDREN'S SERVICES,REDACTED PERSONAL DATA,806.08,DISABILITY & HIV,PAYMENTS TO CARERS,REDACTED,REDACTED
07.11.2018,CHILDREN'S SERVICES,REDACTED PERSONAL DATA,806.08,DISABILITY & HIV,PAYMENTS TO CARERS,REDACTED,REDACTED
07.11.2018,CHILDREN'S SERVICES,REDACTED PERSONAL DATA,806.08,DISABILITY & HIV,PAYMENTS TO CARERS,REDACTED,REDACTED
07.11.2018,CHILDREN'S SERVICES,REDACTED PERSONAL DATA,806.08,DISABILITY & HIV,PAYMENTS TO CARERS,REDACTED,REDACTED
07.11.2018,CHILDREN'S SERVICES,REDACTED PERSONAL DATA,806.08,DISABILITY & HIV,PAYMENTS TO CARERS,REDACTED,REDACTED
07.11.2018,CHILDREN'S SERVICES,REDACTED PERSONAL DATA,806.08,DISABILITY & HIV,PAYMENTS TO CARERS,REDACTED,REDACTED
07.11.2018,CHILDREN'S SERVICES,REDACTED PERSONAL DATA,806.08,DISABILITY & HIV,PAYMENTS TO CARERS,REDACTED,REDACTED
07.11.2018,CHILDREN'S SERVICES,REDACTED PERSONAL DATA,842.12,DISABILITY & HIV,PAYMENTS TO CARERS,REDACTED,REDACTED
07.11.2018,CHILDREN'S SERVICES,REDACTED PERSONAL DATA,854.28,DISABILITY & HIV,PAYMENTS TO CARERS,REDACTED,REDACTED
07.11.2018,CHILDREN'S SERVICES,REDACTED PERSONAL DATA,882.3,DISABILITY & HIV,PAYMENTS TO CARERS,REDACTED,REDACTED
07.11.2018,CHILDREN'S SERVICES,REDACTED PERSONAL DATA,882.3,DISABILITY & HIV,PAYMENTS TO CARERS,REDACTED,REDACTED
07.11.2018,CHILDREN'S SERVICES,REDACTED PERSONAL DATA,882.3,DISABILITY & HIV,PAYMENTS TO CARERS,REDACTED,REDACTED
07.11.2018,CHILDREN'S SERVICES,REDACTED PERSONAL DATA,888.12,DISABILITY & HIV,PAYMENTS TO CARERS,REDACTED,REDACTED
07.11.2018,CHILDREN'S SERVICES,REDACTED PERSONAL DATA,888.12,DISABILITY & HIV,PAYMENTS TO CARERS,REDACTED,REDACTED
07.11.2018,CHILDREN'S SERVICES,REDACTED PERSONAL DATA,888.12,DISABILITY & HIV,PAYMENTS TO CARERS,REDACTED,REDACTED
07.11.2018,CHILDREN'S SERVICES,REDACTED PERSONAL DATA,888.12,DISABILITY & HIV,PAYMENTS TO CARERS,REDACTED,REDACTED
07.11.2018,CHILDREN'S SERVICES,REDACTED PERSONAL DATA,888.12,DISABILITY & HIV,PAYMENTS TO CARERS,REDACTED,REDACTED
07.11.2018,CHILDREN'S SERVICES,REDACTED PERSONAL DATA,888.12,DISABILITY & HIV,PAYMENTS TO CARERS,REDACTED,REDACTED
07.11.2018,CHILDREN'S SERVICES,REDACTED PERSONAL DATA,888.12,DISABILITY & HIV,PAYMENTS TO CARERS,REDACTED,REDACTED
07.11.2018,CHILDREN'S SERVICES,REDACTED PERSONAL DATA,912.3,DISABILITY & HIV,PAYMENTS TO CARERS,REDACTED,REDACTED
07.11.2018,CHILDREN'S SERVICES,REDACTED PERSONAL DATA,912.3,DISABILITY & HIV,PAYMENTS TO CARERS,REDACTED,REDACTED
07.11.2018,CHILDREN'S SERVICES,REDACTED PERSONAL DATA,912.3,DISABILITY & HIV,PAYMENTS TO CARERS,REDACTED,REDACTED
07.11.2018,CHILDREN'S SERVICES,REDACTED PERSONAL DATA,912.3,DISABILITY & HIV,PAYMENTS TO CARERS,REDACTED,REDACTED
07.11.2018,CHILDREN'S SERVICES,REDACTED PERSONAL DATA,912.3,DISABILITY & HIV,PAYMENTS TO CARERS,REDACTED,REDACTED
07.11.2018,CHILDREN'S SERVICES,REDACTED PERSONAL DATA,912.3,DISABILITY & HIV,PAYMENTS TO CARERS,REDACTED,REDACTED
07.11.2018,CHILDREN'S SERVICES,REDACTED PERSONAL DATA,912.3,DISABILITY & HIV,PAYMENTS TO CARERS,REDACTED,REDACTED
07.11.2018,CHILDREN'S SERVICES,REDACTED PERSONAL DATA,912.3,DISABILITY & HIV,PAYMENTS TO CARERS,REDACTED,REDACTED
07.11.2018,CHILDREN'S SERVICES,REDACTED PERSONAL DATA,991.42,DISABILITY & HIV,PAYMENTS TO CARERS,REDACTED,REDACTED
07.11.2018,CHILDREN'S SERVICES,REDACTED PERSONAL DATA,"1,068.12",DISABILITY & HIV,PAYMENTS TO CARERS,REDACTED,REDACTED
07.11.2018,CHILDREN'S SERVICES,REDACTED PERSONAL DATA,"1,068.12",DISABILITY & HIV,PAYMENTS TO CARERS,REDACTED,REDACTED
07.11.2018,CHILDREN'S SERVICES,REDACTED PERSONAL DATA,"1,068.12",DISABILITY & HIV,PAYMENTS TO CARERS,REDACTED,REDACTED
07.11.2018,CHILDREN'S SERVICES,REDACTED PERSONAL DATA,"1,076.08",DISABILITY & HIV,PAYMENTS TO CARERS,REDACTED,REDACTED
07.11.2018,CHILDREN'S SERVICES,REDACTED PERSONAL DATA,"1,076.08",DISABILITY & HIV,PAYMENTS TO CARERS,REDACTED,REDACTED
07.11.2018,CHILDREN'S SERVICES,REDACTED PERSONAL DATA,"1,076.08",DISABILITY & HIV,PAYMENTS TO CARERS,REDACTED,REDACTED
07.11.2018,CHILDREN'S SERVICES,REDACTED PERSONAL DATA,"1,076.08",DISABILITY & HIV,PAYMENTS TO CARERS,REDACTED,REDACTED
07.11.2018,CHILDREN'S SERVICES,REDACTED PERSONAL DATA,"1,098.12",DISABILITY & HIV,PAYMENTS TO CARERS,REDACTED,REDACTED
07.11.2018,CHILDREN'S SERVICES,REDACTED PERSONAL DATA,"1,098.12",DISABILITY & HIV,PAYMENTS TO CARERS,REDACTED,REDACTED
07.11.2018,CHILDREN'S SERVICES,REDACTED PERSONAL DATA,"1,098.12",DISABILITY & HIV,PAYMENTS TO CARERS,REDACTED,REDACTED
07.11.2018,CHILDREN'S SERVICES,REDACTED PERSONAL DATA,"1,106.08",DISABILITY & HIV,PAYMENTS TO CARERS,REDACTED,REDACTED
07.11.2018,CHILDREN'S SERVICES,REDACTED PERSONAL DATA,"1,106.08",DISABILITY & HIV,PAYMENTS TO CARERS,REDACTED,REDACTED
07.11.2018,CHILDREN'S SERVICES,REDACTED PERSONAL DATA,"1,106.08",DISABILITY & HIV,PAYMENTS TO CARERS,REDACTED,REDACTED
07.11.2018,CHILDREN'S SERVICES,REDACTED PERSONAL DATA,"1,106.08",DISABILITY & HIV,PAYMENTS TO CARERS,REDACTED,REDACTED
07.11.2018,CHILDREN'S SERVICES,REDACTED PERSONAL DATA,"1,106.08",DISABILITY & HIV,PAYMENTS TO CARERS,REDACTED,REDACTED
07.11.2018,CHILDREN'S SERVICES,REDACTED PERSONAL DATA,"1,106.08",DISABILITY & HIV,PAYMENTS TO CARERS,REDACTED,REDACTED
07.11.2018,CHILDREN'S SERVICES,REDACTED PERSONAL DATA,"1,106.08",DISABILITY & HIV,PAYMENTS TO CARERS,REDACTED,REDACTED
07.11.2018,CHILDREN'S SERVICES,REDACTED PERSONAL DATA,"1,106.08",DISABILITY & HIV,PAYMENTS TO CARERS,REDACTED,REDACTED
07.11.2018,CHILDREN'S SERVICES,REDACTED PERSONAL DATA,"1,106.08",DISABILITY & HIV,PAYMENTS TO CARERS,REDACTED,REDACTED
07.11.2018,CHILDREN'S SERVICES,REDACTED PERSONAL DATA,"1,106.08",DISABILITY & HIV,PAYMENTS TO CARERS,REDACTED,REDACTED
07.11.2018,CHILDREN'S SERVICES,REDACTED PERSONAL DATA,"1,106.08",DISABILITY & HIV,PAYMENTS TO CARERS,REDACTED,REDACTED
07.11.2018,CHILDREN'S SERVICES,REDACTED PERSONAL DATA,"1,106.08",DISABILITY & HIV,PAYMENTS TO CARERS,REDACTED,REDACTED
07.11.2018,CHILDREN'S SERVICES,REDACTED PERSONAL DATA,"1,106.08",DISABILITY & HIV,PAYMENTS TO CARERS,REDACTED,REDACTED
07.11.2018,CHILDREN'S SERVICES,REDACTED PERSONAL DATA,"1,106.08",DISABILITY & HIV,PAYMENTS TO CARERS,REDACTED,REDACTED
07.11.2018,CHILDREN'S SERVICES,REDACTED PERSONAL DATA,"1,106.08",DISABILITY & HIV,PAYMENTS TO CARERS,REDACTED,REDACTED
07.11.2018,CHILDREN'S SERVICES,REDACTED PERSONAL DATA,"1,106.08",DISABILITY & HIV,PAYMENTS TO CARERS,REDACTED,REDACTED
07.11.2018,CHILDREN'S SERVICES,REDACTED PERSONAL DATA,"1,106.08",DISABILITY & HIV,PAYMENTS TO CARERS,REDACTED,REDACTED
07.11.2018,CHILDREN'S SERVICES,REDACTED PERSONAL DATA,"1,106.08",DISABILITY & HIV,PAYMENTS TO CARERS,REDACTED,REDACTED
07.11.2018,CHILDREN'S SERVICES,REDACTED PERSONAL DATA,"1,106.08",DISABILITY & HIV,PAYMENTS TO CARERS,REDACTED,REDACTED
07.11.2018,CHILDREN'S SERVICES,REDACTED PERSONAL DATA,"1,106.08",DISABILITY & HIV,PAYMENTS TO CARERS,REDACTED,REDACTED
07.11.2018,CHILDREN'S SERVICES,REDACTED PERSONAL DATA,"1,106.08",DISABILITY & HIV,PAYMENTS TO CARERS,REDACTED,REDACTED
07.11.2018,CHILDREN'S SERVICES,REDACTED PERSONAL DATA,"1,106.08",DISABILITY & HIV,PAYMENTS TO CARERS,REDACTED,REDACTED
07.11.2018,CHILDREN'S SERVICES,REDACTED PERSONAL DATA,"1,106.08",DISABILITY & HIV,PAYMENTS TO CARERS,REDACTED,REDACTED
07.11.2018,CHILDREN'S SERVICES,REDACTED PERSONAL DATA,"1,106.08",DISABILITY & HIV,PAYMENTS TO CARERS,REDACTED,REDACTED
07.11.2018,CHILDREN'S SERVICES,REDACTED PERSONAL DATA,"1,128.12",DISABILITY & HIV,PAYMENTS TO CARERS,REDACTED,REDACTED
07.11.2018,CHILDREN'S SERVICES,REDACTED PERSONAL DATA,"1,155.98",DISABILITY & HIV,PAYMENTS TO CARERS,REDACTED,REDACTED
07.11.2018,CHILDREN'S SERVICES,REDACTED PERSONAL DATA,"1,188.12",DISABILITY & HIV,PAYMENTS TO CARERS,REDACTED,REDACTED
07.11.2018,CHILDREN'S SERVICES,REDACTED PERSONAL DATA,"1,188.12",DISABILITY & HIV,PAYMENTS TO CARERS,REDACTED,REDACTED
07.11.2018,CHILDREN'S SERVICES,REDACTED PERSONAL DATA,"1,188.12",DISABILITY & HIV,PAYMENTS TO CARERS,REDACTED,REDACTED
07.11.2018,CHILDREN'S SERVICES,REDACTED PERSONAL DATA,"1,188.12",DISABILITY & HIV,PAYMENTS TO CARERS,REDACTED,REDACTED
07.11.2018,CHILDREN'S SERVICES,REDACTED PERSONAL DATA,"1,221.08",DISABILITY & HIV,PAYMENTS TO CARERS,REDACTED,REDACTED
07.11.2018,CHILDREN'S SERVICES,REDACTED PERSONAL DATA,"1,224.20",DISABILITY & HIV,PAYMENTS TO CARERS,REDACTED,REDACTED
07.11.2018,CHILDREN'S SERVICES,REDACTED PERSONAL DATA,"1,291.42",DISABILITY & HIV,PAYMENTS TO CARERS,REDACTED,REDACTED
07.11.2018,CHILDREN'S SERVICES,REDACTED PERSONAL DATA,"1,294.60",DISABILITY & HIV,PAYMENTS TO CARERS,REDACTED,REDACTED
07.11.2018,CHILDREN'S SERVICES,REDACTED PERSONAL DATA,"1,394.60",DISABILITY & HIV,PAYMENTS TO CARERS,REDACTED,REDACTED
07.11.2018,CHILDREN'S SERVICES,REDACTED PERSONAL DATA,"1,406.08",DISABILITY & HIV,PAYMENTS TO CARERS,REDACTED,REDACTED
07.11.2018,CHILDREN'S SERVICES,REDACTED PERSONAL DATA,"1,481.37",DISABILITY & HIV,PAYMENTS TO CARERS,REDACTED,REDACTED
07.11.2018,CHILDREN'S SERVICES,REDACTED PERSONAL DATA,"1,488.12",DISABILITY & HIV,PAYMENTS TO CARERS,REDACTED,REDACTED
07.11.2018,CHILDREN'S SERVICES,REDACTED PERSONAL DATA,"1,633.46",DISABILITY & HIV,PAYMENTS TO CARERS,REDACTED,REDACTED
07.11.2018,CHILDREN'S SERVICES,REDACTED PERSONAL DATA,"1,700.00",DISABILITY & HIV,PAYMENTS TO CARERS,REDACTED,REDACTED
07.11.2018,CHILDREN'S SERVICES,REDACTED PERSONAL DATA,"1,700.00",DISABILITY & HIV,PAYMENTS TO CARERS,REDACTED,REDACTED
07.11.2018,CHILDREN'S SERVICES,ALBION PRIMARY SCHOOL,"1,200.00",EARLY YEARS IMPROVEMENT,CONSULTANTS SERVICES,5902327683,5001000000
07.11.2018,CHILDREN'S SERVICES,EVELINA HOSPITAL SCHOOL,"1,200.00",EARLY YEARS IMPROVEMENT,CONSULTANTS SERVICES,5902327685,5001000031
07.11.2018,CHILDREN'S SERVICES,JAMMA UMOJA(COMMUNITY SERVICES) LTD,"3,298.00",FAMILY ASSESSMENTS,RESIDENTIAL CARE,2102885128,1000023825
07.11.2018,CHILDREN'S SERVICES,JAMMA UMOJA(COMMUNITY SERVICES) LTD,"3,298.00",FAMILY ASSESSMENTS,RESIDENTIAL CARE,2102885129,1000023825
07.11.2018,CHILDREN'S SERVICES,JAMMA UMOJA(COMMUNITY SERVICES) LTD,"3,298.00",FAMILY ASSESSMENTS,RESIDENTIAL CARE,2102885130,1000023825
07.11.2018,CHILDREN'S SERVICES,JAMMA UMOJA(COMMUNITY SERVICES) LTD,"3,298.00",FAMILY ASSESSMENTS,RESIDENTIAL CARE,2102885131,1000023825
07.11.2018,CHILDREN'S SERVICES,CORAL SUPPORT,"27,630.00",FAMILY ASSESSMENTS,RESIDENTIAL CARE,5902327839,1000081529
07.11.2018,CHILDREN'S SERVICES,REDACTED PERSONAL DATA,300,FRIENDS & FAMILY FOSTERING,PAYMENTS TO CARERS,REDACTED,REDACTED
07.11.2018,CHILDREN'S SERVICES,REDACTED PERSONAL DATA,335.34,FRIENDS & FAMILY FOSTERING,PAYMENTS TO CARERS,REDACTED,REDACTED
07.11.2018,CHILDREN'S SERVICES,REDACTED PERSONAL DATA,335.34,FRIENDS & FAMILY FOSTERING,PAYMENTS TO CARERS,REDACTED,REDACTED
07.11.2018,CHILDREN'S SERVICES,REDACTED PERSONAL DATA,335.34,FRIENDS & FAMILY FOSTERING,PAYMENTS TO CARERS,REDACTED,REDACTED
07.11.2018,CHILDREN'S SERVICES,REDACTED PERSONAL DATA,382.3,FRIENDS & FAMILY FOSTERING,PAYMENTS TO CARERS,REDACTED,REDACTED
07.11.2018,CHILDREN'S SERVICES,REDACTED PERSONAL DATA,382.3,FRIENDS & FAMILY FOSTERING,PAYMENTS TO CARERS,REDACTED,REDACTED
07.11.2018,CHILDREN'S SERVICES,REDACTED PERSONAL DATA,476.08,FRIENDS & FAMILY FOSTERING,PAYMENTS TO CARERS,REDACTED,REDACTED
07.11.2018,CHILDREN'S SERVICES,REDACTED PERSONAL DATA,476.08,FRIENDS & FAMILY FOSTERING,PAYMENTS TO CARERS,REDACTED,REDACTED
07.11.2018,CHILDREN'S SERVICES,REDACTED PERSONAL DATA,476.08,FRIENDS & FAMILY FOSTERING,PAYMENTS TO CARERS,REDACTED,REDACTED
07.11.2018,CHILDREN'S SERVICES,REDACTED PERSONAL DATA,476.08,FRIENDS & FAMILY FOSTERING,PAYMENTS TO CARERS,REDACTED,REDACTED
07.11.2018,CHILDREN'S SERVICES,REDACTED PERSONAL DATA,476.08,FRIENDS & FAMILY FOSTERING,PAYMENTS TO CARERS,REDACTED,REDACTED
07.11.2018,CHILDREN'S SERVICES,REDACTED PERSONAL DATA,476.08,FRIENDS & FAMILY FOSTERING,PAYMENTS TO CARERS,REDACTED,REDACTED
07.11.2018,CHILDREN'S SERVICES,REDACTED PERSONAL DATA,635.34,FRIENDS & FAMILY FOSTERING,PAYMENTS TO CARERS,REDACTED,REDACTED
07.11.2018,CHILDREN'S SERVICES,REDACTED PERSONAL DATA,635.34,FRIENDS & FAMILY FOSTERING,PAYMENTS TO CARERS,REDACTED,REDACTED
07.11.2018,CHILDREN'S SERVICES,REDACTED PERSONAL DATA,682.3,FRIENDS & FAMILY FOSTERING,PAYMENTS TO CARERS,REDACTED,REDACTED
07.11.2018,CHILDREN'S SERVICES,REDACTED PERSONAL DATA,682.3,FRIENDS & FAMILY FOSTERING,PAYMENTS TO CARERS,REDACTED,REDACTED
07.11.2018,CHILDREN'S SERVICES,REDACTED PERSONAL DATA,682.3,FRIENDS & FAMILY FOSTERING,PAYMENTS TO CARERS,REDACTED,REDACTED
07.11.2018,CHILDREN'S SERVICES,REDACTED PERSONAL DATA,682.3,FRIENDS & FAMILY FOSTERING,PAYMENTS TO CARERS,REDACTED,REDACTED
07.11.2018,CHILDREN'S SERVICES,REDACTED PERSONAL DATA,682.3,FRIENDS & FAMILY FOSTERING,PAYMENTS TO CARERS,REDACTED,REDACTED
07.11.2018,CHILDREN'S SERVICES,REDACTED PERSONAL DATA,682.3,FRIENDS & FAMILY FOSTERING,PAYMENTS TO CARERS,REDACTED,REDACTED
07.11.2018,CHILDREN'S SERVICES,REDACTED PERSONAL DATA,682.3,FRIENDS & FAMILY FOSTERING,PAYMENTS TO CARERS,REDACTED,REDACTED
07.11.2018,CHILDREN'S SERVICES,REDACTED PERSONAL DATA,682.3,FRIENDS & FAMILY FOSTERING,PAYMENTS TO CARERS,REDACTED,REDACTED
07.11.2018,CHILDREN'S SERVICES,REDACTED PERSONAL DATA,682.3,FRIENDS & FAMILY FOSTERING,PAYMENTS TO CARERS,REDACTED,REDACTED
07.11.2018,CHILDREN'S SERVICES,REDACTED PERSONAL DATA,714.12,FRIENDS & FAMILY FOSTERING,PAYMENTS TO CARERS,REDACTED,REDACTED
07.11.2018,CHILDREN'S SERVICES,REDACTED PERSONAL DATA,776.08,FRIENDS & FAMILY FOSTERING,PAYMENTS TO CARERS,REDACTED,REDACTED
07.11.2018,CHILDREN'S SERVICES,REDACTED PERSONAL DATA,776.08,FRIENDS & FAMILY FOSTERING,PAYMENTS TO CARERS,REDACTED,REDACTED
07.11.2018,CHILDREN'S SERVICES,REDACTED PERSONAL DATA,776.08,FRIENDS & FAMILY FOSTERING,PAYMENTS TO CARERS,REDACTED,REDACTED
07.11.2018,CHILDREN'S SERVICES,REDACTED PERSONAL DATA,776.08,FRIENDS & FAMILY FOSTERING,PAYMENTS TO CARERS,REDACTED,REDACTED
07.11.2018,CHILDREN'S SERVICES,REDACTED PERSONAL DATA,776.08,FRIENDS & FAMILY FOSTERING,PAYMENTS TO CARERS,REDACTED,REDACTED
07.11.2018,CHILDREN'S SERVICES,REDACTED PERSONAL DATA,882.3,FRIENDS & FAMILY FOSTERING,PAYMENTS TO CARERS,REDACTED,REDACTED
07.11.2018,CHILDREN'S SERVICES,REDACTED PERSONAL DATA,882.3,FRIENDS & FAMILY FOSTERING,PAYMENTS TO CARERS,REDACTED,REDACTED
07.11.2018,CHILDREN'S SERVICES,REDACTED PERSONAL DATA,882.3,FRIENDS & FAMILY FOSTERING,PAYMENTS TO CARERS,REDACTED,REDACTED
07.11.2018,CHILDREN'S SERVICES,REDACTED PERSONAL DATA,882.3,FRIENDS & FAMILY FOSTERING,PAYMENTS TO CARERS,REDACTED,REDACTED
07.11.2018,CHILDREN'S SERVICES,REDACTED PERSONAL DATA,"1,067.66",FRIENDS & FAMILY FOSTERING,PAYMENTS TO CARERS,REDACTED,REDACTED
07.11.2018,CHILDREN'S SERVICES,REDACTED PERSONAL DATA,"1,076.08",FRIENDS & FAMILY FOSTERING,PAYMENTS TO CARERS,REDACTED,REDACTED
07.11.2018,CHILDREN'S SERVICES,REDACTED PERSONAL DATA,"1,076.08",FRIENDS & FAMILY FOSTERING,PAYMENTS TO CARERS,REDACTED,REDACTED
07.11.2018,CHILDREN'S SERVICES,REDACTED PERSONAL DATA,"1,076.08",FRIENDS & FAMILY FOSTERING,PAYMENTS TO CARERS,REDACTED,REDACTED
07.11.2018,CHILDREN'S SERVICES,REDACTED PERSONAL DATA,263.96,RESIDENCE ORDERS,PAYMENTS TO CARERS,REDACTED,REDACTED
07.11.2018,CHILDREN'S SERVICES,REDACTED PERSONAL DATA,264.16,RESIDENCE ORDERS,PAYMENTS TO CARERS,REDACTED,REDACTED
07.11.2018,CHILDREN'S SERVICES,REDACTED PERSONAL DATA,269.08,RESIDENCE ORDERS,PAYMENTS TO CARERS,REDACTED,REDACTED
07.11.2018,CHILDREN'S SERVICES,REDACTED PERSONAL DATA,269.08,RESIDENCE ORDERS,PAYMENTS TO CARERS,REDACTED,REDACTED
07.11.2018,CHILDREN'S SERVICES,REDACTED PERSONAL DATA,276.1,RESIDENCE ORDERS,PAYMENTS TO CARERS,REDACTED,REDACTED
07.11.2018,CHILDREN'S SERVICES,COMMUNITY BUILDING MANAGEMENT,"6,536.03",S24 CLA,EXTERNAL AGENCIES AND BODIES,5902327692,1000078932
07.11.2018,CHILDREN'S SERVICES,REDACTED PERSONAL DATA,405,SCH TRANS - CONTRACT COST,OTHER PAYMENTS FOR CLIENTS,REDACTED,REDACTED
07.11.2018,CHILDREN'S SERVICES,REDACTED PERSONAL DATA,529,SCH TRANS - CONTRACT COST,OTHER PAYMENTS FOR CLIENTS,REDACTED,REDACTED
07.11.2018,CHILDREN'S SERVICES,REDACTED PERSONAL DATA,562.8,SCH TRANS - CONTRACT COST,OTHER PAYMENTS FOR CLIENTS,REDACTED,REDACTED
07.11.2018,CHILDREN'S SERVICES,REDACTED PERSONAL DATA,"1,092.00",SCH TRANS - CONTRACT COST,OTHER PAYMENTS FOR CLIENTS,REDACTED,REDACTED
07.11.2018,CHILDREN'S SERVICES,REDACTED PERSONAL DATA,"1,110.00",SCH TRANS - CONTRACT COST,OTHER PAYMENTS FOR CLIENTS,REDACTED,REDACTED
07.11.2018,CHILDREN'S SERVICES,REDACTED PERSONAL DATA,"1,371.43",SEMI INDEPENDENT,OTHER PAYMENTS FOR CLIENTS,REDACTED,REDACTED
07.11.2018,CHILDREN'S SERVICES,REDACTED PERSONAL DATA,"1,600.00",SEMI INDEPENDENT,OTHER PAYMENTS FOR CLIENTS,REDACTED,REDACTED
07.11.2018,CHILDREN'S SERVICES,COMMUNITY BUILDING MANAGEMENT,"4,376.23",SEMI INDEPENDENT,EXTERNAL AGENCIES AND BODIES,5902327692,1000078932
07.11.2018,CHILDREN'S SERVICES,REDACTED PERSONAL DATA,269.08,SPECIAL GUARDIANSHIP,PAYMENTS TO CARERS,REDACTED,REDACTED
07.11.2018,CHILDREN'S SERVICES,REDACTED PERSONAL DATA,269.08,SPECIAL GUARDIANSHIP,PAYMENTS TO CARERS,REDACTED,REDACTED
07.11.2018,CHILDREN'S SERVICES,REDACTED PERSONAL DATA,269.08,SPECIAL GUARDIANSHIP,PAYMENTS TO CARERS,REDACTED,REDACTED
07.11.2018,CHILDREN'S SERVICES,REDACTED PERSONAL DATA,303.97,SPECIAL GUARDIANSHIP,PAYMENTS TO CARERS,REDACTED,REDACTED
07.11.2018,CHILDREN'S SERVICES,REDACTED PERSONAL DATA,342.45,SPECIAL GUARDIANSHIP,PAYMENTS TO CARERS,REDACTED,REDACTED
07.11.2018,CHILDREN'S SERVICES,REDACTED PERSONAL DATA,343.05,SPECIAL GUARDIANSHIP,PAYMENTS TO CARERS,REDACTED,REDACTED
07.11.2018,CHILDREN'S SERVICES,REDACTED PERSONAL DATA,356.15,SPECIAL GUARDIANSHIP,PAYMENTS TO CARERS,REDACTED,REDACTED
07.11.2018,CHILDREN'S SERVICES,REDACTED PERSONAL DATA,388.04,SPECIAL GUARDIANSHIP,PAYMENTS TO CARERS,REDACTED,REDACTED
07.11.2018,CHILDREN'S SERVICES,REDACTED PERSONAL DATA,389.34,SPECIAL GUARDIANSHIP,PAYMENTS TO CARERS,REDACTED,REDACTED
07.11.2018,CHILDREN'S SERVICES,REDACTED PERSONAL DATA,403.04,SPECIAL GUARDIANSHIP,PAYMENTS TO CARERS,REDACTED,REDACTED
07.11.2018,CHILDREN'S SERVICES,REDACTED PERSONAL DATA,525,SPECIAL GUARDIANSHIP,PAYMENTS TO CARERS,REDACTED,REDACTED
07.11.2018,CHILDREN'S SERVICES,REDACTED PERSONAL DATA,525,SPECIAL GUARDIANSHIP,PAYMENTS TO CARERS,REDACTED,REDACTED
07.11.2018,CHILDREN'S SERVICES,REDACTED PERSONAL DATA,525,SPECIAL GUARDIANSHIP,PAYMENTS TO CARERS,REDACTED,REDACTED
07.11.2018,CHILDREN'S SERVICES,REDACTED PERSONAL DATA,964.5,SPECIAL GUARDIANSHIP,PAYMENTS TO CARERS,REDACTED,REDACTED
07.11.2018,CHILDREN'S SERVICES,REDACTED PERSONAL DATA,"1,599.23",SPECIAL GUARDIANSHIP,EXTERNAL AGENCIES AND BODIES,REDACTED,REDACTED
07.11.2018,CHILDREN'S SERVICES,REDACTED PERSONAL DATA,"4,085.59",SPECIAL GUARDIANSHIP,EXTERNAL AGENCIES AND BODIES,REDACTED,REDACTED
07.11.2018,CHILDREN'S SERVICES,REDACTED PERSONAL DATA,373.46,STAYING PUT,PAYMENTS TO CARERS,REDACTED,REDACTED
07.11.2018,CHILDREN'S SERVICES,REDACTED PERSONAL DATA,430,STAYING PUT,PAYMENTS TO CARERS,REDACTED,REDACTED
07.11.2018,CHILDREN'S SERVICES,REDACTED PERSONAL DATA,500,STAYING PUT,PAYMENTS TO CARERS,REDACTED,REDACTED
07.11.2018,CHILDREN'S SERVICES,REDACTED PERSONAL DATA,500,STAYING PUT,PAYMENTS TO CARERS,REDACTED,REDACTED
07.11.2018,CHILDREN'S SERVICES,REDACTED PERSONAL DATA,500,STAYING PUT,PAYMENTS TO CARERS,REDACTED,REDACTED
07.11.2018,CHILDREN'S SERVICES,REDACTED PERSONAL DATA,500,STAYING PUT,PAYMENTS TO CARERS,REDACTED,REDACTED
07.11.2018,CHILDREN'S SERVICES,REDACTED PERSONAL DATA,500,STAYING PUT,PAYMENTS TO CARERS,REDACTED,REDACTED
07.11.2018,CHILDREN'S SERVICES,REDACTED PERSONAL DATA,500,STAYING PUT,PAYMENTS TO CARERS,REDACTED,REDACTED
07.11.2018,CHILDREN'S SERVICES,REDACTED PERSONAL DATA,500,STAYING PUT,PAYMENTS TO CARERS,REDACTED,REDACTED
07.11.2018,CHILDREN'S SERVICES,REDACTED PERSONAL DATA,500,STAYING PUT,PAYMENTS TO CARERS,REDACTED,REDACTED
07.11.2018,CHILDREN'S SERVICES,REDACTED PERSONAL DATA,500,STAYING PUT,PAYMENTS TO CARERS,REDACTED,REDACTED
07.11.2018,CHILDREN'S SERVICES,REDACTED PERSONAL DATA,500,STAYING PUT,PAYMENTS TO CARERS,REDACTED,REDACTED
07.11.2018,CHILDREN'S SERVICES,REDACTED PERSONAL DATA,500,STAYING PUT,PAYMENTS TO CARERS,REDACTED,REDACTED
07.11.2018,CHILDREN'S SERVICES,REDACTED PERSONAL DATA,500,STAYING PUT,PAYMENTS TO CARERS,REDACTED,REDACTED
07.11.2018,CHILDREN'S SERVICES,REDACTED PERSONAL DATA,500,STAYING PUT,PAYMENTS TO CARERS,REDACTED,REDACTED
07.11.2018,CHILDREN'S SERVICES,REDACTED PERSONAL DATA,500,STAYING PUT,PAYMENTS TO CARERS,REDACTED,REDACTED
07.11.2018,CHILDREN'S SERVICES,REDACTED PERSONAL DATA,500,STAYING PUT,PAYMENTS TO CARERS,REDACTED,REDACTED
07.11.2018,CHILDREN'S SERVICES,REDACTED PERSONAL DATA,500,STAYING PUT,PAYMENTS TO CARERS,REDACTED,REDACTED
07.11.2018,CHILDREN'S SERVICES,REDACTED PERSONAL DATA,500,STAYING PUT,PAYMENTS TO CARERS,REDACTED,REDACTED
07.11.2018,CHILDREN'S SERVICES,REDACTED PERSONAL DATA,500,STAYING PUT,PAYMENTS TO CARERS,REDACTED,REDACTED
07.11.2018,CHILDREN'S SERVICES,REDACTED PERSONAL DATA,500,STAYING PUT,PAYMENTS TO CARERS,REDACTED,REDACTED
07.11.2018,CHILDREN'S SERVICES,REDACTED PERSONAL DATA,500,STAYING PUT,PAYMENTS TO CARERS,REDACTED,REDACTED
07.11.2018,CHILDREN'S SERVICES,REDACTED PERSONAL DATA,500,STAYING PUT,PAYMENTS TO CARERS,REDACTED,REDACTED
07.11.2018,CHILDREN'S SERVICES,REDACTED PERSONAL DATA,500,STAYING PUT,PAYMENTS TO CARERS,REDACTED,REDACTED
07.11.2018,CHILDREN'S SERVICES,REDACTED PERSONAL DATA,500,STAYING PUT,PAYMENTS TO CARERS,REDACTED,REDACTED
07.11.2018,CHILDREN'S SERVICES,REDACTED PERSONAL DATA,500,STAYING PUT,PAYMENTS TO CARERS,REDACTED,REDACTED
07.11.2018,CHILDREN'S SERVICES,REDACTED PERSONAL DATA,500,STAYING PUT,PAYMENTS TO CARERS,REDACTED,REDACTED
07.11.2018,CHILDREN'S SERVICES,REDACTED PERSONAL DATA,500,STAYING PUT,PAYMENTS TO CARERS,REDACTED,REDACTED
07.11.2018,CHILDREN'S SERVICES,REDACTED PERSONAL DATA,500,STAYING PUT,PAYMENTS TO CARERS,REDACTED,REDACTED
07.11.2018,CHILDREN'S SERVICES,REDACTED PERSONAL DATA,500,STAYING PUT,PAYMENTS TO CARERS,REDACTED,REDACTED
07.11.2018,CHILDREN'S SERVICES,REDACTED PERSONAL DATA,535.72,STAYING PUT,PAYMENTS TO CARERS,REDACTED,REDACTED
07.11.2018,CHILDREN'S SERVICES,REDACTED PERSONAL DATA,700,STAYING PUT,PAYMENTS TO CARERS,REDACTED,REDACTED
07.11.2018,CHILDREN'S SERVICES,REDACTED PERSONAL DATA,"1,379.08",STAYING PUT,PAYMENTS TO CARERS,REDACTED,REDACTED
07.11.2018,CHILDREN'S SERVICES,REDACTED PERSONAL DATA,"1,633.46",STAYING PUT,PAYMENTS TO CARERS,REDACTED,REDACTED
07.11.2018,CHILDREN'S SERVICES,THE GROVE CHILDRENS CENTRE,"1,951.00",TEACHERS PAY GRANT,SCHOOLS CAPITATION,2102885159,5001000090
07.11.2018,CHILDREN'S SERVICES,DULWICH WOOD CHILDRENS CENTRE,"1,951.00",TEACHERS PAY GRANT,SCHOOLS CAPITATION,2102885157,5001000099
07.11.2018,CHILDREN'S SERVICES,ST JUDES CHURCH OF ENGLAND PRIMARY,"1,991.00",TEACHERS PAY GRANT,SCHOOLS CAPITATION,2102885206,5001000019
07.11.2018,CHILDREN'S SERVICES,ANN BERNADT NURSERY SCHOOL,"2,654.00",TEACHERS PAY GRANT,SCHOOLS CAPITATION,2102885156,5001000085
07.11.2018,CHILDREN'S SERVICES,ST GEORGES CE SCHOOL,"2,888.00",TEACHERS PAY GRANT,SCHOOLS CAPITATION,2102885198,5001000069
07.11.2018,CHILDREN'S SERVICES,BEORMUND PRIMARY SCHOOL,"3,124.00",TEACHERS PAY GRANT,SCHOOLS CAPITATION,2102885228,5001000008
07.11.2018,CHILDREN'S SERVICES,NELL GWYNN NURSERY SCHOOL,"3,278.00",TEACHERS PAY GRANT,SCHOOLS CAPITATION,2102885158,5001000049
07.11.2018,CHILDREN'S SERVICES,VICTORY SCHOOL,"3,376.00",TEACHERS PAY GRANT,SCHOOLS CAPITATION,2102885187,5001000098
07.11.2018,CHILDREN'S SERVICES,ST JOSEPHS CATHOLIC INFANTS SCHOOL,"3,610.00",TEACHERS PAY GRANT,SCHOOLS CAPITATION,2102885217,5001000018
07.11.2018,CHILDREN'S SERVICES,EVELINA HOSPITAL SCHOOL,"3,749.00",TEACHERS PAY GRANT,SCHOOLS CAPITATION,2102885225,5001000031
07.11.2018,CHILDREN'S SERVICES,BETHLEM & MAUDSLEY HOSPITAL SCHOOL,"3,902.00",TEACHERS PAY GRANT,SCHOOLS CAPITATION,2102885226,5001000010
07.11.2018,CHILDREN'S SERVICES,ST JOHNS WALWORTH CE SCHOOL,"3,981.00",TEACHERS PAY GRANT,SCHOOLS CAPITATION,2102885202,5001000072
07.11.2018,CHILDREN'S SERVICES,PETER HILLS CE SCHOOL,"4,098.00",TEACHERS PAY GRANT,SCHOOLS CAPITATION,2102885208,5001000053
07.11.2018,CHILDREN'S SERVICES,CRAMPTON PRIMARY SCHOOL,"4,293.00",TEACHERS PAY GRANT,SCHOOLS CAPITATION,2102885166,5001000023
07.11.2018,CHILDREN'S SERVICES,TOWNSEND PRIMARY SCHOOL,"4,312.00",TEACHERS PAY GRANT,SCHOOLS CAPITATION,2102885186,5001000096
07.11.2018,CHILDREN'S SERVICES,CHERRY GARDEN SCHOOL,"4,374.00",TEACHERS PAY GRANT,SCHOOLS CAPITATION,2102885230,5001000020
07.11.2018,CHILDREN'S SERVICES,BOUCHER C OF E PRIMARY SCHOOL,"4,468.00",TEACHERS PAY GRANT,SCHOOLS CAPITATION,2102885193,5001000011
07.11.2018,CHILDREN'S SERVICES,HOLLYDALE PRIMARY SCHOOL,"4,468.00",TEACHERS PAY GRANT,SCHOOLS CAPITATION,2102885172,5001000036
07.11.2018,CHILDREN'S SERVICES,KINTORE WAY CHILDRENS CENTRE,"4,527.00",TEACHERS PAY GRANT,SCHOOLS CAPITATION,2102885155,5001000047
07.11.2018,CHILDREN'S SERVICES,ST MARY MAGDALENE CE SCHOOL,"4,527.00",TEACHERS PAY GRANT,SCHOOLS CAPITATION,2102885207,5001000080
07.11.2018,CHILDREN'S SERVICES,FRIARS PRIMARY SCHOOL,"4,566.00",TEACHERS PAY GRANT,SCHOOLS CAPITATION,2102885218,5001000033
07.11.2018,CHILDREN'S SERVICES,ST JOSEPHS RC JUNIOR  SCHOOL (046),"4,605.00",TEACHERS PAY GRANT,SCHOOLS CAPITATION,2102885216,5001000017
07.11.2018,CHILDREN'S SERVICES,TOWER BRIDGE PRIMARY SCHOOL,"4,605.00",TEACHERS PAY GRANT,SCHOOLS CAPITATION,2102885185,5001000095
07.11.2018,CHILDREN'S SERVICES,CATHEDRAL SCHOOL OF,"4,741.00",TEACHERS PAY GRANT,SCHOOLS CAPITATION,2102885211,5001000088
07.11.2018,CHILDREN'S SERVICES,SNOWSFIELDS PRIMARY SCHOOL,"4,819.00",TEACHERS PAY GRANT,SCHOOLS CAPITATION,2102885183,5001000061
07.11.2018,CHILDREN'S SERVICES,ST JAMES THE GREAT RC SCHOOL,"4,819.00",TEACHERS PAY GRANT,SCHOOLS CAPITATION,2102885196,5001000071
07.11.2018,CHILDREN'S SERVICES,ST PETERS CE SCHOOL,"4,858.00",TEACHERS PAY GRANT,SCHOOLS CAPITATION,2102885210,5001000083
07.11.2018,CHILDREN'S SERVICES,ST JOHNS RC PRIMARY SCHOOL,"4,917.00",TEACHERS PAY GRANT,SCHOOLS CAPITATION,2102885212,5001000075
07.11.2018,CHILDREN'S SERVICES,ST JOSEPHS CATHOLIC SCHOOL (0339),"5,054.00",TEACHERS PAY GRANT,SCHOOLS CAPITATION,2102885205,5001000076
07.11.2018,CHILDREN'S SERVICES,ST JOSEPHS CATHOLIC PRIMARY SCHOOL,"5,093.00",TEACHERS PAY GRANT,SCHOOLS CAPITATION,2102885204,5001000078
07.11.2018,CHILDREN'S SERVICES,PILGRIM'S WAY PRIMARY SCHOOL,"5,210.00",TEACHERS PAY GRANT,SCHOOLS CAPITATION,2102885190,5001000054
07.11.2018,CHILDREN'S SERVICES,BELLENDEN PRIMARY SCHOOL,"5,463.00",TEACHERS PAY GRANT,SCHOOLS CAPITATION,2102885161,5001000007
07.11.2018,CHILDREN'S SERVICES,NEWLANDS ACADEMY,"5,467.00",TEACHERS PAY GRANT,SCHOOLS CAPITATION,2102885232,1000072567
07.11.2018,CHILDREN'S SERVICES,ST GEORGES RC SCHOOL,"5,522.00",TEACHERS PAY GRANT,SCHOOLS CAPITATION,2102885199,5001000068
07.11.2018,CHILDREN'S SERVICES,TUKE SCHOOL,"5,623.00",TEACHERS PAY GRANT,SCHOOLS CAPITATION,2102885229,5001000097
07.11.2018,CHILDREN'S SERVICES,HAYMERLE SCHOOL,"6,014.00",TEACHERS PAY GRANT,SCHOOLS CAPITATION,2102885227,5001000045
07.11.2018,CHILDREN'S SERVICES,DULWICH VILLAGE CE INFANTS SCHOOL,"6,127.00",TEACHERS PAY GRANT,SCHOOLS CAPITATION,2102885194,5001000027
07.11.2018,CHILDREN'S SERVICES,COMBER GROVE PRIMARY SCHOOL,"6,244.00",TEACHERS PAY GRANT,SCHOOLS CAPITATION,2102885165,5001000022
07.11.2018,CHILDREN'S SERVICES,ROBERT BROWNING PRIMARY SCHOOL,"6,536.00",TEACHERS PAY GRANT,SCHOOLS CAPITATION,2102885181,5001000057
07.11.2018,CHILDREN'S SERVICES,DULWICH WOOD PRIMARY SCHOOL,"6,614.00",TEACHERS PAY GRANT,SCHOOLS CAPITATION,2102885177,5001000042
07.11.2018,CHILDREN'S SERVICES,ST PAULS CE SCHOOL,"6,692.00",TEACHERS PAY GRANT,SCHOOLS CAPITATION,2102885209,5001000082
07.11.2018,CHILDREN'S SERVICES,RIVERSIDE PRIMARY SCHOOL,"6,946.00",TEACHERS PAY GRANT,SCHOOLS CAPITATION,2102885180,5001000056
07.11.2018,CHILDREN'S SERVICES,ST JOSEPHS RC PRIMARY SCHOOL (014B),"7,044.00",TEACHERS PAY GRANT,SCHOOLS CAPITATION,2102885203,5001000077
07.11.2018,CHILDREN'S SERVICES,CHARLOTTE  SHARMAN PRIMARY SCHOOL,"7,180.00",TEACHERS PAY GRANT,SCHOOLS CAPITATION,2102885188,5001000016
07.11.2018,CHILDREN'S SERVICES,ST FRANCESCA CABRINI PRIMARY SCHOOL,"7,492.00",TEACHERS PAY GRANT,SCHOOLS CAPITATION,2102885214,5001000065
07.11.2018,CHILDREN'S SERVICES,SPA EDUCATION TRUST,"7,810.00",TEACHERS PAY GRANT,SCHOOLS CAPITATION,2102885233,1000081600
07.11.2018,CHILDREN'S SERVICES,SOUTHWARK INCLUSIVE LEARNING SERVIC,"7,810.00",TEACHERS PAY GRANT,SCHOOLS CAPITATION,2102885231,5001000105
07.11.2018,CHILDREN'S SERVICES,GRANGE PRIMARY SCHOOL,"7,980.00",TEACHERS PAY GRANT,SCHOOLS CAPITATION,2102885170,5001000029
07.11.2018,CHILDREN'S SERVICES,ENGLISH MARTYRS RC PRIMARY SCHOOL,"8,097.00",TEACHERS PAY GRANT,SCHOOLS CAPITATION,2102885195,5001000030
07.11.2018,CHILDREN'S SERVICES,KEYWORTH PRIMARY SCHOOL,"8,351.00",TEACHERS PAY GRANT,SCHOOLS CAPITATION,2102885176,5001000041
07.11.2018,CHILDREN'S SERVICES,COBOURG PRIMARY SCHOOL,"8,721.00",TEACHERS PAY GRANT,SCHOOLS CAPITATION,2102885164,5001000021
07.11.2018,CHILDREN'S SERVICES,HEBER PRIMARY SCHOOL,"8,760.00",TEACHERS PAY GRANT,SCHOOLS CAPITATION,2102885171,5001000035
07.11.2018,CHILDREN'S SERVICES,ALBION PRIMARY SCHOOL,"8,878.00",TEACHERS PAY GRANT,SCHOOLS CAPITATION,2102885160,5001000000
07.11.2018,CHILDREN'S SERVICES,ILDERTON PRIMARY SCHOOL,"8,936.00",TEACHERS PAY GRANT,SCHOOLS CAPITATION,2102885173,5001000037
07.11.2018,CHILDREN'S SERVICES,MICHAEL FARADAY PRIMARY SCHOOL,"9,034.00",TEACHERS PAY GRANT,SCHOOLS CAPITATION,2102885179,5001000048
07.11.2018,CHILDREN'S SERVICES,ST ANTHONYS RC SCHOOL,"9,034.00",TEACHERS PAY GRANT,SCHOOLS CAPITATION,2102885215,5001000064
07.11.2018,CHILDREN'S SERVICES,RYE OAK PRIMARY SCHOOL,"9,053.00",TEACHERS PAY GRANT,SCHOOLS CAPITATION,2102885223,5001000059
07.11.2018,CHILDREN'S SERVICES,ST FRANCIS'S RC PRIMARY SCHOOL,"9,053.00",TEACHERS PAY GRANT,SCHOOLS CAPITATION,2102885197,5001000067
07.11.2018,CHILDREN'S SERVICES,LYNDHURST PRIMARY SCHOOL,"9,092.00",TEACHERS PAY GRANT,SCHOOLS CAPITATION,2102885178,5001000043
07.11.2018,CHILDREN'S SERVICES,ALFRED SALTER PRIMARY SCHOOL,"9,112.00",TEACHERS PAY GRANT,SCHOOLS CAPITATION,2102885191,5001000005
07.11.2018,CHILDREN'S SERVICES,ST JOHNS & ST CLEMENTS CE SCHOOL,"9,190.00",TEACHERS PAY GRANT,SCHOOLS CAPITATION,2102885201,5001000073
07.11.2018,CHILDREN'S SERVICES,OLIVER GOLDSMITH PRIMARY SCHOOL,"9,307.00",TEACHERS PAY GRANT,SCHOOLS CAPITATION,2102885192,5001000051
07.11.2018,CHILDREN'S SERVICES,DOG KENNEL HILL PRIMARY SCHOOL,"9,404.00",TEACHERS PAY GRANT,SCHOOLS CAPITATION,2102885168,5001000025
07.11.2018,CHILDREN'S SERVICES,CHARLES DICKENS PRIMARY SCHOOL,"9,638.00",TEACHERS PAY GRANT,SCHOOLS CAPITATION,2102885163,5001000015
07.11.2018,CHILDREN'S SERVICES,BRUNSWICK PARK PRIMARY SCHOOL,"9,716.00",TEACHERS PAY GRANT,SCHOOLS CAPITATION,2102885222,5001000013
07.11.2018,CHILDREN'S SERVICES,SOUTHWARK PARK PRIMARY SCHOOL,"9,755.00",TEACHERS PAY GRANT,SCHOOLS CAPITATION,2102885184,5001000062
07.11.2018,CHILDREN'S SERVICES,JOHN RUSKIN PRIMARY SCHOOL,"10,048.00",TEACHERS PAY GRANT,SCHOOLS CAPITATION,2102885175,5001000040
07.11.2018,CHILDREN'S SERVICES,CAMELOT PRIMARY SCHOOL,"10,341.00",TEACHERS PAY GRANT,SCHOOLS CAPITATION,2102885162,5001000014
07.11.2018,CHILDREN'S SERVICES,ROTHERHITHE PRIMARY SCHOOL,"10,341.00",TEACHERS PAY GRANT,SCHOOLS CAPITATION,2102885182,5001000058
07.11.2018,CHILDREN'S SERVICES,HIGHSHORE SCHOOL,"10,934.00",TEACHERS PAY GRANT,SCHOOLS CAPITATION,2102885224,5001000046
07.11.2018,CHILDREN'S SERVICES,CRAWFORD PRIMARY SCHOOL,"11,843.00",TEACHERS PAY GRANT,SCHOOLS CAPITATION,2102885167,5001000024
07.11.2018,CHILDREN'S SERVICES,IVYDALE PRIMARY SCHOOL,"11,863.00",TEACHERS PAY GRANT,SCHOOLS CAPITATION,2102885174,5001000038
07.11.2018,CHILDREN'S SERVICES,ST JAMES CE SCHOOL,"11,921.00",TEACHERS PAY GRANT,SCHOOLS CAPITATION,2102885200,5001000070
07.11.2018,CHILDREN'S SERVICES,PHOENIX PRIMARY SCHOOL,"12,058.00",TEACHERS PAY GRANT,SCHOOLS CAPITATION,2102885189,5001000032
07.11.2018,CHILDREN'S SERVICES,GOODRICH PRIMARY SCHOOL,"13,833.00",TEACHERS PAY GRANT,SCHOOLS CAPITATION,2102885169,5001000028
07.11.2018,CHILDREN'S SERVICES,BESSEMER GRANGE PRIMARY SCHOOL,"14,165.00",TEACHERS PAY GRANT,SCHOOLS CAPITATION,2102885221,5001000009
07.11.2018,CHILDREN'S SERVICES,NOTRE DAME RCGIRLS SCHOOL,"19,542.00",TEACHERS PAY GRANT,SCHOOLS CAPITATION,2102885220,5001000050
07.11.2018,CHILDREN'S SERVICES,ST SAVIOURS & ST OLAVES SCH,"23,794.00",TEACHERS PAY GRANT,SCHOOLS CAPITATION,2102885213,5001000084
07.11.2018,CHILDREN'S SERVICES,THE ST THOMAS THE APOSTLE COLLEGE,"26,377.00",TEACHERS PAY GRANT,SCHOOLS CAPITATION,2102885219,5001000074
07.11.2018,CHILDREN'S SERVICES,SOUTH OF THE RIVER INVESTMENTS LTD,"2,253.70",TEMPORARY ACCOMMODATION,EXTERNAL AGENCIES AND BODIES,5902327655,1000073638
07.11.2018,CHILDREN'S SERVICES,KENT COUNTY SUPPLIES,321.12,THOMAS CALTON CENTRE,GAS,5902327804,1000000291
07.11.2018,CHILDREN'S SERVICES,KENT COUNTY SUPPLIES,"1,190.26",THOMAS CALTON CENTRE,GAS,5902327792,1000000291
07.11.2018,CHILDREN'S SERVICES,REDACTED PERSONAL DATA,300,UNIVERSITY SUPPORT,CLIENT TRANSPORT,REDACTED,REDACTED
07.11.2018,CHILDREN'S SERVICES,REDACTED PERSONAL DATA,300,UNIVERSITY SUPPORT,CLIENT TRANSPORT,REDACTED,REDACTED
07.11.2018,CHILDREN'S SERVICES,REDACTED PERSONAL DATA,800,UNIVERSITY SUPPORT,OTHER PAYMENTS FOR CLIENTS,REDACTED,REDACTED
07.11.2018,CHILDREN'S SERVICES,REDACTED PERSONAL DATA,"2,550.00",UNIVERSITY SUPPORT,OTHER PAYMENTS FOR CLIENTS,REDACTED,REDACTED
07.11.2018,COMMUNITIES,THAMES REACH,"1,066.68",NO RECOURSE TO PUBLIC FUNDS,ACCOMMODATION CHARGES,5902327686,1723415
07.11.2018,COMMUNITIES,DARETHEALTHCARE UK LTD,"1,282.94",NO RECOURSE TO PUBLIC FUNDS,HOMECARE - C&V,2102884432,1000059149
07.11.2018,COMMUNITIES,STENFORD PROPERTY LTD,"2,232.00",NO RECOURSE TO PUBLIC FUNDS,ACCOMMODATION CHARGES,5902327782,1000074759
07.11.2018,COMMUNITIES,ISLINGTON COUNCIL,"2,500.00",NO RECOURSE TO PUBLIC FUNDS,SUBSCRIPTIONS,5902327816,11204697
07.11.2018,COMMUNITIES,HOME OFFICE SHARED SERVICES CENTRE,"7,871.33",NO RECOURSE TO PUBLIC FUNDS,PROFESSIONAL FEES,5902327701,1000058719
07.11.2018,COMMUNITIES,ZFA LTD,"9,206.00",NO RECOURSE TO PUBLIC FUNDS,ACCOMMODATION CHARGES,5902327776,1000074420
07.11.2018,COMMUNITIES,LIVING ACCOMODATION LTD,"11,873.00",NO RECOURSE TO PUBLIC FUNDS,ACCOMMODATION CHARGES,5902327831,1000063985
07.11.2018,COMMUNITIES,J & M OASIS LTD,"31,787.00",NO RECOURSE TO PUBLIC FUNDS,ACCOMMODATION CHARGES,5902327833,1000072169
07.11.2018,CUSTOMER EXPERIENCE HGF,RENT CONNECT HOUSING LTD,"-2,496.00",NIGHTLY TA (NSC),EXTERNAL AGENCIES AND BODIES,5902327723,1000074815
07.11.2018,CUSTOMER EXPERIENCE HGF,MSR HOUSING,"2,433.50",NIGHTLY TA (NSC),EXTERNAL AGENCIES AND BODIES,5902327666,1000079359
07.11.2018,CUSTOMER EXPERIENCE HGF,RENT CONNECT HOUSING LTD,"24,115.00",NIGHTLY TA (NSC),EXTERNAL AGENCIES AND BODIES,5902327721,1000074815
07.11.2018,ENVIRONMENT AND LEISURE,C S G (USHERS) LTD,500,CAPITAL PS (LEISURE),CONSTRUCTION FEES,5902327696,1000073203
07.11.2018,ENVIRONMENT AND LEISURE,INTO SERVICES LONDON LTD,"1,110.00",CAPITAL PS (LEISURE),CONST'N MAIN CONTRACT - NON CERTIFICATED,5902327747,1000059328
07.11.2018,ENVIRONMENT AND LEISURE,CONWAY AECOM LTD,"11,244.00",CAPITAL PS (LEISURE),CONSTRUCTION FEES  - EXTERNAL,5902327698,1000071205
07.11.2018,ENVIRONMENT AND LEISURE,GROUND CONTROL LIMITED,"194,763.85",CAPITAL PS (LEISURE),CONSTRUCTION FEES  - EXTERNAL,2102884142,3000001551
07.11.2018,ENVIRONMENT DIRECTORATE,SCOT GROUP LTD,315.36,COMMERCIAL VEH CTRL A/C,HIRED VEHICLES,5902327736,1709512
07.11.2018,ENVIRONMENT DIRECTORATE,ACCESS HIRE NATIONWIDE LTD,490,COMMERCIAL VEH CTRL A/C,HIRED VEHICLES,5902327649,1000048527
07.11.2018,ENVIRONMENT DIRECTORATE,UNIVERSAL TYRE & AUTOCENTRES,541.06,COMMERCIAL VEH CTRL A/C,OTHER VEHICLE RUNNING COSTS,5902327755,1000072475
07.11.2018,ENVIRONMENT DIRECTORATE,RAINBOW CAR WASH,656,COMMERCIAL VEH CTRL A/C,VEHICLE REPAIRS & MAINTENANCE,5902327759,1000079913
07.11.2018,ENVIRONMENT DIRECTORATE,FLEETSHIELD,"2,100.00",COMMERCIAL VEH CTRL A/C,VEHICLE REPAIRS & MAINTENANCE,5902327667,1000080852
07.11.2018,ENVIRONMENT DIRECTORATE,DAWSONRENTALS SWEEPERS,"2,300.00",COMMERCIAL VEH CTRL A/C,HIRED VEHICLES,5902327694,1000068168
07.11.2018,ENVIRONMENT DIRECTORATE,DAWSONRENTALS SWEEPERS,"2,300.00",COMMERCIAL VEH CTRL A/C,HIRED VEHICLES,5902327781,1000068168
07.11.2018,ENVIRONMENT DIRECTORATE,DAWSONRENTALS SWEEPERS,"2,300.00",COMMERCIAL VEH CTRL A/C,HIRED VEHICLES,5902327784,1000068168
07.11.2018,ENVIRONMENT DIRECTORATE,DAWSONRENTALS SWEEPERS,"2,300.00",COMMERCIAL VEH CTRL A/C,HIRED VEHICLES,5902327802,1000068168
07.11.2018,ENVIRONMENT DIRECTORATE,GREENHAM TRADING LTD,"1,143.76",ESTATE CLEANING-GENERAL,MATERIALS,5902327670,1000006610
07.11.2018,ENVIRONMENT DIRECTORATE,GREENHAM TRADING LTD,"2,994.62",ESTATE CLEANING-GENERAL,MATERIALS,5902327671,1000006610
07.11.2018,ENVIRONMENT DIRECTORATE,M H COACHWORKS & SONS LTD,959.76,FLEET INSURANCE WORKS,TRANSPORT INSURANCE COSTS,5902327748,1000033495
07.11.2018,ENVIRONMENT DIRECTORATE,M H COACHWORKS & SONS LTD,"1,130.23",FLEET INSURANCE WORKS,TRANSPORT INSURANCE COSTS,5902327754,1000033495
07.11.2018,ENVIRONMENT DIRECTORATE,M H COACHWORKS & SONS LTD,"1,470.62",FLEET INSURANCE WORKS,TRANSPORT INSURANCE COSTS,5902327750,1000033495
07.11.2018,ENVIRONMENT DIRECTORATE,CONTEGO SAFETY SOLUTIONS LTD,333.75,MANAGEMENT TEAM,MATERIALS,5902327679,1000077673
07.11.2018,ENVIRONMENT DIRECTORATE,FUTURE GARMENTS LTD T/A EUROX,386.81,MANAGEMENT TEAM,"CLOTHING, UNIFORMS & LAUNDRY",5902327678,1000080983
07.11.2018,ENVIRONMENT DIRECTORATE,CONTEGO SAFETY SOLUTIONS LTD,749.75,MANAGEMENT TEAM,MATERIALS,5902327657,1000077673
07.11.2018,ENVIRONMENT DIRECTORATE,D W WINDSOR LIMITED,"11,432.80",PUBLIC LIGHTING,MATERIALS,5902327699,1149856
07.11.2018,ENVIRONMENT DIRECTORATE,LARAC,425,SUSTAINABLE WASTE OVERHEADS,MARKETING & PUBLICITY SERVICES,5902327716,1000011025
07.11.2018,HOUSING & MODERNISATION,ST HELENA & OLDFIELD TR&A,750,VCS GRANTS,OTHER CONTRACTORS,5902327653,1000061625
07.11.2018,HOUSING HRA,MORGAN SINDALL PLC,"110,684.00",CAPITAL PS (HRA),CONSTRUCTION MAIN CONTRACT -CERTIFICATED,2102884143,3000001556
07.11.2018,HOUSING HRA,DOWNTOWN LEISURE LIMITED,"318,031.33",CAPITAL PS (HRA),CONSTRUCTION MAIN CONTRACT -CERTIFICATED,2102884141,3000002059
07.11.2018,HOUSING STRATEGY AND OPTIONS,ANDY GALE HOUSING CONSULTANCY,"1,552.00",HOMELESS & HOUSING OPTIONS MGT,TRAINING,5902327809,1000073916
07.11.2018,HOUSING STRATEGY AND OPTIONS,AMITY ESTATES LTD,"1,093.00",HOMELESS PROJECTS,GRANTS,5902327766,1000050384
07.11.2018,HOUSING STRATEGY AND OPTIONS,ANDY GALE HOUSING CONSULTANCY,"15,120.00",HOMELESSNESS TRAINING ACADEMY,TRAINING,5902327768,1000073916
07.11.2018,LEISURE DIRECTORATE,PENNINGTON CHOICES LTD,284,ACCOMODATION,PLANNED MAINTENANCE,5902327664,1000001687
07.11.2018,LEISURE DIRECTORATE,FUEL OILS LTD,683.8,CEMETERIES,VEHICLE FUEL,5902327832,1000026670
07.11.2018,LEISURE DIRECTORATE,CASTLE WATER LTD,989.16,CEMETERIES,WATER,5902327717,1000078867
07.11.2018,LEISURE DIRECTORATE,KENT COUNTY COUNCIL - LASER,"1,095.23",CEMETERIES,GAS,5902327806,1000012926
07.11.2018,LEISURE DIRECTORATE,KENT COUNTY COUNCIL - LASER,"2,378.94",CEMETERIES,GAS,5902327728,1000012926
07.11.2018,LEISURE DIRECTORATE,SCHOOL FURNITURE OFFERS,359,DULWICH AREA TEAM,OTHER R&M,5902327662,1000080939
07.11.2018,LEISURE DIRECTORATE,SIMPLY HIRE LTD,612.86,FACILITIES MANAGEMENT,BUILDING R&M,5902327706,1000018354
07.11.2018,LEISURE DIRECTORATE,SIMPLY HIRE LTD,"1,033.16",FACILITIES MANAGEMENT,BUILDING R&M,5902327704,1000018354
07.11.2018,LEISURE DIRECTORATE,G4S CASH SERVICES (UK) LTD,362.32,LIBARIES DEVELOPMENT,SECURITY SERVICES,5902327767,1420519
07.11.2018,LEISURE DIRECTORATE,ASKEWS & HOLTS LIBRARY SERVICES LTD,795.57,STOCK SERVICES,BOOKS & PUBLICATIONS,5902327697,1494168
07.11.2018,LEISURE DIRECTORATE,ASKEWS & HOLTS LIBRARY SERVICES LTD,"1,441.39",STOCK SERVICES,BOOKS & PUBLICATIONS,5902327658,1494168
07.11.2018,LEISURE DIRECTORATE,BOLINDA UK LTD,"5,000.00",STOCK SERVICES,SUBSCRIPTIONS,5902327731,1000075655
07.11.2018,MODERNISATION HGF,THE OPEN UNIVERSITY,"1,464.00",APPLICATIONS,TRAINING,5902327681,1000042076
07.11.2018,MODERNISATION HGF,JOHN STATTERS ASSOCIATES,"3,562.50",HR PAYROLL COSTS,CONSULTANTS SERVICES,5902327669,1000065600
07.11.2018,MODERNISATION HGF,IRON MOUNTAIN (UK) LTD,963.74,REPAIR AND MAINTENANCE SERVICES,INFORMATION MANAGEMENT,5902327786,1000078591
07.11.2018,MODERNISATION HGF,IRON MOUNTAIN (UK) LTD,"8,028.17",REPAIR AND MAINTENANCE SERVICES,INFORMATION MANAGEMENT,5902327779,1000078591
07.11.2018,MODERNISATION HGF,IRON MOUNTAIN (UK) LTD,"8,095.50",REPAIR AND MAINTENANCE SERVICES,INFORMATION MANAGEMENT,5902327772,1000078591
07.11.2018,MODERNISATION HGF,ITEC CONNECT LTD,"1,000.00",TECHNOLOGY,PRINTING,5902327646,1000080418
07.11.2018,MODERNISATION HGF,ITEC CONNECT LTD,"1,014.65",TECHNOLOGY,PRINTING,5902327647,1000080418
07.11.2018,MODERNISATION HGF,ITEC CONNECT LTD,"32,557.17",TECHNOLOGY,PRINTING,5902327650,1000080418
07.11.2018,SOUTHWARK BUILDING SERVICES,THAMESMEAD BUSINESS SERVICES  LTD,259.2,STORES/LOGISTICS,CREDITORS -GR/IR CLEARING ACCOUNT,5902327703,1011709
07.11.2018,SOUTHWARK BUILDING SERVICES,THAMESMEAD BUSINESS SERVICES  LTD,518.4,STORES/LOGISTICS,CREDITORS -GR/IR CLEARING ACCOUNT,5902327702,1011709
07.11.2018,SOUTHWARK BUILDING SERVICES,THAMESMEAD BUSINESS SERVICES  LTD,"1,137.60",STORES/LOGISTICS,CREDITORS -GR/IR CLEARING ACCOUNT,5902327702,1011709
07.11.2018,SOUTHWARK BUILDING SERVICES,THAMESMEAD BUSINESS SERVICES  LTD,"1,137.60",STORES/LOGISTICS,CREDITORS -GR/IR CLEARING ACCOUNT,5902327703,1011709
08.11.2018,ADULT SOCIAL CARE,REDACTED PERSONAL DATA,500,APPOINTEESHIPS,OTHER PAYMENTS FOR CLIENTS,REDACTED,REDACTED
08.11.2018,ADULT SOCIAL CARE,PGS SERVICES LTD,"1,572.00",APPOINTEESHIPS,OTHER PAYMENTS FOR CLIENTS,2102883987,1000081895
08.11.2018,ADULT SOCIAL CARE,BEDE CAFE PROJECT,260,LD LTS 18-64,DAYCARE,2102885786,1553877
08.11.2018,ADULT SOCIAL CARE,BEDE CAFE PROJECT,260,LD LTS 18-64,DAYCARE,2102885793,1553877
08.11.2018,ADULT SOCIAL CARE,BEDE CAFE PROJECT,260,LD LTS 18-64,DAYCARE,2102885794,1553877
08.11.2018,ADULT SOCIAL CARE,HEALTHCARE & TRANSPORT SERVICES,306,LD LTS 18-64,CLIENT TRANSPORT,2102885757,1000042743
08.11.2018,ADULT SOCIAL CARE,BEDE CAFE PROJECT,356,LD LTS 18-64,DAYCARE,2102885804,1553877
08.11.2018,ADULT SOCIAL CARE,HEALTHCARE & TRANSPORT SERVICES,448,LD LTS 18-64,CLIENT TRANSPORT,2102885774,1000042743
08.11.2018,ADULT SOCIAL CARE,LONDON CARE LTD,466.2,LD LTS 18-64,HOMECARE - C&V,2102885543,1000003398
08.11.2018,ADULT SOCIAL CARE,SURREY DOCKS FARM PROVIDENT SOCIETY,487.5,LD LTS 18-64,DAYCARE,2102885824,1000000958
08.11.2018,ADULT SOCIAL CARE,BEDE CAFE PROJECT,520,LD LTS 18-64,DAYCARE,2102885784,1553877
08.11.2018,ADULT SOCIAL CARE,BEDE CAFE PROJECT,520,LD LTS 18-64,DAYCARE,2102885799,1553877
08.11.2018,ADULT SOCIAL CARE,BEDE CAFE PROJECT,520,LD LTS 18-64,DAYCARE,2102885803,1553877
08.11.2018,ADULT SOCIAL CARE,BEDE CAFE PROJECT,520,LD LTS 18-64,DAYCARE,2102885807,1553877
08.11.2018,ADULT SOCIAL CARE,BEDE CAFE PROJECT,590,LD LTS 18-64,DAYCARE,2102885811,1553877
08.11.2018,ADULT SOCIAL CARE,BEDE CAFE PROJECT,632,LD LTS 18-64,DAYCARE,2102885796,1553877
08.11.2018,ADULT SOCIAL CARE,BEDE CAFE PROJECT,712,LD LTS 18-64,DAYCARE,2102885802,1553877
08.11.2018,ADULT SOCIAL CARE,SURREY DOCKS FARM PROVIDENT SOCIETY,720,LD LTS 18-64,DAYCARE,2102885825,1000000958
08.11.2018,ADULT SOCIAL CARE,TRUECARE HAVEN SUPPORT LTD,760,LD LTS 18-64,HOMECARE - SPOT,2102885759,1000078974
08.11.2018,ADULT SOCIAL CARE,BEDE CAFE PROJECT,780,LD LTS 18-64,DAYCARE,2102885783,1553877
08.11.2018,ADULT SOCIAL CARE,BEDE CAFE PROJECT,780,LD LTS 18-64,DAYCARE,2102885800,1553877
08.11.2018,ADULT SOCIAL CARE,TRUECARE HAVEN SUPPORT LTD,958.04,LD LTS 18-64,SUPPORTED LIVING,2102885769,1000078974
08.11.2018,ADULT SOCIAL CARE,SOUTHWARK DISABLEMENT ASSOCIATION,982.1,LD LTS 18-64,SUPPORTED LIVING,2102885818,1000011698
08.11.2018,ADULT SOCIAL CARE,BEDE CAFE PROJECT,"1,020.00",LD LTS 18-64,DAYCARE,2102885787,1553877
08.11.2018,ADULT SOCIAL CARE,BEDE CAFE PROJECT,"1,020.00",LD LTS 18-64,DAYCARE,2102885810,1553877
08.11.2018,ADULT SOCIAL CARE,BEDE CAFE PROJECT,"1,040.00",LD LTS 18-64,DAYCARE,2102885785,1553877
08.11.2018,ADULT SOCIAL CARE,BEDE CAFE PROJECT,"1,040.00",LD LTS 18-64,DAYCARE,2102885790,1553877
08.11.2018,ADULT SOCIAL CARE,BEDE CAFE PROJECT,"1,040.00",LD LTS 18-64,DAYCARE,2102885797,1553877
08.11.2018,ADULT SOCIAL CARE,BEDE CAFE PROJECT,"1,040.00",LD LTS 18-64,DAYCARE,2102885798,1553877
08.11.2018,ADULT SOCIAL CARE,BEDE CAFE PROJECT,"1,040.00",LD LTS 18-64,DAYCARE,2102885801,1553877
08.11.2018,ADULT SOCIAL CARE,BEDE CAFE PROJECT,"1,200.00",LD LTS 18-64,DAYCARE,2102885813,1553877
08.11.2018,ADULT SOCIAL CARE,BEDE CAFE PROJECT,"1,264.00",LD LTS 18-64,DAYCARE,2102885791,1553877
08.11.2018,ADULT SOCIAL CARE,BEDE CAFE PROJECT,"1,300.00",LD LTS 18-64,DAYCARE,2102885795,1553877
08.11.2018,ADULT SOCIAL CARE,BEDE CAFE PROJECT,"1,518.40",LD LTS 18-64,DAYCARE,2102885806,1553877
08.11.2018,ADULT SOCIAL CARE,BEDE CAFE PROJECT,"1,580.00",LD LTS 18-64,DAYCARE,2102885789,1553877
08.11.2018,ADULT SOCIAL CARE,BEDE CAFE PROJECT,"1,752.00",LD LTS 18-64,DAYCARE,2102885788,1553877
08.11.2018,ADULT SOCIAL CARE,SOUTHWARK DISABLEMENT ASSOCIATION,"2,122.56",LD LTS 18-64,HOMECARE - C&V,2102885822,1000011698
08.11.2018,ADULT SOCIAL CARE,BEDE CAFE PROJECT,"2,920.00",LD LTS 18-64,DAYCARE,2102885805,1553877
08.11.2018,ADULT SOCIAL CARE,BEDE CAFE PROJECT,"2,920.00",LD LTS 18-64,DAYCARE,2102885809,1553877
08.11.2018,ADULT SOCIAL CARE,LONDON CARE LTD,366.44,MEM LTS 18-64,HOMECARE - C&V,2102885642,1000003398
08.11.2018,ADULT SOCIAL CARE,HAVELOCK COURT(BUPA CARE),"4,080.00",MEM LTS 18-64,NURSING PLACEMENTS FEES,2102871839,1000028902
08.11.2018,ADULT SOCIAL CARE,HAVELOCK COURT(BUPA CARE),"4,080.00",MEM LTS 18-64,NURSING PLACEMENTS FEES,2102881734,1000028902
08.11.2018,ADULT SOCIAL CARE,MANLEY COURT NURSING HOME (BUPA),-537.8,MEM LTS 65+,"MAND STATUTORY CHARGES, NURSING",2102871198,11101434
08.11.2018,ADULT SOCIAL CARE,SEABROOK MANOR,-537.8,MEM LTS 65+,"MAND STATUTORY CHARGES, RESIDENTIAL",2102872104,1000031806
08.11.2018,ADULT SOCIAL CARE,SEABROOK MANOR,-537.8,MEM LTS 65+,"MAND STATUTORY CHARGES, RESIDENTIAL",2102881790,1000031806
08.11.2018,ADULT SOCIAL CARE,SNOWBALL CARE UK LTD,256,MEM LTS 65+,HOMECARE - SPOT,2102885763,1000081483
08.11.2018,ADULT SOCIAL CARE,LONDON CARE LTD,266.54,MEM LTS 65+,HOMECARE - C&V,2102885746,1000003398
08.11.2018,ADULT SOCIAL CARE,LONDON CARE LTD,728.5,MEM LTS 65+,HOMECARE - C&V,2102885693,1000003398
08.11.2018,ADULT SOCIAL CARE,LONDON CARE LTD,959.24,MEM LTS 65+,HOMECARE - C&V,2102885748,1000003398
08.11.2018,ADULT SOCIAL CARE,LONDON CARE LTD,961.88,MEM LTS 65+,HOMECARE - C&V,2102885734,1000003398
08.11.2018,ADULT SOCIAL CARE,MANLEY COURT NURSING HOME (BUPA),"1,882.30",MEM LTS 65+,"MAND STATUTORY CHARGES, NURSING",2102874663,11101434
08.11.2018,ADULT SOCIAL CARE,SNOWBALL CARE UK LTD,"2,208.00",MEM LTS 65+,HOMECARE - SPOT,2102885761,1000081483
08.11.2018,ADULT SOCIAL CARE,SEABROOK MANOR,"2,254.40",MEM LTS 65+,RESIDENTIAL CARE,2102872103,1000031806
08.11.2018,ADULT SOCIAL CARE,SEABROOK MANOR,"2,254.40",MEM LTS 65+,RESIDENTIAL CARE,2102881789,1000031806
08.11.2018,ADULT SOCIAL CARE,LONDON CARE LTD,"2,290.20",MEM LTS 65+,HOMECARE - C&V,2102885606,1000003398
08.11.2018,ADULT SOCIAL CARE,MANLEY COURT NURSING HOME (BUPA),"2,470.92",MEM LTS 65+,NURSING PLACEMENTS FEES,2102872007,11101434
08.11.2018,ADULT SOCIAL CARE,MANLEY COURT NURSING HOME (BUPA),"2,470.92",MEM LTS 65+,NURSING PLACEMENTS FEES,2102882170,11101434
08.11.2018,ADULT SOCIAL CARE,MANLEY COURT NURSING HOME (BUPA),"2,647.36",MEM LTS 65+,NURSING PLACEMENTS FEES,2102871197,11101434
08.11.2018,ADULT SOCIAL CARE,MANLEY COURT NURSING HOME (BUPA),"2,647.36",MEM LTS 65+,NURSING PLACEMENTS FEES,2102881819,11101434
08.11.2018,ADULT SOCIAL CARE,COLLINGWOOD COURT (BUPA CARE HOMES),"2,805.60",MEM LTS 65+,NURSING PLACEMENTS FEES,2102871451,11042563
08.11.2018,ADULT SOCIAL CARE,COLLINGWOOD COURT (BUPA CARE HOMES),"2,805.60",MEM LTS 65+,NURSING PLACEMENTS FEES,2102881344,11042563
08.11.2018,ADULT SOCIAL CARE,COLLINGWOOD COURT (BUPA CARE HOMES),-327,MH LTS 18-64,"MAND STATUTORY CHARGES, NURSING",2102872021,11042563
08.11.2018,ADULT SOCIAL CARE,COLLINGWOOD COURT (BUPA CARE HOMES),-327,MH LTS 18-64,"MAND STATUTORY CHARGES, NURSING",2102881610,11042563
08.11.2018,ADULT SOCIAL CARE,LONDON CARE LTD,266.4,MH LTS 18-64,HOMECARE - C&V,2102885562,1000003398
08.11.2018,ADULT SOCIAL CARE,ABC SELFSTORE,310.05,MH LTS 18-64,OTHER PAYMENTS FOR CLIENTS,2102885828,1000048384
08.11.2018,ADULT SOCIAL CARE,LONDON CARE LTD,532.8,MH LTS 18-64,HOMECARE - C&V,2102885531,1000003398
08.11.2018,ADULT SOCIAL CARE,LONDON CARE LTD,699.44,MH LTS 18-64,HOMECARE - C&V,2102885540,1000003398
08.11.2018,ADULT SOCIAL CARE,LONDON CARE LTD,791.15,MH LTS 18-64,HOMECARE - C&V,2102885539,1000003398
08.11.2018,ADULT SOCIAL CARE,LONDON CARE LTD,915.75,MH LTS 18-64,HOMECARE - C&V,2102885557,1000003398
08.11.2018,ADULT SOCIAL CARE,HAVELOCK COURT(BUPA CARE),"1,776.00",MH LTS 18-64,NURSING PLACEMENTS FEES,2102872016,1000028902
08.11.2018,ADULT SOCIAL CARE,HAVELOCK COURT(BUPA CARE),"1,776.00",MH LTS 18-64,NURSING PLACEMENTS FEES,2102882183,1000028902
08.11.2018,ADULT SOCIAL CARE,COLLINGWOOD COURT (BUPA CARE HOMES),"2,715.52",MH LTS 18-64,NURSING PLACEMENTS FEES,2102872022,11042563
08.11.2018,ADULT SOCIAL CARE,COLLINGWOOD COURT (BUPA CARE HOMES),"2,715.52",MH LTS 18-64,NURSING PLACEMENTS FEES,2102881611,11042563
08.11.2018,ADULT SOCIAL CARE,COLLINGWOOD COURT (BUPA CARE HOMES),"3,067.76",MH LTS 18-64,NURSING PLACEMENTS FEES,2102871319,11042563
08.11.2018,ADULT SOCIAL CARE,COLLINGWOOD COURT (BUPA CARE HOMES),"3,067.76",MH LTS 18-64,NURSING PLACEMENTS FEES,2102881673,11042563
08.11.2018,ADULT SOCIAL CARE,MANLEY COURT NURSING HOME (BUPA),"3,280.00",MH LTS 18-64,NURSING PLACEMENTS FEES,2102870940,11101434
08.11.2018,ADULT SOCIAL CARE,MANLEY COURT NURSING HOME (BUPA),"3,280.00",MH LTS 18-64,NURSING PLACEMENTS FEES,2102881099,11101434
08.11.2018,ADULT SOCIAL CARE,LONDON CARE LTD,266.4,MH LTS 65+,HOMECARE - C&V,2102885534,1000003398
08.11.2018,ADULT SOCIAL CARE,LONDON CARE LTD,533,MH LTS 65+,HOMECARE - C&V,2102885555,1000003398
08.11.2018,ADULT SOCIAL CARE,LONDON CARE LTD,666,MH LTS 65+,HOMECARE - C&V,2102885692,1000003398
08.11.2018,ADULT SOCIAL CARE,LONDON CARE LTD,766.12,MH LTS 65+,HOMECARE - C&V,2102885538,1000003398
08.11.2018,ADULT SOCIAL CARE,MANLEY COURT NURSING HOME (BUPA),"2,647.36",MH LTS 65+,NURSING PLACEMENTS FEES,2102871070,11101434
08.11.2018,ADULT SOCIAL CARE,MANLEY COURT NURSING HOME (BUPA),"2,647.36",MH LTS 65+,NURSING PLACEMENTS FEES,2102881406,11101434
08.11.2018,ADULT SOCIAL CARE,SNOWBALL CARE UK LTD,284,PHY LTS 18-64,HOMECARE - SPOT,2102885775,1000081483
08.11.2018,ADULT SOCIAL CARE,LONDON CARE LTD,316.38,PHY LTS 18-64,HOMECARE - C&V,2102885604,1000003398
08.11.2018,ADULT SOCIAL CARE,LONDON CARE LTD,316.4,PHY LTS 18-64,HOMECARE - C&V,2102885593,1000003398
08.11.2018,ADULT SOCIAL CARE,LONDON CARE LTD,324.74,PHY LTS 18-64,HOMECARE - C&V,2102885720,1000003398
08.11.2018,ADULT SOCIAL CARE,LONDON CARE LTD,337.23,PHY LTS 18-64,HOMECARE - SPOT,2102885739,1000003398
08.11.2018,ADULT SOCIAL CARE,LONDON CARE LTD,349.68,PHY LTS 18-64,HOMECARE - C&V,2102885641,1000003398
08.11.2018,ADULT SOCIAL CARE,LONDON CARE LTD,349.72,PHY LTS 18-64,HOMECARE - C&V,2102885598,1000003398
08.11.2018,ADULT SOCIAL CARE,LONDON CARE LTD,349.72,PHY LTS 18-64,HOMECARE - C&V,2102885678,1000003398
08.11.2018,ADULT SOCIAL CARE,LONDON CARE LTD,349.76,PHY LTS 18-64,HOMECARE - C&V,2102885554,1000003398
08.11.2018,ADULT SOCIAL CARE,LONDON CARE LTD,482.92,PHY LTS 18-64,HOMECARE - C&V,2102885616,1000003398
08.11.2018,ADULT SOCIAL CARE,LONDON CARE LTD,482.96,PHY LTS 18-64,HOMECARE - C&V,2102885573,1000003398
08.11.2018,ADULT SOCIAL CARE,LONDON CARE LTD,487.17,PHY LTS 18-64,HOMECARE - C&V,2102885611,1000003398
08.11.2018,ADULT SOCIAL CARE,LONDON CARE LTD,533.08,PHY LTS 18-64,HOMECARE - C&V,2102885657,1000003398
08.11.2018,ADULT SOCIAL CARE,LONDON CARE LTD,537.16,PHY LTS 18-64,HOMECARE - C&V,2102885634,1000003398
08.11.2018,ADULT SOCIAL CARE,LONDON CARE LTD,566.1,PHY LTS 18-64,HOMECARE - C&V,2102885566,1000003398
08.11.2018,ADULT SOCIAL CARE,LONDON CARE LTD,566.4,PHY LTS 18-64,HOMECARE - C&V,2102885594,1000003398
08.11.2018,ADULT SOCIAL CARE,LONDON CARE LTD,566.4,PHY LTS 18-64,HOMECARE - C&V,2102885647,1000003398
08.11.2018,ADULT SOCIAL CARE,LONDON CARE LTD,570.47,PHY LTS 18-64,HOMECARE - C&V,2102885588,1000003398
08.11.2018,ADULT SOCIAL CARE,LONDON CARE LTD,582.96,PHY LTS 18-64,HOMECARE - C&V,2102885673,1000003398
08.11.2018,ADULT SOCIAL CARE,LONDON CARE LTD,616.24,PHY LTS 18-64,HOMECARE - C&V,2102885721,1000003398
08.11.2018,ADULT SOCIAL CARE,LONDON CARE LTD,616.28,PHY LTS 18-64,HOMECARE - C&V,2102885574,1000003398
08.11.2018,ADULT SOCIAL CARE,LONDON CARE LTD,616.28,PHY LTS 18-64,HOMECARE - C&V,2102885707,1000003398
08.11.2018,ADULT SOCIAL CARE,LONDON CARE LTD,649.56,PHY LTS 18-64,HOMECARE - SPOT,2102885749,1000003398
08.11.2018,ADULT SOCIAL CARE,LONDON CARE LTD,670.39,PHY LTS 18-64,HOMECARE - C&V,2102885608,1000003398
08.11.2018,ADULT SOCIAL CARE,LONDON CARE LTD,670.39,PHY LTS 18-64,HOMECARE - C&V,2102885732,1000003398
08.11.2018,ADULT SOCIAL CARE,LONDON CARE LTD,699.44,PHY LTS 18-64,HOMECARE - C&V,2102885575,1000003398
08.11.2018,ADULT SOCIAL CARE,LONDON CARE LTD,716.16,PHY LTS 18-64,HOMECARE - C&V,2102885745,1000003398
08.11.2018,ADULT SOCIAL CARE,LONDON CARE LTD,757.64,PHY LTS 18-64,HOMECARE - C&V,2102885669,1000003398
08.11.2018,ADULT SOCIAL CARE,LONDON CARE LTD,799.27,PHY LTS 18-64,HOMECARE - C&V,2102885656,1000003398
08.11.2018,ADULT SOCIAL CARE,LONDON CARE LTD,816.2,PHY LTS 18-64,HOMECARE - C&V,2102885679,1000003398
08.11.2018,ADULT SOCIAL CARE,LONDON CARE LTD,832.64,PHY LTS 18-64,HOMECARE - C&V,2102885546,1000003398
08.11.2018,ADULT SOCIAL CARE,LONDON CARE LTD,865.8,PHY LTS 18-64,HOMECARE - C&V,2102885682,1000003398
08.11.2018,ADULT SOCIAL CARE,LONDON CARE LTD,865.96,PHY LTS 18-64,HOMECARE - C&V,2102885615,1000003398
08.11.2018,ADULT SOCIAL CARE,LONDON CARE LTD,880.07,PHY LTS 18-64,HOMECARE - C&V,2102885713,1000003398
08.11.2018,ADULT SOCIAL CARE,LONDON CARE LTD,916.12,PHY LTS 18-64,HOMECARE - C&V,2102885662,1000003398
08.11.2018,ADULT SOCIAL CARE,LONDON CARE LTD,920.15,PHY LTS 18-64,HOMECARE - C&V,2102885691,1000003398
08.11.2018,ADULT SOCIAL CARE,LONDON CARE LTD,957.45,PHY LTS 18-64,HOMECARE - C&V,2102885688,1000003398
08.11.2018,ADULT SOCIAL CARE,LONDON CARE LTD,982.44,PHY LTS 18-64,HOMECARE - C&V,2102885750,1000003398
08.11.2018,ADULT SOCIAL CARE,LONDON CARE LTD,"1,015.84",PHY LTS 18-64,HOMECARE - C&V,2102885548,1000003398
08.11.2018,ADULT SOCIAL CARE,SOUTHWARK DISABLEMENT ASSOCIATION,"1,041.20",PHY LTS 18-64,HOMECARE - SPOT,2102885819,1000011698
08.11.2018,ADULT SOCIAL CARE,SAGECARE LTD,"1,090.85",PHY LTS 18-64,HOMECARE - C&V,2102885833,1000080924
08.11.2018,ADULT SOCIAL CARE,LONDON CARE LTD,"1,507.23",PHY LTS 18-64,HOMECARE - C&V,2102885597,1000003398
08.11.2018,ADULT SOCIAL CARE,SOUTHWARK DISABLEMENT ASSOCIATION,"1,535.20",PHY LTS 18-64,HOMECARE - SPOT,2102885815,1000011698
08.11.2018,ADULT SOCIAL CARE,SNOWBALL CARE UK LTD,"1,920.00",PHY LTS 18-64,HOMECARE - SPOT,2102885765,1000081483
08.11.2018,ADULT SOCIAL CARE,COLLINGWOOD COURT (BUPA CARE HOMES),"2,822.72",PHY LTS 18-64,NURSING PLACEMENTS FEES,2102871669,11042563
08.11.2018,ADULT SOCIAL CARE,COLLINGWOOD COURT (BUPA CARE HOMES),"2,822.72",PHY LTS 18-64,NURSING PLACEMENTS FEES,2102881257,11042563
08.11.2018,ADULT SOCIAL CARE,HUMBLE HEALTH CARE LTD,"3,010.52",PHY LTS 18-64,HOMECARE - SPOT,2102885779,1000079270
08.11.2018,ADULT SOCIAL CARE,HAVELOCK COURT(BUPA CARE),"3,243.40",PHY LTS 18-64,NURSING PLACEMENTS FEES,2102871775,1000028902
08.11.2018,ADULT SOCIAL CARE,HAVELOCK COURT(BUPA CARE),"3,243.40",PHY LTS 18-64,NURSING PLACEMENTS FEES,2102882230,1000028902
08.11.2018,ADULT SOCIAL CARE,HAVELOCK COURT(BUPA CARE),"3,731.72",PHY LTS 18-64,NURSING PLACEMENTS FEES,2102872002,1000028902
08.11.2018,ADULT SOCIAL CARE,HAVELOCK COURT(BUPA CARE),"3,731.72",PHY LTS 18-64,NURSING PLACEMENTS FEES,2102881870,1000028902
08.11.2018,ADULT SOCIAL CARE,HAVELOCK COURT(BUPA CARE),"3,826.32",PHY LTS 18-64,NURSING PLACEMENTS FEES,2102872012,1000028902
08.11.2018,ADULT SOCIAL CARE,HAVELOCK COURT(BUPA CARE),"3,826.32",PHY LTS 18-64,NURSING PLACEMENTS FEES,2102881598,1000028902
08.11.2018,ADULT SOCIAL CARE,COLLINGWOOD COURT (BUPA CARE HOMES),"-1,764.52",PHY LTS 65+,INCOME FOR THIRD PARTIES/AGENCY ARRANGEMENTS,2102871247,11042563
08.11.2018,ADULT SOCIAL CARE,COLLINGWOOD COURT (BUPA CARE HOMES),"-1,632.84",PHY LTS 65+,"MAND STATUTORY CHARGES, RESIDENTIAL",2102871246,11042563
08.11.2018,ADULT SOCIAL CARE,COLLINGWOOD COURT (BUPA CARE HOMES),"-1,497.96",PHY LTS 65+,"MAND STATUTORY CHARGES, RESIDENTIAL",2102881438,11042563
08.11.2018,ADULT SOCIAL CARE,MANLEY COURT NURSING HOME (BUPA),"-1,325.68",PHY LTS 65+,"MAND STATUTORY CHARGES, NURSING",2102874649,11101434
08.11.2018,ADULT SOCIAL CARE,COLLINGWOOD COURT (BUPA CARE HOMES),"-1,205.04",PHY LTS 65+,INCOME FOR THIRD PARTIES/AGENCY ARRANGEMENTS,2102881439,11042563
08.11.2018,ADULT SOCIAL CARE,COLLINGWOOD COURT (BUPA CARE HOMES),-629.36,PHY LTS 65+,"MAND STATUTORY CHARGES, NURSING",2102871938,11042563
08.11.2018,ADULT SOCIAL CARE,COLLINGWOOD COURT (BUPA CARE HOMES),-629.36,PHY LTS 65+,"MAND STATUTORY CHARGES, NURSING",2102881979,11042563
08.11.2018,ADULT SOCIAL CARE,HAVELOCK COURT(BUPA CARE),-612.4,PHY LTS 65+,"MAND STATUTORY CHARGES, NURSING",2102871917,1000028902
08.11.2018,ADULT SOCIAL CARE,HAVELOCK COURT(BUPA CARE),-612.4,PHY LTS 65+,"MAND STATUTORY CHARGES, NURSING",2102882224,1000028902
08.11.2018,ADULT SOCIAL CARE,COLLINGWOOD COURT (BUPA CARE HOMES),-552.4,PHY LTS 65+,"MAND STATUTORY CHARGES, NURSING",2102871730,11042563
08.11.2018,ADULT SOCIAL CARE,COLLINGWOOD COURT (BUPA CARE HOMES),-552.4,PHY LTS 65+,"MAND STATUTORY CHARGES, NURSING",2102871787,11042563
08.11.2018,ADULT SOCIAL CARE,COLLINGWOOD COURT (BUPA CARE HOMES),-552.4,PHY LTS 65+,"MAND STATUTORY CHARGES, NURSING",2102881817,11042563
08.11.2018,ADULT SOCIAL CARE,COLLINGWOOD COURT (BUPA CARE HOMES),-552.4,PHY LTS 65+,"MAND STATUTORY CHARGES, NURSING",2102882049,11042563
08.11.2018,ADULT SOCIAL CARE,MANLEY COURT NURSING HOME (BUPA),-537.8,PHY LTS 65+,"MAND STATUTORY CHARGES, NURSING",2102871919,11101434
